Workbook

Sheet Number of alcohol deaths (edu)
A1: Number of alcohol-related deaths by sex and education group
A2: the number of deaths is smaller than 5
C4: All alcohol deaths
C5: men | F5: women
C6: low | D6: middle | E6: high | F6: low | G6: middle | H6: high
A7: Finland | B7: 1970-1974 | C7: 1235 | D7: 114 | E7: 85 | F7: 140 | G7: 13 | H7: 13
B8: 1975-1979 | C8: 1477 | D8: 176 | E8: 167 | F8: 242 | G8: 27 | H8: 28
B9: 1980-1984 | C9: 1927 | D9: 375 | E9: 224 | F9: 355 | G9: 77 | H9: 30
B10: 1985-1989 | C10: 2371 | D10: 601 | E10: 364 | F10: 515 | G10: 109 | H10: 65
B11: 1990-1994 | C11: 2481 | D11: 1014 | E11: 416 | F11: 554 | G11: 182 | H11: 87
B12: 1995-1999 | C12: 2726 | D12: 1533 | E12: 525 | F12: 682 | G12: 314 | H12: 134
B13: 2000-2004 | C13: 2852 | D13: 2103 | E13: 775 | F13: 837 | G13: 532 | H13: 211
B14: 2005-2009 | C14: 3187 | D14: 2849 | E14: 965 | F14: 962 | G14: 681 | H14: 307
A15: Sweden | B15: 1990-1994 | C15: 1210 | D15: 748 | E15: 118 | F15: 279 | G15: 165 | H15: 34
B16: 1995-1999 | C16: 1454 | D16: 974 | E16: 202 | F16: 363 | G16: 256 | H16: 61
B17: 2000-2004 | C17: 1443 | D17: 1194 | E17: 244 | F17: 378 | G17: 360 | H17: 99
B18: 2005-2009 | C18: 1054 | D18: 1109 | E18: 247 | F18: 300 | G18: 313 | H18: 96
A19: Norway | B19: 1970-1974 | C19: 422 | D19: 188 | E19: 24 | F19: 72 | G19: 37 | H19: 5
B20: 1975-1979 | C20: 552 | D20: 304 | E20: 48 | F20: 135 | G20: 75 | H20: 6
B21: 1980-1984 | C21: 793 | D21: 473 | E21: 67 | F21: 214 | G21: 119 | H21: 13
B22: 1985-1989 | C22: 786 | D22: 509 | E22: 71 | F22: 198 | G22: 143 | H22: 17
B23: 1990-1994 | C23: 736 | D23: 619 | E23: 101 | F23: 199 | G23: 158 | H23: 23
B24: 1995-1999 | C24: 698 | D24: 636 | E24: 137 | F24: 203 | G24: 177 | H24: 22
B25: 2000-2004 | C25: 581 | D25: 601 | E25: 144 | F25: 191 | G25: 169 | H25: 31
B26: 2005-2009 | C26: 301 | D26: 309 | E26: 76 | F26: 117 | G26: 104 | H26: 28
A27: Denmark | B27: 1990-1994 | C27: 1670 | D27: 1006 | E27: 265 | F27: 715 | G27: 310 | H27: 104
B28: 1995-1999 | C28: 1818 | D28: 1460 | E28: 401 | F28: 812 | G28: 394 | H28: 152
B29: 2000-2004 | C29: 2356 | D29: 1939 | E29: 556 | F29: 977 | G29: 521 | H29: 230
A30: Scotland | B30: 1990-1994 | C30: 29 | J30: VALUE betekent dat het sterfteCIJFER kleiner is dan 10; meestal is het aantal sterfgevallen kleiner dan 5
B31: 1995-1999 | C31: 62 | E31: 4
B32: 2000-2004 | C32: 117 | D32: 34 | E32: 16 | F32: 56 | G32: 10 | H32: 8
B33: 2005-2009 | C33: 77 | D33: 28 | E33: 20 | F33: 40 | H33: 9
A34: England & Wales | B34: 1970-1974 | C34: 17 | D34: 2 | E34: 5 | F34: 12 | G34: 0 | H34: 0
B35: 1975-1979 | C35: 24 | D35: 4 | E35: 3 | F35: 12 | G35: 0 | H35: 0
B36: 1980-1984 | C36: 28 | E36: 4 | F36: 16 | H36: 1
B37: 1985-1989 | C37: 33 | E37: 5 | F37: 23 | H37: 2
B38: 1990-1994 | C38: 38 | E38: 6 | F38: 32 | H38: 5
B39: 1995-1999 | C39: 65 | E39: 16 | F39: 43 | H39: 6
B40: 2000-2004 | C40: 71 | D40: 18 | E40: 14 | F40: 41 | G40: 11 | H40: 9
B41: 2005-2009 | C41: 59 | D41: 17 | E41: 12 | F41: 33 | G41: 12 | H41: 10
A42: Belgium | B42: 1990-1994 | C42: 597 | D42: 133 | E42: 81 | F42: 190 | G42: 56 | H42: 21
B43: 2000-2004 | C43: 889 | D43: 295 | E43: 190 | F43: 409 | G43: 138 | H43: 71
A44: France | B44: 1975-1979 | C44: =[1]france!$H$125 -> 282 | D44: =[1]france!$J$125 -> 26 | E44: =[1]france!$L$125 -> 0 | F44: =[1]france!$H$126 -> 102 | G44: =[1]france!$J$126 -> 7 | H44: =[1]france!$L$126 -> 0
B45: 1975-1979 | C45: =[1]france!$H$127 -> 93 | D45: =[1]france!$J$127 -> 8 | E45: =[1]france!$L$127 -> 1 | F45: =[1]france!$H$128 -> 37 | G45: =[1]france!$J$128 -> 2 | H45: =[1]france!$L$128 -> 1
B46: 1980-1984 | C46: =[1]france!$H$130 -> 293 | D46: =[1]france!$J$130 -> 45 | E46: =[1]france!$L$130 -> 5 | F46: =[1]france!$H$131 -> 104 | G46: =[1]france!$J$131 -> 10 | H46: =[1]france!$L$131 -> 0
B47: 1985-1989 | C47: =[1]france!$H$132 -> 127 | D47: =[1]france!$J$132 -> 23 | E47: =[1]france!$L$132 -> 6 | F47: =[1]france!$H$133 -> 60 | G47: =[1]france!$J$133 -> 7 | H47: =[1]france!$L$133 -> 0
B48: 1990-1994 | C48: =[1]france!$H$135 -> 187 | D48: =[1]france!$J$135 -> 49 | E48: =[1]france!$L$135 -> 6 | F48: =[1]france!$H$136 -> 72 | G48: =[1]france!$J$136 -> 15 | H48: =[1]france!$L$136 -> 3
B49: 1995-1999 | C49: =[1]france!$H$137 -> 148 | D49: =[1]france!$J$137 -> 43 | E49: =[1]france!$L$137 -> 4 | F49: =[1]france!$H$138 -> 58 | G49: =[1]france!$J$138 -> 16 | H49: =[1]france!$L$138 -> 0
B50: 2000-2004 | C50: =[1]france!$H$140 -> 151 | D50: =[1]france!$J$140 -> 89 | E50: =[1]france!$L$140 -> 13 | F50: =[1]france!$H$141 -> 67 | G50: =[1]france!$J$141 -> 23 | H50: =[1]france!$L$141 -> 6
B51: 2005-2009 | C51: =[1]france!$H$142 -> 98 | D51: =[1]france!$J$142 -> 75 | E51: =[1]france!$L$142 -> 13 | F51: =[1]france!$H$143 -> 43 | G51: =[1]france!$J$143 -> 14 | H51: =[1]france!$L$143 -> 1
A52: Switzerland | B52: 1990-1994 | C52: 825 | D52: 994 | E52: 194 | F52: 405 | G52: 312 | H52: 35
B53: 1995-1999 | C53: 707 | D53: 1135 | E53: 269 | F53: 382 | G53: 414 | H53: 40
B54: 2000-2004 | C54: 619 | D54: 951 | E54: 239 | F54: 293 | G54: 327 | H54: 50
B55: 2005-2009 | C55: 284 | D55: 529 | E55: 164 | F55: 194 | G55: 238 | H55: 25
A56: Austria | B56: 1980-1984 | C56: 111 | D56: 74 | E56: 2 | F56: 38 | G56: 9 | H56: 0
B57: 1990-1994 | C57: 151 | D57: 149 | E57: 2 | F57: 36 | G57: 26 | H57: 0
B58: 2000-2004 | C58: 163 | D58: 231 | E58: 9 | F58: 47 | G58: 54 | H58: 1
A59: Barcelona | B59: 1990-1994 | C59: 126 | D59: 18 | E59: 7 | F59: 37 | G59: 5 | H59: 1
B60: 1995-1999 | C60: 139 | D60: 11 | E60: 16 | F60: 47 | G60: 1 | H60: 3
B61: 2000-2004 | C61: 131 | D61: 29 | E61: 9 | F61: 39 | G61: 7 | H61: 2
B62: 2005-2009 | C62: 91 | D62: 26 | E62: 11 | F62: 33 | G62: 9 | H62: 2
A63: Basque Country | B63: 1995-1999 | C63: 196 | D63: 20 | E63: 7 | F63: 54 | G63: 4 | H63: 3
B64: 2000-2004 | C64: 178 | D64: 35 | E64: 16 | F64: 46 | G64: 4 | H64: 4
A65: Madrid | B65: 1995-1999 | C65: 50.99999998 | D65: 12 | E65: 0.9999999997 | F65: 15 | G65: 3.999999999 | H65: 0
B66: 2000-2004 | C66: 76 | D66: 12 | E66: 9 | F66: 18 | G66: 2 | H66: 1
A67: Italy, Turin | B67: 1970-1974 | C67: 42 | D67: 2 | E67: 1 | F67: 9 | G67: 0 | H67: 0
B68: 1975-1979 | C68: 54 | D68: 6 | E68: 0 | F68: 16 | G68: 1 | H68: 0
B69: 1980-1984 | C69: 74 | D69: 2 | E69: 3 | F69: 14 | G69: 1 | H69: 0
B70: 1985-1989 | C70: 55 | D70: 10 | E70: 2 | F70: 16 | G70: 3 | H70: 1
B71: 1990-1994 | C71: 43 | D71: 6 | E71: 2 | F71: 18 | G71: 3 | H71: 0
B72: 1995-1999 | C72: 44 | D72: 8 | E72: 2 | F72: 22 | G72: 1 | H72: 0
B73: 2000-2004 | C73: 63 | D73: 6 | E73: 7 | F73: 26 | G73: 8 | H73: 0
B74: 2005-2009 | C74: 24 | D74: 14 | E74: 0 | F74: 6 | G74: 2 | H74: 1
A75: Slovenia | B75: 1990-1994 | C75: 1499 | D75: 125 | E75: 43 | F75: 501 | G75: 44 | H75: 6
B76: 1995-1999 | C76: 1693 | D76: 188 | E76: 57 | F76: 611 | G76: 52 | H76: 12
B77: 2000-2004 | C77: 1021 | D77: 751 | E77: 96 | F77: 399 | G77: 140 | H77: 25
B78: 2005-2009 | C78: 1458 | D78: 1214 | E78: 148 | F78: 630 | G78: 244 | H78: 39
A79: Hungary | B79: 1970-1974 | C79: 1301 | D79: 45 | E79: 25 | F79: 284 | G79: 6 | H79: 1
B80: 1980-1984 | C80: 4393 | D80: 255 | E80: 139 | F80: 1301 | G80: 70 | H80: 13
B81: 1990-1994 | C81: 12172 | D81: 1120 | E81: 438 | F81: 4070 | G81: 515 | H81: 110
B82: 2000-2004 | C82: 15633 | D82: 2364 | E82: 881 | F82: 4561 | G82: 1057 | H82: 257
A83: Czech Republic | B83: 1980-1984 | C83: 30 | D83: 6 | E83: 2 | F83: 8 | G83: 1 | H83: 0
B84: 2000-2004 | C84: 451 | D84: 57 | E84: 22 | F84: 120 | G84: 21 | H84: 5
A85: Poland | B85: 1990-1994 | C85: 3280 | D85: 369 | E85: 43 | F85: 341 | G85: 74 | H85: 7
B86: 2000-2004 | C86: 2093 | D86: 283 | E86: 44 | F86: 230 | G86: 62 | H86: 6
A87: Lithuania | B87: 1985-1989 | C87: 310 | D87: 129 | E87: 8 | F87: 95 | G87: 28 | H87: 4
B88: 2000-2004 | C88: 691 | D88: 1406 | E88: 178 | F88: 327 | G88: 472 | H88: 64
B89: 2005-2009 | C89: 620 | D89: 1583 | E89: 187 | F89: 241 | G89: 651 | H89: 75
A90: Estonia | B90: 1985-1989 | C90: 358 | D90: 163 | E90: 37 | F90: 99 | G90: 51 | H90: 3
B91: 2000-2004 | C91: 517 | D91: 620 | E91: 80 | F91: 192 | G91: 250 | H91: 24

Sheet Number of alcohol deaths (occu)
A1: Number of alcohol-related deaths by sex and education group
A2: the number of deaths is smaller than 5
C4: All alcohol deaths
C5: men | E5: women
C6: non-manual | D6: manual | E6: non-manual | F6: manual
A7: Finland | B7: 1970-1974 | C7: 176 | D7: 959 | E7: 47 | F7: 89
B8: 1975-1979 | C8: 314 | D8: 1146 | E8: 108 | F8: 128
B9: 1980-1984 | C9: 461 | D9: 1566 | E9: 164 | F9: 225
B10: 1985-1989 | C10: 662 | D10: 2114 | E10: 268 | F10: 323
B11: 1990-1994 | C11: 790 | D11: 2480 | E11: 329 | F11: 377
B12: 1995-1999 | C12: 953 | D12: 3110 | E12: 462 | F12: 524
B13: 2000-2004 | C13: 1266 | D13: 3534 | E13: 687 | F13: 688
B14: 2005-2009 | C14: 1519 | D14: 4394 | E14: 898 | F14: 802
A15: Sweden | B15: 1990-1994 | C15: 209 | D15: 493 | E15: 63 | F15: 103
B16: 1995-1999 | C16: 370 | D16: 891 | E16: 135 | F16: 167
B17: 2000-2004 | C17: 370 | D17: 891 | E17: 135 | F17: 167
B18: 2005-2009 | C18: 412 | D18: 311 | E18: 121 | F18: 62
A19: Denmark | B19: 1990-1994 | C19: 295 | D19: 684 | E19: 61 | F19: 248
B20: 1995-1999 | C20: 265 | D20: 791 | E20: 83 | F20: 257
B21: 2000-2004 | C21: 255 | D21: 923 | E21: 86 | F21: 279
A22: England & Wales | B22: 1970-1974 | C22: 12 | D22: 12 | E22: 2 | F22: 4
B23: 1975-1979 | C23: 13 | D23: 15 | E23: 7 | F23: 2
B24: 1980-1984 | C24: 10 | D24: 18 | E24: 2 | F24: 1
B25: 1985-1989 | C25: 15 | D25: 21 | E25: 9 | F25: 2
B26: 1990-1994 | C26: 24 | D26: 29 | E26: 16 | F26: 16
B27: 1995-1999 | C27: 37 | D27: 55 | E27: 24 | F27: 16
B28: 2000-2004 | C28: 36 | D28: 59 | E28: 25 | F28: 28
B29: 2005-2009 | C29: 25 | D29: 44 | E29: 23 | F29: 24
A30: France | B30: 1975-1979 | C30: 62 | D30: 144 | E30: 19 | F30: 19
B31: 1975-1979 | C31: 20 | D31: 54 | E31: 7 | F31: 2
B32: 1980-1984 | C32: 74 | D32: 145 | E32: 21 | F32: 22
B33: 1985-1989 | C33: 27 | D33: 86 | E33: 12 | F33: 7
B34: 1990-1994 | C34: 48 | D34: 123 | E34: 23 | F34: 8
B35: 1995-1999 | C35: 41 | D35: 99 | E35: 21 | F35: 9
B36: 2000-2004 | C36: 76 | D36: 122 | E36: 44 | F36: 15
B37: 2005-2009 | C37: 64 | D37: 100 | E37: 27 | F37: 9
A38: Switzerland | B38: 1990-1994 | C38: 412 | D38: 311 | E38: 121 | F38: 62
B39: 1995-1999 | C39: 695 | D39: 492 | E39: 188 | F39: 112
B40: 2000-2004 | C40: 192 | D40: 132 | E40: 56 | F40: 35
B41: 2005-2009 | C41: 174 | D41: 98 | E41: 66 | F41: 28
A42: Austria | B42: 1980-1984 | C42: 18 | D42: 40 | E42: 4 | F42: 3
B43: 1990-1994 | C43: 29 | D43: 73 | E43: 8 | F43: 5
B44: 2000-2004 | C44: 41 | D44: 85 | E44: 16 | F44: 9
A45: Basque Country | B45: 2000-2004 | C45: 42 | D45: 164 | E45: 9 | F45: 17
A46: Madrid | B46: 1995-1999 | C46: 16.99999999 | D46: 32.99999999 | E46: 1.999999999 | F46: 0.9999999997
B47: 2000-2004 | C47: 18 | D47: 12 | E47: 0 | F47: 4
A48: Italy, Turin | B48: 1970-1974 | C48: 0 | D48: 0 | E48: 0 | F48: 0
B49: 1975-1979 | C49: 0 | D49: 0 | E49: 0 | F49: 0
B50: 1980-1984 | C50: 4 | D50: 24 | E50: 1 | F50: 1
B51: 1985-1989 | C51: 12 | D51: 27 | E51: 2 | F51: 3
B52: 1990-1994 | C52: 7 | D52: 26 | E52: 2 | F52: 4
B53: 1995-1999 | C53: 11 | D53: 30 | E53: 1 | F53: 8
B54: 2000-2004 | C54: 15 | D54: 35 | E54: 5 | F54: 6
B55: 2005-2009 | C55: 7 | D55: 18 | E55: 3 | F55: 0
A56: Lithuania | B56: 2000-2004 | C56: 73 | D56: 233 | E56: 41 | F56: 33
B57: 2005-2009 | C57: 103 | D57: 390 | E57: 73 | F57: 95
A58: Estonia | B58: 2000-2004 | C58: 57 | D58: 148 | E58: 12 | F58: 15

Sheet Availability of causes of death
C1: Alcoholic cardiomyopathy | D1: Alcoholic cirrhosis of liver | E1: Alcoholic psychosis, dependence and abuse | F1: Accidental poisoning by alcohol
A2: austria | B2: 1981 | C2: x | D2: x | E2: x | F2: x | H2: The definition of this cause of death changed over time
B3: 1991 | C3: x | D3: x | E3: x | F3: x | H3: This cause of death was missing in one period
B4: 2001 | C4: x | D4: x | E4: x | F4: x
A6: belgium | B6: 1 March 1991 - March 1996 | C6: x | D6: x | E6: x | F6: x
B7: March 1996 - March 2001 | C7: - | D7: - | E7: - | F7: -
A8: * | B8: Oct 2001 - Oct 2006 | C8: - | D8: - | E8: - | F8: -
A9: * | B9: Oct 2006 - 31 Dec 2009 | C9: - | D9: - | E9: - | F9: -
B10: 2004-2005 | C10: x | D10: x | E10: x | F10: x
A12: czech republic | B12: 31 Dec 1983 * | C12: - | D12: - | E12: x | F12: x
B13: 1 Mar 2001 | C13: x | D13: x | E13: x | F13: x
A15: denmark | B15: 1 Jan 1991 - 31 Dec 1995 | C15: x | D15: x | E15: x | F15: x
B16: 1 Jan 1996 - 31 Dec 2000 | C16: x | D16: x | E16: x | F16: x
B17: 1 Jan 2001 - 31 Dec 2005 | C17: x | D17: x | E17: x | F17: x
A19: England &Wales | B19: 25 April 1971 - 24 April 1976 | C19: x | D19: x | E19: x | F19: x
B20: 25 April 1976 - 04 April 1981 | C20: x | D20: x | E20: x | F20: x
B21: 05 April 1981 - 04 April 1986 | C21: x | D21: x | E21: x | F21: x
B22: 05 April 1986 - 20 April 1991 | C22: x | D22: x | E22: x | F22: x
B23: 21 April 1991 - 20 April 1996 | C23: x | D23: x | E23: x | F23: x
B24: 21 April 1996 - 28 April 2001 | C24: x | D24: x | E24: x | F24: x
B25: 29 April 2001 - 28 April 2006 | C25: x | D25: x | E25: x | F25: x
B26: 29 April 2006 - 31 Dec 2009 | C26: x | D26: x | E26: x | F26: x
A28: Estonia | B28: 1987-1991 | C28: - | D28: x | E28: x | F28: x
B29: 1998-2002 | C29: x | D29: x | E29: x | F29: x
A31: Finland | B31: 31.12.1970 - 31.12.1975 | C31: x | D31: x | E31: x | F31: x
B32: 31.12.1975 - 31.12.1980 | C32: x | D32: x | E32: x | F32: x
B33: 31.12.1980 - 31.12.1985 | C33: x | D33: x | E33: x | F33: x
B34: 31.12.1985 - 31.12.1990 | C34: x | D34: x | E34: x | F34: x
B35: 31.12.1990 - 31.12.1995 | C35: x | D35: x | E35: x | F35: x
B36: 31.12.1995 - 31.12.2000 | C36: x | D36: x | E36: x | F36: x
B37: 31.12.2000 - 31.12.2005 | C37: x | D37: x | E37: x | F37: x
B38: 31.12.2005 - 31.12.2010 | C38: x | D38: x | E38: x | F38: x
B39: 31.12.1970 - 31.12.1975 | C39: x | D39: x | E39: x | F39: x
A41: France | B41: 10.1.1975 - 9.1.1980 | C41: - | D41: - | E41: - | F41: -
B42: 10.1.1980 - 9.1.1982 | C42: - | D42: - | E42: - | F42: -
B43: 10.1.1982 - 9.1.1987 | C43: - | D43: - | E43: - | F43: -
B44: 10.1.1987 - 9.1.1990 | C44: - | D44: - | E44: - | F44: -
B45: 10.1.1990 - 9.1.1995 | C45: - | D45: - | E45: - | F45: -
B46: 10.1.1995 - 9.1.1999 | C46: - | D46: - | E46: - | F46: -
B47: 10.1.1999 - 9.1.2004 | C47: - | D47: - | E47: - | F47: -
B48: 10.1.2004 - 31.12.2007 | C48: - | D48: - | E48: - | F48: -
A50: Hungary | B50: 1971-1974 | C50: x | D50: x | E50: x | F50: x
B51: 1978-1981 | C51: x | D51: x | E51: x | F51: x
B52: 1988-1991 | C52: x | D52: x | E52: x | F52: x
B53: 1999-2002 | C53: x | D53: x | E53: x | F53: x
A55: Italy (Turin) | B55: 24 Oct 1971 - 24 Oct 1976 | C55: x | D55: x | E55: x | F55: x
B56: 25 Oct 1976 - 24 Oct 1981 | C56: x | D56: x | E56: x | F56: x
B57: 25 Oct 1981 - 24 Oct 1986 | C57: x | D57: x | E57: x | F57: x
B58: 25 Oct 1986 - 19 Oct 1991 | C58: x | D58: x | E58: x | F58: x
B59: 20 Oct 1991 - 19 Oct 1996 | C59: x | D59: x | E59: x | F59: x
B60: 20 Oct 1996 - 20 Oct 2001 | C60: x | D60: x | E60: x | F60: x
B61: 21 Oct 2001 - 20 Oct 2006 | C61: x | D61: x | E61: x | F61: x
B62: 21 Oct 2006 - 31 Dec 2010 | C62: x | D62: x | E62: x | F62: x
A64: Lithuania, cross-sectional | B64: 1 Jan 1988 - 31 Dec 1990 | C64: - | D64: x | E64: x | F64: x
B65: 2000-2002 | C65: x | D65: x | E65: x | F65: x
A66: Lithuania, longitudinal | B66: 06.04.2001 - 31.12.2005 | C66: x | D66: x | E66: x | F66: x
B67: 1.1.2006 - 31.12.2009 | C67: x | D67: x | E67: x | F67: x
A69: Norway | B69: Nov 1970 - Oct 1975 | C69: combined with the other alcohol causes | D69: x, but also combined with the other alcohol causes | E69: Combined with the 3 other ALCOHOL causes | F69: combined with the other alcohol causes
B70: Nov 1975 - Dec 1980 | C70: combined with the other alcohol causes | D70: x, but also combined with the other alcohol causes | E70: Combined with the 3 other ALCOHOL causes | F70: combined with the other alcohol causes
B71: Nov 1980 - Oct 1985 | C71: combined with the other alcohol causes | D71: x, but also combined with the other alcohol causes | E71: Combined with the 3 other ALCOHOL causes | F71: combined with the other alcohol causes
B72: Nov 1985 - Dec 1990 | C72: combined with the other alcohol causes | D72: x, but also combined with the other alcohol causes | E72: Combined with the 3 other ALCOHOL causes | F72: combined with the other alcohol causes
B73: Nov 1990 - Oct 1995 | C73: combined with the other alcohol causes | D73: x, but also combined with the other alcohol causes | E73: Combined with the 3 other ALCOHOL causes | F73: combined with the other alcohol causes
B74: Nov 1995 - Dec 2001 | C74: combined with the other alcohol causes | D74: x, but also combined with the other alcohol causes | E74: Combined with the 3 other ALCOHOL causes | F74: combined with the other alcohol causes
B75: Nov 2001 - Oct 2006 | C75: combined with the other alcohol causes | D75: x, but also combined with the other alcohol causes | E75: Combined with the 3 other ALCOHOL causes | F75: combined with the other alcohol causes
B76: Nov 2006 - Dec 2009 | C76: combined with the other alcohol causes | D76: x, but also combined with the other alcohol causes | E76: Combined with the 3 other ALCOHOL causes | F76: combined with the other alcohol causes
A78: Poland | B78: 1991-1993 | C78: - | D78: - | E78: x | F78: x
B79: 2001-2003 | C79: x | D79: x | E79: x | F79: x
A81: Scotland | B81: 1991-1995 | C81: - | D81: - | E81: - | F81: -
B82: 1996-2000 | C82: - | D82: - | E82: - | F82: -
B83: 2001-2005 | C83: - | D83: - | E83: - | F83: -
B84: 2006-2010 | C84: - | D84: - | E84: - | F84: -
A86: Slovenia | B86: 1.1.1991 - 31.12.1995 | C86: x | D86: x | E86: x | F86: x
B87: 1.1.1996 – 31.12.2001 | C87: x | D87: x | E87: x | F87: x
B88: 1.1.2002 – 31.12.2006 | C88: x | D88: x | E88: x | F88: x
B89: 1.1.2007 – 31.12.2011 | C89: x | D89: x | E89: x | F89: x
A91: Spain (Barcelona) | B91: 1992-1996 | C91: x | D91: x | E91: x | F91: x
B92: 1997-2001 | C92: x | D92: x | E92: x | F92: x
B93: 2002-2006 | C93: x | D93: x | E93: x | F93: x
B94: 2007-2010 | C94: x | D94: x | E94: x | F94: x
A96: Spain (Basque Country) | B96: 1.5.1996 - 30.4.2001 | C96: x | D96: x | E96: x | F96: x
B97: 1.11.2001 - 31.10.2006 | C97: x | D97: x | E97: x | F97: x
A99: Spain (Madrid) | B99: 1.5.1996 - 31.12.1997 | C99: x | D99: x | E99: x | F99: x
B100: 1.11.2001 - 30.6.2003 | C100: x | D100: x | E100: x | F100: x
A102: Sweden | B102: Jan 1990 - Dec 1994 | C102: x | D102: x | E102: x | F102: x
B103: Jan 1995 - Dec 1999 | C103: x | D103: x | E103: x | F103: x
B104: Jan 2000 - Dec 2004 | C104: x | D104: x | E104: x | F104: x
B105: Jan 2005 - Dec 2008 | C105: x | D105: x | E105: x | F105: x
A107: Switzerland | B107: 4.12.1990 - 4.12.1995 | C107: x | D107: x | E107: x | F107: x
B108: 5.12.1995 - 4.12.2000 | C108: x | D108: x | E108: x | F108: x
B109: 5.12.2000 - 4.12.2005 | C109: x | D109: x | E109: x | F109: x
B110: 5.12.2005 - 31.12.2008 | C110: x | D110: x | E110: x | F110: x

Sheet Table 1
B1: Table 1. Overview of data sources
B4: Country | C4: Design | D4: Years covered by the analysis
A5: North | B5: Finland | C5: longitudinal | D5: 1980-1985 | E5: 1986-1990 | F5: 1991-1995 | G5: 1996-2000 | H5: 2001-2005 | I5: 2006-2010
B6: Sweden | C6: longitudinal | F6: 1990-1994 | G6: 1995-1999 | H6: 2000-2004 | I6: 2005-2008
B7: Norway | C7: longitudinal | D7: 1980-1985 | E7: 1985-1990 | F7: 1990-1995 | G7: 1995-2001 | H7: 2001-2006 | I7: 2006-2009
B8: Denmark | C8: longitudinal | F8: 1991-1995 | G8: 1996-2000 | H8: 2001-2005
A9: West | B9: Scotland (UK) | C9: longitudinal | F9: 1991-1995 | G9: 1996-2000 | H9: 2001-2005 | I9: 2006-2010
B10: England & Wales (UK) | C10: longitudinal | D10: 1981-1986 | E10: 1986-1991 | F10: 1991-1996 | G10: 1996-2001 | H10: 2001-2006 | I10: 2006-2009
B11: Belgium | C11: longitudinal | H11: 2004-2005
B12: France | C12: longitudinal | D12: 1980-1985 | E12: 1985-1990 | F12: 1990-1995 | G12: 1995-1999 | H12: 1999-2004 | I12: 2004-2007
B13: Switzerland | C13: longitudinal | F13: 1990-1995 | G13: 1995-2000 | H13: 2000-2005 | I13: 2005-2008
B14: Austria | C14: longitudinal | D14: 1981-1982 | F14: 1991-1992 | H14: 2001-2002
A15: South | B15: Barcelona (Spain) | C15: cross-sectional | F15: 1992-1996 | G15: 1997-2001 | H15: 2002-2006 | I15: 2007-2010
B16: Basque Country (Spain) | C16: longitudinal | G16: 1996-2001 | H16: 2001-2006
B17: Madrid (Spain) | C17: longitudinal | G17: 1996-1997 | H17: 2001-2003
B18: Turin (Italy) | C18: longitudinal | D18: 1981-1986 | E18: 1986-1991 | F18: 1991-1996 | G18: 1996-2001 | H18: 2001-2006 | I18: 2006-2010
A19: East | B19: Slovenia | C19: longitudinal | F19: 1991-1996 | H19: 2002-2006
B20: Hungary | C20: cross-sectional | D20: 1978-1981 | F20: 1988-1991 | H20: 1999-2002
B21: Czech Republic | C21: cross-sectional | H21: 1998-2003
B22: Poland | C22: cross-sectional | H22: 2001-2003
B23: Lithuania | C23: cross-sectional, longitudinal | E23: 1988-1990 | H23: 2001-2005 | I23: 2006-2009
B24: Estonia | C24: cross-sectional | E24: 1987-1991 | H24: 1998-2002

Sheet Table 2
B1: Table 2. Latest observed mortality from alcohol-related causes, by country and sex (deaths per 100,000 person-years, age-standardized, with 95% confidence intervals)
C3: MEN
B4: Country (period) | C4: Alcoholic cardiomyopathy | F4: Alcoholic liver cirrhosis | I4: Alcoholic psychosis, dependence and abuse | L4: Alcoholic poisoning | O4: Total alcohol-related causes | R4: Total alcohol-related deaths as % of total mortality
C5: ASMR | D5: 95% CI | F5: ASMR | G5: 95% CI | I5: ASMR | J5: 95% CI | L5: ASMR | M5: 95% CI | O5: ASMR | P5: 95% CI | R5: %
A6: North | B6: Finland (2006–2010) | C6: 7.3 | D6: (6.7 - | E6: 7.9) | F6: 55.8 | G6: (54.0 - | H6: 57.5) | I6: 8.8 | J6: (8.1 - | K6: 9.5) | L6: 27.5 | M6: (26.2 - | N6: 28.8) | O6: 99.3 | P6: (96.9 - | Q6: 101.6) | R6: 9.8%
B7: Sweden (2005–2008) | C7: 1.2 | D7: (1.0 - | E7: 1.4) | F7: 10.7 | G7: (10.1 - | H7: 11.4) | I7: 9.4 | J7: (8.8 - | K7: 10.0) | L7: 3.6 | M7: (3.3 - | N7: 4.0) | O7: 24.9 | P7: (23.9 - | Q7: 25.9) | R7: 3.2%
B8: Norway (2006–2009) | C8: - | D8: - | E8: - | F8: 9.7 | G8: (8.5 - | H8: 10.9) | I8: - | J8: - | K8: - | L8: - | M8: - | N8: - | O8: 25.7 | P8: (23.7 - | Q8: 27.8) | R8: 2.7%
B9: Denmark (2001–2005) | C9: - | D9: - | E9: - | F9: 37.6 | G9: (36.3 - | H9: 39.0) | I9: 35.1 | J9: (33.8 - | K9: 36.7) | L9: 0.6 | M9: (0.4 - | N9: 0.8) | O9: 74.5 | P9: (72.5 - | Q9: 76.6) | R9: 6.5%
A10: West | B10: Scotland (2006-2010) | C10: - | D10: - | E10: - | F10: - | G10: - | H10: - | I10: - | J10: - | K10: - | L10: - | M10: - | N10: - | O10: 44.4 | P10: (37.5 - | Q10: 51.8) | R10: 4.5%
B11: England & Wales (2006–2009) | C11: 0.7 | D11: (0.0 | E11: 1.6) | F11: 15.2 | G11: (11.8 - | H11: 18.5) | I11: 1.9 | J11: (0.8 - | K11: 3.3) | L11: 1.1 | M11: (0.2 - | N11: 2.3) | O11: 18.9 | P11: (15.1 - | Q11: 23.0) | R11: 2.3%
B12: Belgium (2004–2005) | C12: - | D12: - | E12: - | F12: 19.5 | G12: (18.3 - | H12: 20.5) | I12: 7.4 | J12: (6.7 - | K12: 8.1) | L12: - | M12: - | N12: - | O12: 28.0 | P12: (26.6 - | Q12: 29.4) | R12: 2.5%
B13: France (2003–2007) | C13: - | D13: - | E13: - | F13: - | G13: - | H13: - | I13: - | J13: - | K13: - | L13: - | M13: - | N13: - | O13: 39.1 | P13: (33.5 - | Q13: 44.8) | R13: 4.2%
B14: Switzerland (2005–2008) | C14: 1.0 | D14: (0.7 - | E14: 1.3) | F14: 16.8 | G14: (15.6 - | H14: 18.0) | I14: 6.6 | J14: (5.8 - | K14: 7.4) | L14: 0.4 | M14: (0.2 - | N14: 0.6) | O14: 24.8 | P14: (23.3 - | Q14: 26.3) | R14: 3.3%
B15: Austria (2001–2002) | C15: 0.6 | D15: (0.3 - | E15: 0.9) | F15: 9.5 | G15: (8.2 - | H15: 10.9) | I15: 11.8 | J15: (10.3 - | K15: 13.2) | L15: 0.0 | M15: (0,0 - | N15: 0.2) | O15: 21.9 | P15: (19.8 - | Q15: 24.0) | R15: 2.1%
A16: South | B16: Barcelona (2007–2010) | C16: 0.4 | D16: (0.1 - | E16: 0.7) | F16: 6.8 | G16: (5.6 - | H16: 8.1) | I16: 0.8 | J16: (0.4 - | K16: 1.3) | L16: 0.2 | M16: (0,0 - | N16: 0.4) | O16: 8.1 | P16: (6.8 - | Q16: 9.5) | R16: 1.0%
B17: Basque Country (2001–2006) | C17: 0.5 | D17: (0.2 - | E17: 0.8) | F17: 6.4 | G17: (5.5 - | H17: 7.4) | I17: 1.1 | J17: (0.7 - | K17: 1.5) | L17: 0.2 | M17: (0.0 - | N17: 0.4) | O17: 8.2 | P17: (7.1 - | Q17: 9.3) | R17: 0.9%
B18: Madrid (2001–2003) | C18: 0.1 | D18: (0,0 - | E18: 0.2) | F18: 5.1 | G18: (4.1 - | H18: 6.1) | I18: 1.3 | J18: (0.8 - | K18: 1.9) | L18: 0.0 | M18: (0,0 - | N18: 0.0) | O18: 6.4 | P18: (5.3 - | Q18: 7.6) | R18: 0.6%
B19: Turin (2006–2010) | C19: 0.1 | D19: (0,0 - | E19: 0.4) | F19: 2.7 | G19: (1.7 - | H19: 3.8) | I19: 1.3 | J19: (0.5 - | K19: 2.2) | L19: 0.0 | M19: (0,0 - | N19: 0.0) | O19: 4.2 | P19: (2.8 - | Q19: 5.6) | R19: 0.6%
A20: East | B20: Slovenia (2002–2006) | C20: 6.2 | D20: (5.2 - | E20: 7.3) | F20: 48.7 | G20: (45.9 - | H20: 51.6) | I20: 20.9 | J20: (19.0 - | K20: 22.7) | L20: - | M20: - | N20: - | O20: 75.7 | P20: (72.3 - | Q20: 79.1) | R20: 6.2%
B21: Hungary (1999–2002) | C21: 12.2 | D21: (11.5 - | E21: 12.9) | F21: 166.2 | G21: (163.4 - | H21: 168.8) | I21: 19.1 | J21: (18.3 - | K21: 20.0) | L21: 0.7 | M21: (0.5 - | N21: 0.9) | O21: 198.1 | P21: (195.1 - | Q21: 200.9) | R21: 9.0%
B22: Czech Republic (1998–2003) | C22: 0.3 | D22: (0.2 - | E22: 0.4) | F22: 27.1 | G22: (26.4 - | H22: 27.8) | I22: 3.0 | J22: (2.8 - | K22: 3.3) | L22: 3.6 | M22: (3.3 - | N22: 3.9) | O22: 34.0 | P22: (33.3 - | Q22: 34.9) | R22: 2.1%
B23: Poland (2001–2003) | C23: 0.8 | D23: (0.7 - | E23: 0.9) | F23: 10.8 | G23: (10.3 - | H23: 11.3) | I23: 13.9 | J23: (13.4 - | K23: 14.4) | L23: 11.5 | M23: (11.0 - | N23: 11.9) | O23: 37.0 | P23: (36.2 - | Q23: 37.8) | R23: 3.6%
B24: Lithuania (2006–2009) | C24: 24.0 | D24: (22.0 - | E24: 25.7) | F24: 65.8 | G24: (62.7 - | H24: 68.9) | I24: 3.9 | J24: (3.2 - | K24: 4.6) | L24: 45.8 | M24: (43.3 - | N24: 48.3) | O24: 139.4 | P24: (135.2 - | Q24: 143.8) | R24: 7.4%
B25: Estonia (1998–2002) | C25: 48.2 | D25: (44.9 - | E25: 52.1) | F25: 27.9 | G25: (25.3 - | H25: 30.7) | I25: 8.6 | J25: (7.1 - | K25: 10.1) | L25: 58.1 | M25: (54.1 - | N25: 61.7) | O25: 142.8 | P25: (136.8 - | Q25: 148.8) | R25: 5.9%
B27: Median (interquartile range) | C27: =_xlfn.QUARTILE.INC(C6:C25,2) -> 0.8 | D27: =_xlfn.QUARTILE.INC(C6:C25,1) -> (0.4 - | E27: =_xlfn.QUARTILE.INC(C6:C25,3) -> 6.8) | F27: =_xlfn.QUARTILE.INC(F6:F25,2) -> 16.0 | G27: =_xlfn.QUARTILE.INC(F6:F25,1) -> (9.6 - | H27: =_xlfn.QUARTILE.INC(F6:F25,3) -> 35.2) | I27: =_xlfn.QUARTILE.INC(I6:I25,2) -> 7.4 | J27: =_xlfn.QUARTILE.INC(I6:I25,1) -> (1.9 - | K27: =_xlfn.QUARTILE.INC(I6:I25,3) -> 11.8) | L27: =_xlfn.QUARTILE.INC(L6:L25,2) -> 0.7 | M27: =_xlfn.QUARTILE.INC(L6:L25,1) -> (0.2 - | N27: =_xlfn.QUARTILE.INC(L6:L25,3) -> 7.5) | O27: =_xlfn.QUARTILE.INC(O6:O25,2) -> 31.0 | P27: =_xlfn.QUARTILE.INC(O6:O25,1) -> (21.1 - | Q27: =_xlfn.QUARTILE.INC(O6:O25,3) -> 74.8) | R27: =_xlfn.QUARTILE.INC(R6:R25,2) -> 3.3%
B29: ASMR= Age-standardized mortality rate
C33: WOMEN
B34: Country (period) | C34: Alcoholic cardiomyopathy | F34: Alcoholic liver cirrhosis | I34: Alcoholic psychosis, dependence and abuse | L34: Alcoholic poisoning | O34: Total alcohol-related causes | R34: Total alcohol-related deaths as % of total mortality
C35: ASMR | D35: 95% CI | F35: ASMR | G35: 95% CI | I35: ASMR | J35: 95% CI | L35: ASMR | M35: 95% CI | O35: ASMR | P35: 95% CI | R35: %
A36: North | B36: Finland (2006–2010) | C36: 0.6 | D36: (0.5 - | E36: 0.8) | F36: 16.8 | G36: (15.8 - | H36: 17.8) | I36: 1.7 | J36: (1.4 - | K36: 2.0) | L36: 7.2 | M36: (6.6 - | N36: 7.9) | O36: 26.4 | P36: (25.2 - | Q36: 27.6) | R36: 5.6%
B37: Sweden (2005–2008) | C37: 0.2 | D37: (0.1 - | E37: 0.2) | F37: 7.9 | G37: (7.0 - | H37: 8.7) | I37: 2.0 | J37: (1.8 - | K37: 2.4) | L37: 1.1 | M37: (0.9 - | N37: 1.3) | O37: 7.2 | P37: (6.7 - | Q37: 7.7) | R37: 1.5%
B38: Norway (2006–2009) | C38: - | D38: - | E38: - | F38: 4.4 | G38: (3.6 - | H38: 5.0) | I38: - | J38: - | K38: - | L38: - | M38: - | N38: - | O38: 9.0 | P38: (7.9 - | Q38: 10.2) | R38: 1.6%
B39: Denmark (2001–2005) | C39: - | D39: - | E39: - | F39: 16.0 | G39: (15.1 - | H39: 17.0) | I39: 9.4 | J39: (8.7 - | K39: 10.2) | L39: 0.3 | M39: (0.2 - | N39: 0.4) | O39: 25.9 | P39: (24.7 - | Q39: 27.1) | R39: 3.5%
A40: West | B40: Scotland (2006-2010) | C40: - | D40: - | E40: - | F40: - | G40: - | H40: - | I40: - | J40: - | K40: - | L40: - | M40: - | N40: - | O40: 16.7 | P40: (12.2 - | Q40: 20.9) | R40: 2.5%
B41: England & Wales (2006–2009) | C41: 0.0 | D41: (0,0 - | E41: 0.0) | F41: 8.4 | G41: (6.0 - | H41: 11.1) | I41: 1.9 | J41: (0.9 - | K41: 3.3) | L41: 0.1 | M41: (0,0 - | N41: 0.4) | O41: 10.5 | P41: (7.6 - | Q41: 13.5) | R41: 1.8%
B42: Belgium (2004–2005) | C42: - | D42: - | E42: - | F42: 8.6 | G42: (7.8 - | H42: 9.3) | I42: 2.9 | J42: (2.5 - | K42: 3.3) | L42: - | M42: - | N42: - | O42: 11.6 | P42: (10.4 - | Q42: 12.3) | R42: 1.9%
B43: France (2003–2007) | C43: - | D43: - | E43: - | F43: - | G43: - | H43: - | I43: - | J43: - | K43: - | L43: - | M43: - | N43: - | O43: 10.8 | P43: (8.0 - | Q43: 13.6) | R43: 2.5%
B44: Switzerland (2005–2008) | C44: 0.1 | D44: (0.0 - | E44: 0.2) | F44: 7.9 | G44: (7.0 - | H44: 8.7) | I44: 2.2 | J44: (1.8 - | K44: 2.6) | L44: 0.1 | M44: (0,0 - | N44: 0.2) | O44: 10.2 | P44: (9.3 - | Q44: 11.2) | R44: 2.4%
B45: Austria (2001–2002) | C45: 0.2 | D45: (0.0 - | E45: 0.4) | F45: 2.5 | G45: (1.8 - | H45: 3.2) | I45: 2.5 | J45: (1.8 - | K45: 3.2) | L45: 0.0 | M45: (0,0 - | N45: 0.1) | O45: 5.2 | P45: (4.3 - | Q45: 6.3) | R45: 0.9%
A46: South | B46: Barcelona (2007–2010) | C46: 0.1 | D46: (0,0 - | E46: 0.2) | F46: 2.2 | G46: (1.6 - | H46: 2.9) | I46: 0.2 | J46: (0.0 | K46: 0.3) | L46: 0.1 | M46: (0,0 - | N46: 0.2) | O46: 2.5 | P46: (1.8 - | Q46: 3.2) | R46: 0.7%
B47: Basque Country (2001–2006) | C47: 0.1 | D47: (0,0 - | E47: 0.2) | F47: 1.2 | G47: (0.8 - | H47: 1.5) | I47: 0.3 | J47: (0.1 - | K47: 0.5) | L47: 0.3 | M47: (0.1 - | N47: 0.5) | O47: 1.8 | P47: (1.3 - | Q47: 2.3) | R47: 0.5%
B48: Madrid (2001–2003) | C48: 0.0 | D48: (0,0 - | E48: 0.0) | F48: 1.0 | G48: (0.6 - | H48: 1.4) | I48: 0.2 | J48: (0.0 - | K48: 0.3) | L48: 0.0 | M48: (0,0 - | N48: 0.0) | O48: 1.1 | P48: (0.7 - | Q48: 1.6) | R48: 0.2%
B49: Turin (2006–2010) | C49: 0.0 | D49: (0,0 - | E49: 0.0) | F49: 0.9 | G49: (0.3 - | H49: 1.7) | I49: 0.1 | J49: (0,0 - | K49: 0.3) | L49: 0.0 | M49: (0,0 - | N49: 0.0) | O49: 1.0 | P49: (0.4 - | Q49: 1.8) | R49: 0.3%
A50: East | B50: Slovenia (2002–2006) | C50: 0.8 | D50: (0.5 - | E50: 1.1) | F50: 16.3 | G50: (14.6 - | H50: 17.9) | I50: 3.5 | J50: (2.9 - | K50: 4.3) | L50: - | M50: - | N50: - | O50: 20.4 | P50: (18.6 - | Q50: 22.1) | R50: 3.6%
B51: Hungary (1999–2002) | C51: 1.9 | D51: (1.6 - | E51: 2.1) | F51: 46.5 | G51: (45.2 - | H51: 47.7) | I51: 2.9 | J51: (2.6 - | K51: 3.2) | L51: 0.1 | M51: (0.1 - | N51: 0.2) | O51: 51.4 | P51: (50.0 - | Q51: 52.7) | R51: 5.0%
B52: Czech Republic (1998–2003) | C52: 0.1 | D52: (0.0 - | E52: 0.1) | F52: 7.5 | G52: (7.0 - | H52: 7.9) | I52: 0.7 | J52: (0.5 - | K52: 0.8) | L52: 1.0 | M52: (0.8 - | N52: 1.1) | O52: 9.2 | P52: (8.7 - | Q52: 9.6) | R52: 1.1%
B53: Poland (2001–2003) | C53: 0.1 | D53: (0.0 - | E53: 0.1) | F53: 2.0 | G53: (1.8 - | H53: 2.2) | I53: 1.3 | J53: (1.1 - | K53: 1.4) | L53: 1.3 | M53: (1.2 - | N53: 1.5) | O53: 4.6 | P53: (4.3 - | Q53: 4.9) | R53: 1.2%
B54: Lithuania (2006–2009) | C54: 5.9 | D54: (5.2 - | E54: 6.8) | F54: 24.2 | G54: (22.5 - | H54: 26.0) | I54: 0.7 | J54: (0.4 - | K54: 1.0) | L54: 12.1 | M54: (10.9 - | N54: 13.3) | O54: 42.9 | P54: (40.6 - | Q54: 45.3) | R54: 6.9%
B55: Estonia (1998–2002) | C55: 13.3 | D55: (11.8 - | E55: 15.0) | F55: 12.0 | G55: (10.5 - | H55: 13.8) | I55: 2.2 | J55: (1.6 - | K55: 2.9) | L55: 14.6 | M55: (12.8 - | N55: 16.5) | O55: 42.1 | P55: (39.2 - | Q55: 45.0) | R55: 4.3%
B57: Median (interquartile range) | C57: =_xlfn.QUARTILE.INC(C36:C55,2) -> 0.1 | D57: =_xlfn.QUARTILE.INC(C36:C55,1) -> (0.1 - | E57: =_xlfn.QUARTILE.INC(C36:C55,3) -> 0.7) | F57: =_xlfn.QUARTILE.INC(F36:F55,2) -> 7.9 | G57: =_xlfn.QUARTILE.INC(F36:F55,1) -> (2.3 - | H57: =_xlfn.QUARTILE.INC(F36:F55,3) -> 15.0) | I57: =_xlfn.QUARTILE.INC(I36:I55,2) -> 1.9 | J57: =_xlfn.QUARTILE.INC(I36:I55,1) -> (0.7 - | K57: =_xlfn.QUARTILE.INC(I36:I55,3) -> 2.5) | L57: =_xlfn.QUARTILE.INC(L36:L55,2) -> 0.3 | M57: =_xlfn.QUARTILE.INC(L36:L55,1) -> (0.1 - | N57: =_xlfn.QUARTILE.INC(L36:L55,3) -> 1.2) | O57: =_xlfn.QUARTILE.INC(O36:O55,2) -> 10.3 | P57: =_xlfn.QUARTILE.INC(O36:O55,1) -> (5.0 - | Q57: =_xlfn.QUARTILE.INC(O36:O55,3) -> 21.8) | R57: =_xlfn.QUARTILE.INC(R36:R55,2) -> 1.9%
B59: ASMR= Age-standardized mortality rate

Sheet Figure 1
A1: Age-standardized mortality rates (per 100,000 person-years) by education, total alcohol-related causes, 35–79 years, education
A2: Pas op: aantallen sterfgevallen kleiner dan 5
C4: Men - education | T4: Women - education
A5: Country | B5: Period | C5: low | D5: 95% CI | E5: 95% CI | F5: 95% ci help | G5: 95% ci help | H5: mid | I5: 95% CI | J5: 95% CI | K5: 95% ci help | L5: 95% ci help | M5: high | N5: 95% CI | O5: 95% CI | P5: 95% ci help | Q5: 95% ci help | T5: low | U5: 95% CI | V5: 95% CI | W5: 95% ci help | X5: 95% ci help | Y5: mid | Z5: 95% CI | AA5: 95% CI | AB5: 95% ci help | AC5: 95% ci help | AD5: high | AE5: 95% CI | AF5: 95% CI | AG5: 95% ci help | AH5: 95% ci help
A6: Finland | B6: 2006–2010 | C6: =[2]ALCOHOL!$D$125 -> 144.6 | D6: =[2]ALCOHOL!$E$125 -> 139.3 | E6: =[2]ALCOHOL!$F$125 -> 150.5 | F6: =C6-D6 -> 5.3 | G6: =E6-C6 -> 5.9 | H6: =[2]ALCOHOL!$G$125 -> 106.0 | I6: =[2]ALCOHOL!$H$125 -> 101.9 | J6: =[2]ALCOHOL!$I$125 -> 110.0 | K6: =H6-I6 -> 4.1 | L6: =J6-H6 -> 4.0 | M6: =[2]ALCOHOL!$J$125 -> 48.6 | N6: =[2]ALCOHOL!$K$125 -> 45.4 | O6: =[2]ALCOHOL!$L$125 -> 51.5 | P6: =M6-N6 -> 3.2 | Q6: =O6-M6 -> 2.9 | T6: =[2]ALCOHOL!$D$133 -> 50.0 | U6: =[2]ALCOHOL!$E$133 -> 46.0 | V6: =[2]ALCOHOL!$F$133 -> 54.1 | W6: =T6-U6 -> 4.0 | X6: =V6-T6 -> 4.1 | Y6: =[2]ALCOHOL!$G$133 -> 25.3 | Z6: =[2]ALCOHOL!$H$133 -> 23.4 | AA6: =[2]ALCOHOL!$I$133 -> 27.3 | AB6: =Y6-Z6 -> 1.8 | AC6: =AA6-Y6 -> 2.0 | AD6: =[2]ALCOHOL!$J$133 -> 13.8 | AE6: =[2]ALCOHOL!$K$133 -> 12.2 | AF6: =[2]ALCOHOL!$L$133 -> 15.4 | AG6: =AD6-AE6 -> 1.6 | AH6: =AF6-AD6 -> 1.6
A7: Sweden | B7: 2005–2008 | C7: =[2]ALCOHOL!$D$341 -> 35.4 | D7: =[2]ALCOHOL!$E$341 -> 32.9 | E7: =[2]ALCOHOL!$F$341 -> 37.8 | F7: =C7-D7 -> 2.5 | G7: =E7-C7 -> 2.4 | H7: =[2]ALCOHOL!$G$341 -> 27.3 | I7: =[2]ALCOHOL!$H$341 -> 25.8 | J7: =[2]ALCOHOL!$I$341 -> 29.0 | K7: =H7-I7 -> 1.5 | L7: =J7-H7 -> 1.7 | M7: =[2]ALCOHOL!$J$341 -> 10.1 | N7: =[2]ALCOHOL!$K$341 -> 8.7 | O7: =[2]ALCOHOL!$L$341 -> 11.3 | P7: =M7-N7 -> 1.4 | Q7: =O7-M7 -> 1.2 | T7: =[2]ALCOHOL!$D$345 -> 12.1 | U7: =[2]ALCOHOL!$E$345 -> 10.7 | V7: =[2]ALCOHOL!$F$345 -> 13.8 | W7: =T7-U7 -> 1.4 | X7: =V7-T7 -> 1.7 | Y7: =[2]ALCOHOL!$G$345 -> 7.5 | Z7: =[2]ALCOHOL!$H$345 -> 6.7 | AA7: =[2]ALCOHOL!$I$345 -> 8.3 | AB7: =Y7-Z7 -> 0.8 | AC7: =AA7-Y7 -> 0.8 | AD7: =[2]ALCOHOL!$J$345 -> 3.7 | AE7: =[2]ALCOHOL!$K$345 -> 3.0 | AF7: =[2]ALCOHOL!$L$345 -> 4.5 | AG7: =AD7-AE7 -> 0.7 | AH7: =AF7-AD7 -> 0.8
A8: Norway | B8: 2006–2009 # | C8: =[2]ALCOHOL!$D$244 -> 47.2 | D8: =[2]ALCOHOL!$E$244 -> 41.7 | E8: =[2]ALCOHOL!$F$244 -> 54.0 | F8: 5.5 | G8: 6.8 | H8: =[2]ALCOHOL!$G$244 -> 22.8 | I8: =[2]ALCOHOL!$H$244 -> 20.0 | J8: =[2]ALCOHOL!$I$244 -> 25.9 | K8: 2.8 | L8: 3.0 | M8: =[2]ALCOHOL!$J$244 -> 11.9 | N8: =[2]ALCOHOL!$K$244 -> 9.4 | O8: =[2]ALCOHOL!$L$244 -> 15.2 | P8: 2.5 | Q8: 3.4 | T8: =[2]ALCOHOL!$D$252 -> 15.3 | U8: =[2]ALCOHOL!$E$252 -> 12.5 | V8: =[2]ALCOHOL!$F$252 -> 18.0 | W8: 2.8 | X8: 2.7 | Y8: =[2]ALCOHOL!$G$252 -> 7.6 | Z8: =[2]ALCOHOL!$H$252 -> 6.1 | AA8: =[2]ALCOHOL!$I$252 -> 9.1 | AB8: 1.5 | AC8: 1.5 | AD8: =[2]ALCOHOL!$J$252 -> 4.6 | AE8: =[2]ALCOHOL!$K$252 -> 3.3 | AF8: =[2]ALCOHOL!$L$252 -> 6.3 | AG8: 1.3 | AH8: 1.7
A9: Denmark | B9: 2001–2005 | C9: =[2]ALCOHOL!$D$50 -> 106.7 | D9: =[2]ALCOHOL!$E$50 -> 102.3 | E9: =[2]ALCOHOL!$F$50 -> 110.8 | F9: 4.4 | G9: 4.1 | H9: =[2]ALCOHOL!$G$50 -> 69.3 | I9: =[2]ALCOHOL!$H$50 -> 66.0 | J9: =[2]ALCOHOL!$I$50 -> 72.1 | K9: 3.3 | L9: 2.8 | M9: =[2]ALCOHOL!$J$50 -> 37.1 | N9: =[2]ALCOHOL!$K$50 -> 33.8 | O9: =[2]ALCOHOL!$L$50 -> 40.6 | P9: 3.3 | Q9: 3.5 | T9: =[2]ALCOHOL!$D$53 -> 36.5 | U9: =[2]ALCOHOL!$E$53 -> 34.3 | V9: =[2]ALCOHOL!$F$53 -> 38.9 | W9: 2.2 | X9: 2.3 | Y9: =[2]ALCOHOL!$G$53 -> 23.1 | Z9: =[2]ALCOHOL!$H$53 -> 21.1 | AA9: =[2]ALCOHOL!$I$53 -> 25.2 | AB9: 2.0 | AC9: 2.1 | AD9: =[2]ALCOHOL!$J$53 -> 15.4 | AE9: =[2]ALCOHOL!$K$53 -> 13.3 | AF9: =[2]ALCOHOL!$L$53 -> 18.0 | AG9: 2.2 | AH9: 2.5
A10: Scotland | B10: 2006-2010 | C10: =[2]ALCOHOL!$D$274 -> 47.1 | D10: =[2]ALCOHOL!$E$274 -> 36.9 | E10: =[2]ALCOHOL!$F$274 -> 57.6 | F10: 10.2 | G10: 10.4 | H10: =[2]ALCOHOL!$G$274 -> 46.0 | I10: =[2]ALCOHOL!$H$274 -> 27.7 | J10: =[2]ALCOHOL!$I$274 -> 64.8 | K10: 18.3 | L10: 18.8 | M10: =[2]ALCOHOL!$J$274 -> 31.0 | N10: =[2]ALCOHOL!$K$274 -> 18.5 | O10: =[2]ALCOHOL!$L$274 -> 45.3 | P10: 12.4 | Q10: 14.4 | T10: =[2]ALCOHOL!$D$278 -> 20.6 | U10: =[2]ALCOHOL!$E$278 -> 13.8 | V10: =[2]ALCOHOL!$F$278 -> 27.7 | W10: 6.8 | X10: 7.1 | Y10: =[2]ALCOHOL!$G$278 -> <10 | Z10: =[2]ALCOHOL!$H$278 -> 0.0 | AA10: =[2]ALCOHOL!$I$278 -> <20 | AD10: =[2]ALCOHOL!$J$278 -> 13.3 | AE10: =[2]ALCOHOL!$K$278 -> 5.7 | AF10: =[2]ALCOHOL!$L$278 -> 22.4 | AG10: 7.6 | AH10: 9.2 | AJ10: * Scotland mid edu not available, because number of cases is too low
A11: England & Wales | B11: 2006–2009 | C11: =[2]ALCOHOL!$D$68 -> 26.0 | D11: =[2]ALCOHOL!$E$68 -> 19.6 | E11: =[2]ALCOHOL!$F$68 -> 32.6 | F11: 6.4 | G11: 6.6 | H11: =[2]ALCOHOL!$G$68 -> 16.5 | I11: =[2]ALCOHOL!$H$68 -> 8.5 | J11: =[2]ALCOHOL!$I$68 -> 24.7 | K11: =H11-I11 -> 8.0 | L11: =J11-H11 -> 8.2 | M11: =[2]ALCOHOL!$J$68 -> 11.9 | N11: =[2]ALCOHOL!$K$68 -> 5.8 | O11: =[2]ALCOHOL!$L$68 -> 19.0 | P11: 6.1 | Q11: 7.1 | T11: =[2]ALCOHOL!$D$76 -> 12.0 | U11: =[2]ALCOHOL!$E$76 -> 8.3 | V11: =[2]ALCOHOL!$F$76 -> 16.6 | W11: 3.7 | X11: 4.6 | Y11: =[2]ALCOHOL!$G$76 -> 9.3 | Z11: =[2]ALCOHOL!$H$76 -> 4.3 | AA11: =[2]ALCOHOL!$I$76 -> 14.8 | AB11: =Y11-Z11 -> 5.0 | AC11: =AA11-Y11 -> 5.5 | AD11: =[2]ALCOHOL!$J$76 -> 9.8 | AE11: =[2]ALCOHOL!$K$76 -> 3.9 | AF11: =[2]ALCOHOL!$L$76 -> 16.4 | AG11: 5.9 | AH11: 6.6
A12: Belgium | B12: 2004-2005 | C12: =[2]ALCOHOL!$D$24 -> 32.0 | D12: =[2]ALCOHOL!$E$24 -> 29.8 | E12: =[2]ALCOHOL!$F$24 -> 34.2 | F12: 2.2 | G12: 2.3 | H12: =[2]ALCOHOL!$G$24 -> 27.2 | I12: =[2]ALCOHOL!$H$24 -> 24.0 | J12: =[2]ALCOHOL!$I$24 -> 30.1 | K12: 3.2 | L12: 2.9 | M12: =[2]ALCOHOL!$J$24 -> 16.9 | N12: =[2]ALCOHOL!$K$24 -> 14.3 | O12: =[2]ALCOHOL!$L$24 -> 19.1 | P12: 2.6 | Q12: 2.2 | T12: =[2]ALCOHOL!$D$29 -> 13.0 | U12: =[2]ALCOHOL!$E$29 -> 11.9 | V12: =[2]ALCOHOL!$F$29 -> 14.1 | W12: 1.1 | X12: 1.2 | Y12: =[2]ALCOHOL!$G$29 -> 13.2 | Z12: =[2]ALCOHOL!$H$29 -> 11.6 | AA12: =[2]ALCOHOL!$I$29 -> 15.8 | AB12: 1.6 | AC12: 2.6 | AD12: =[2]ALCOHOL!$J$29 -> 7.1 | AE12: =[2]ALCOHOL!$K$29 -> 5.3 | AF12: =[2]ALCOHOL!$L$29 -> 9.0 | AG12: 1.8 | AH12: 1.9
A13: France | B13: 2003–2007 | C13: =[2]ALCOHOL!$D$148 -> 57.5 | D13: =[2]ALCOHOL!$E$148 -> 45.4 | E13: =[2]ALCOHOL!$F$148 -> 69.5 | F13: 12.1 | G13: 12.1 | H13: =[2]ALCOHOL!$G$148 -> 35.8 | I13: =[2]ALCOHOL!$H$148 -> 28.0 | J13: =[2]ALCOHOL!$I$148 -> 44.4 | K13: 7.7 | L13: 8.6 | M13: =[2]ALCOHOL!$J$148 -> 16.3 | N13: =[2]ALCOHOL!$K$148 -> 8.1 | O13: =[2]ALCOHOL!$L$148 -> 25.9 | P13: 8.1 | Q13: 9.6 | T13: =[2]ALCOHOL!$D$156 -> 16.5 | U13: =[2]ALCOHOL!$E$156 -> 11.7 | V13: =[2]ALCOHOL!$F$156 -> 22.4 | W13: 4.8 | X13: 5.8 | Y13: =[2]ALCOHOL!$G$156 -> 7.8 | Z13: =[2]ALCOHOL!$H$156 -> 4.0 | AA13: =[2]ALCOHOL!$I$156 -> 12.2 | AB13: 3.9 | AC13: 4.4 | AD13: =[2]ALCOHOL!$J$156 -> 1.1 | AE13: =[2]ALCOHOL!$K$156 -> 0.0 | AF13: =[2]ALCOHOL!$L$156 -> 3.4 | AG13: 1.1 | AH13: 2.2
A14: Switzerland | B14: 2006–2008 | C14: =[2]ALCOHOL!$D$356 -> 41.7 | D14: =[2]ALCOHOL!$E$356 -> 36.9 | E14: =[2]ALCOHOL!$F$356 -> 47.1 | F14: 4.9 | G14: 5.4 | H14: =[2]ALCOHOL!$G$356 -> 23.4 | I14: =[2]ALCOHOL!$H$356 -> 21.6 | J14: =[2]ALCOHOL!$I$356 -> 25.4 | K14: 1.8 | L14: 2.0 | M14: =[2]ALCOHOL!$J$356 -> 12.5 | N14: =[2]ALCOHOL!$K$356 -> 10.6 | O14: =[2]ALCOHOL!$L$356 -> 14.6 | P14: 1.9 | Q14: 2.1 | T14: =[2]ALCOHOL!$D$360 -> 12.4 | U14: =[2]ALCOHOL!$E$360 -> 10.7 | V14: =[2]ALCOHOL!$F$360 -> 14.2 | W14: 1.7 | X14: 1.8 | Y14: =[2]ALCOHOL!$G$360 -> 9.2 | Z14: =[2]ALCOHOL!$H$360 -> 8.0 | AA14: =[2]ALCOHOL!$I$360 -> 10.4 | AB14: 1.2 | AC14: 1.2 | AD14: =[2]ALCOHOL!$J$360 -> 5.3 | AE14: =[2]ALCOHOL!$K$360 -> 3.4 | AF14: =[2]ALCOHOL!$L$360 -> 7.6 | AG14: 1.9 | AH14: 2.3
A15: Austria | B15: 2001–2002 | C15: =[2]ALCOHOL!$D$9 -> 37.4 | D15: =[2]ALCOHOL!$E$9 -> 31.9 | E15: =[2]ALCOHOL!$F$9 -> 43.6 | F15: 5.6 | G15: 6.2 | H15: =[2]ALCOHOL!$G$9 -> 18.9 | I15: =[2]ALCOHOL!$H$9 -> 16.5 | J15: =[2]ALCOHOL!$I$9 -> 21.3 | K15: 2.3 | L15: 2.4 | M15: =[2]ALCOHOL!$J$9 -> 6.2 | N15: =[2]ALCOHOL!$K$9 -> 2.2 | O15: =[2]ALCOHOL!$L$9 -> 10.3 | P15: 4.0 | Q15: 4.2 | T15: =[2]ALCOHOL!$D$12 -> 5.4 | U15: =[2]ALCOHOL!$E$12 -> 3.9 | V15: =[2]ALCOHOL!$F$12 -> 7.1 | W15: 1.6 | X15: 1.7 | Y15: =[2]ALCOHOL!$G$12 -> 5.6 | Z15: =[2]ALCOHOL!$H$12 -> 4.2 | AA15: =[2]ALCOHOL!$I$12 -> 7.1 | AB15: 1.4 | AC15: 1.5 | AD15: =[2]ALCOHOL!$J$12 -> 0.4 | AE15: =[2]ALCOHOL!$K$12 -> 0.0 | AF15: =[2]ALCOHOL!$L$12 -> 1.1 | AG15: 0.4 | AH15: 0.7
A16: Barcelona | B16: 2007–2010 | C16: =[2]ALCOHOL!$D$304 -> 11.2 | D16: =[2]ALCOHOL!$E$304 -> 8.9 | E16: =[2]ALCOHOL!$F$304 -> 13.7 | F16: 2.2 | G16: 2.5 | H16: =[2]ALCOHOL!$G$304 -> 7.4 | I16: =[2]ALCOHOL!$H$304 -> 4.7 | J16: =[2]ALCOHOL!$I$304 -> 10.3 | K16: 2.7 | L16: 2.9 | M16: =[2]ALCOHOL!$J$304 -> 3.0 | N16: =[2]ALCOHOL!$K$304 -> 1.3 | O16: =[2]ALCOHOL!$L$304 -> 4.9 | P16: 1.7 | Q16: 1.9 | T16: =[2]ALCOHOL!$D$308 -> 3.2 | U16: =[2]ALCOHOL!$E$308 -> 2.0 | V16: =[2]ALCOHOL!$F$308 -> 4.4 | W16: 1.2 | X16: 1.2 | Y16: =[2]ALCOHOL!$G$308 -> 3.0 | Z16: =[2]ALCOHOL!$H$308 -> 1.3 | AA16: =[2]ALCOHOL!$I$308 -> 5.0 | AB16: 1.7 | AC16: 2.1 | AD16: =[2]ALCOHOL!$J$308 -> 0.7 | AE16: =[2]ALCOHOL!$K$308 -> 0.0 | AF16: =[2]ALCOHOL!$L$308 -> 1.7 | AG16: 0.7 | AH16: 1.1
A17: Basque Country | B17: 2001–2006 | C17: =[2]ALCOHOL!$D$317 -> 9.9 | D17: =[2]ALCOHOL!$E$317 -> 8.5 | E17: =[2]ALCOHOL!$F$317 -> 11.4 | F17: 1.5 | G17: 1.5 | H17: =[2]ALCOHOL!$G$317 -> 7.3 | I17: =[2]ALCOHOL!$H$317 -> 4.8 | J17: =[2]ALCOHOL!$I$317 -> 9.8 | K17: 2.4 | L17: 2.5 | M17: =[2]ALCOHOL!$J$317 -> 3.9 | N17: =[2]ALCOHOL!$K$317 -> 2.1 | O17: =[2]ALCOHOL!$L$317 -> 5.8 | P17: 1.8 | Q17: 2.0 | T17: =[2]ALCOHOL!$D$319 -> 2.1 | U17: =[2]ALCOHOL!$E$319 -> 1.5 | V17: =[2]ALCOHOL!$F$319 -> 2.7 | W17: 0.6 | X17: 0.6 | Y17: =[2]ALCOHOL!$G$319 -> 1.3 | Z17: =[2]ALCOHOL!$H$319 -> 0.1 | AA17: =[2]ALCOHOL!$I$319 -> 3.2 | AB17: 1.2 | AC17: 1.9 | AD17: =[2]ALCOHOL!$J$319 -> 1.0 | AE17: =[2]ALCOHOL!$K$319 -> 0.0 | AF17: =[2]ALCOHOL!$L$319 -> 2.3 | AG17: 1.0 | AH17: 1.2
A18: Madrid | B18: 2001–2003 | C18: =[2]ALCOHOL!$D$328 -> 7.9 | D18: =[2]ALCOHOL!$E$328 -> 6.4 | E18: =[2]ALCOHOL!$F$328 -> 9.6 | F18: 1.5 | G18: 1.7 | H18: =[2]ALCOHOL!$G$328 -> 3.3 | I18: =[2]ALCOHOL!$H$328 -> 1.7 | J18: =[2]ALCOHOL!$I$328 -> 5.3 | K18: 1.6 | L18: 2.0 | M18: =[2]ALCOHOL!$J$328 -> 3.1 | N18: =[2]ALCOHOL!$K$328 -> 1.4 | O18: =[2]ALCOHOL!$L$328 -> 5.0 | P18: 1.7 | Q18: 1.9 | T18: =[2]ALCOHOL!$D$330 -> 1.3 | U18: =[2]ALCOHOL!$E$330 -> 0.8 | V18: =[2]ALCOHOL!$F$330 -> 1.9 | W18: 0.5 | X18: 0.6 | Y18: =[2]ALCOHOL!$G$330 -> 0.4 | Z18: =[2]ALCOHOL!$H$330 -> 0.0 | AA18: =[2]ALCOHOL!$I$330 -> 1.0 | AB18: 0.4 | AC18: 0.6 | AD18: =[2]ALCOHOL!$J$330 -> 0.3 | AE18: =[2]ALCOHOL!$K$330 -> 0.0 | AF18: =[2]ALCOHOL!$L$330 -> 1.0 | AG18: 0.3 | AH18: 0.7
A19: Turin | B19: 2006–2010 | C19: =[2]ALCOHOL!$D$186 -> 5.0 | D19: =[2]ALCOHOL!$E$186 -> 2.8 | E19: =[2]ALCOHOL!$F$186 -> 7.8 | F19: 2.1 | G19: 2.8 | H19: =[2]ALCOHOL!$G$186 -> 5.4 | I19: =[2]ALCOHOL!$H$186 -> 2.7 | J19: =[2]ALCOHOL!$I$186 -> 8.4 | K19: 2.7 | L19: 3.1 | M19: =[2]ALCOHOL!$J$186 -> 0.0 | N19: =[2]ALCOHOL!$K$186 -> 0.0 | O19: =[2]ALCOHOL!$L$186 -> 0.0 | P19: 0.0 | Q19: 0.0 | T19: =[2]ALCOHOL!$D$194 -> 1.5 | U19: =[2]ALCOHOL!$E$194 -> 0.4 | V19: =[2]ALCOHOL!$F$194 -> 2.9 | W19: 1.1 | X19: 1.4 | Y19: =[2]ALCOHOL!$G$194 -> 0.8 | Z19: =[2]ALCOHOL!$H$194 -> 0.0 | AA19: =[2]ALCOHOL!$I$194 -> 2.0 | AB19: 0.8 | AC19: 1.2 | AD19: =[2]ALCOHOL!$J$194 -> 0.8 | AE19: =[2]ALCOHOL!$K$194 -> 0.0 | AF19: =[2]ALCOHOL!$L$194 -> 2.4 | AG19: 0.8 | AH19: 1.6
A20: Slovenia | B20: 2002-2006 | C20: =[2]ALCOHOL!$D$288 -> 133.9 | D20: =[2]ALCOHOL!$E$288 -> 125.9 | E20: =[2]ALCOHOL!$F$288 -> 142.4 | F20: 8.0 | G20: 8.4 | H20: =[2]ALCOHOL!$G$288 -> 57.6 | I20: =[2]ALCOHOL!$H$288 -> 53.5 | J20: =[2]ALCOHOL!$I$288 -> 62.2 | K20: 4.2 | L20: 4.5 | M20: =[2]ALCOHOL!$J$288 -> 24.7 | N20: =[2]ALCOHOL!$K$288 -> 19.8 | O20: =[2]ALCOHOL!$L$288 -> 30.0 | P20: 5.0 | Q20: 5.3 | T20: =[2]ALCOHOL!$D$292 -> 32.1 | U20: =[2]ALCOHOL!$E$292 -> 28.7 | V20: =[2]ALCOHOL!$F$292 -> 35.7 | W20: 3.5 | X20: 3.6 | Y20: =[2]ALCOHOL!$G$292 -> 12.9 | Z20: =[2]ALCOHOL!$H$292 -> 10.8 | AA20: =[2]ALCOHOL!$I$292 -> 15.0 | AB20: 2.1 | AC20: 2.2 | AD20: =[2]ALCOHOL!$J$292 -> 7.5 | AE20: =[2]ALCOHOL!$K$292 -> 4.3 | AF20: =[2]ALCOHOL!$L$292 -> 10.9 | AG20: 3.2 | AH20: 3.4
A21: Hungary | B21: 1999–2002 | C21: =[2]ALCOHOL!$D$167 -> 251.1 | D21: =[2]ALCOHOL!$E$167 -> 247.5 | E21: =[2]ALCOHOL!$F$167 -> 255.1 | F21: 3.6 | G21: 4.0 | H21: =[2]ALCOHOL!$G$167 -> 119.6 | I21: =[2]ALCOHOL!$H$167 -> 114.4 | J21: =[2]ALCOHOL!$I$167 -> 124.6 | K21: 5.2 | L21: 5.0 | M21: =[2]ALCOHOL!$J$167 -> 63.7 | N21: =[2]ALCOHOL!$K$167 -> 59.7 | O21: =[2]ALCOHOL!$L$167 -> 67.7 | P21: 3.9 | Q21: 4.0 | T21: =[2]ALCOHOL!$D$171 -> 65.0 | U21: =[2]ALCOHOL!$E$171 -> 62.9 | V21: =[2]ALCOHOL!$F$171 -> 66.9 | W21: 2.1 | X21: 1.9 | Y21: =[2]ALCOHOL!$G$171 -> 34.6 | Z21: =[2]ALCOHOL!$H$171 -> 32.5 | AA21: =[2]ALCOHOL!$I$171 -> 36.8 | AB21: 2.2 | AC21: 2.2 | AD21: =[2]ALCOHOL!$J$171 -> 21.6 | AE21: =[2]ALCOHOL!$K$171 -> 18.9 | AF21: =[2]ALCOHOL!$L$171 -> 24.4 | AG21: 2.8 | AH21: 2.8
A22: Czech Republic | B22: 1998–2003 | C22: =[2]ALCOHOL!$D$38 -> 45.4 | D22: =[2]ALCOHOL!$E$38 -> 44.0 | E22: =[2]ALCOHOL!$F$38 -> 46.9 | F22: =C22-D22 -> 1.4 | G22: =E22-C22 -> 1.5 | H22: =[2]ALCOHOL!$G$38 -> 16.9 | I22: =[2]ALCOHOL!$H$38 -> 15.7 | J22: =[2]ALCOHOL!$I$38 -> 18.0 | K22: =H22-I22 -> 1.2 | L22: =J22-H22 -> 1.1 | M22: =[2]ALCOHOL!$J$38 -> 9.8 | N22: =[2]ALCOHOL!$K$38 -> 8.5 | O22: =[2]ALCOHOL!$L$38 -> 11.2 | P22: =M22-N22 -> 1.3 | Q22: =O22-M22 -> 1.4 | T22: =[2]ALCOHOL!$D$40 -> 11.6 | U22: =[2]ALCOHOL!$E$40 -> 10.9 | V22: =[2]ALCOHOL!$F$40 -> 12.4 | W22: =T22-U22 -> 0.8 | X22: =V22-T22 -> 0.8 | Y22: =[2]ALCOHOL!$G$40 -> 5.6 | Z22: =[2]ALCOHOL!$H$40 -> 5.0 | AA22: =[2]ALCOHOL!$I$40 -> 6.1 | AB22: =Y22-Z22 -> 0.6 | AC22: =AA22-Y22 -> 0.5 | AD22: =[2]ALCOHOL!$J$40 -> 4.8 | AE22: =[2]ALCOHOL!$K$40 -> 3.6 | AF22: =[2]ALCOHOL!$L$40 -> 6.0 | AG22: =AD22-AE22 -> 1.1 | AH22: =AF22-AD22 -> 1.2
A23: Poland | B23: 2001–2003 | C23: =[2]ALCOHOL!$D$261 -> 53.3 | D23: =[2]ALCOHOL!$E$261 -> 52.1 | E23: =[2]ALCOHOL!$F$261 -> 54.5 | F23: 1.2 | G23: 1.3 | H23: =[2]ALCOHOL!$G$261 -> 16.0 | I23: =[2]ALCOHOL!$H$261 -> 15.0 | J23: =[2]ALCOHOL!$I$261 -> 17.1 | K23: =H23-I23 -> 1.0 | L23: =J23-H23 -> 1.0 | M23: =[2]ALCOHOL!$J$261 -> 7.4 | N23: =[2]ALCOHOL!$K$261 -> 6.3 | O23: =[2]ALCOHOL!$L$261 -> 8.5 | P23: =M23-N23 -> 1.1 | Q23: =O23-M23 -> 1.1 | T23: =[2]ALCOHOL!$D$263 -> 7.2 | U23: =[2]ALCOHOL!$E$263 -> 6.6 | V23: =[2]ALCOHOL!$F$263 -> 7.7 | W23: =T23-U23 -> 0.5 | X23: =V23-T23 -> 0.5 | Y23: =[2]ALCOHOL!$G$263 -> 2.9 | Z23: =[2]ALCOHOL!$H$263 -> 2.6 | AA23: =[2]ALCOHOL!$I$263 -> 3.3 | AB23: =Y23-Z23 -> 0.4 | AC23: =AA23-Y23 -> 0.4 | AD23: =[2]ALCOHOL!$J$263 -> 1.1 | AE23: =[2]ALCOHOL!$K$263 -> 0.7 | AF23: =[2]ALCOHOL!$L$263 -> 1.5 | AG23: =AD23-AE23 -> 0.4 | AH23: =AF23-AD23 -> 0.4
A24: Lithuania | B24: 2006–2009 | C24: =[2]ALCOHOL!$D$226 -> 205.7 | D24: =[2]ALCOHOL!$E$226 -> 190.1 | E24: =[2]ALCOHOL!$F$226 -> 222.2 | F24: 15.6 | G24: 16.4 | H24: =[2]ALCOHOL!$G$226 -> 122.5 | I24: =[2]ALCOHOL!$H$226 -> 117.0 | J24: =[2]ALCOHOL!$I$226 -> 128.4 | K24: 5.4 | L24: 6.0 | M24: =[2]ALCOHOL!$J$226 -> 51.0 | N24: =[2]ALCOHOL!$K$226 -> 44.5 | O24: =[2]ALCOHOL!$L$226 -> 57.9 | P24: 6.4 | Q24: 6.9 | T24: =[2]ALCOHOL!$D$229 -> 79.2 | U24: =[2]ALCOHOL!$E$229 -> 67.5 | V24: =[2]ALCOHOL!$F$229 -> 91.9 | W24: 11.7 | X24: 12.7 | Y24: =[2]ALCOHOL!$G$229 -> 40.3 | Z24: =[2]ALCOHOL!$H$229 -> 37.6 | AA24: =[2]ALCOHOL!$I$229 -> 43.1 | AB24: 2.7 | AC24: 2.7 | AD24: =[2]ALCOHOL!$J$229 -> 13.8 | AE24: =[2]ALCOHOL!$K$229 -> 10.7 | AF24: =[2]ALCOHOL!$L$229 -> 16.5 | AG24: 3.1 | AH24: 2.7
A25: Estonia | B25: 1998–2002 | C25: =[2]ALCOHOL!$D$108 -> 210.9 | D25: =[2]ALCOHOL!$E$108 -> 194.4 | E25: =[2]ALCOHOL!$F$108 -> 226.5 | F25: 16.5 | G25: 15.6 | H25: =[2]ALCOHOL!$G$108 -> 130.9 | I25: =[2]ALCOHOL!$H$108 -> 122.6 | J25: =[2]ALCOHOL!$I$108 -> 140.2 | K25: 8.4 | L25: 9.3 | M25: =[2]ALCOHOL!$J$108 -> 49.8 | N25: =[2]ALCOHOL!$K$108 -> 41.1 | O25: =[2]ALCOHOL!$L$108 -> 58.1 | P25: 8.8 | Q25: 8.3 | T25: =[2]ALCOHOL!$D$110 -> 91.1 | U25: =[2]ALCOHOL!$E$110 -> 78.4 | V25: =[2]ALCOHOL!$F$110 -> 103.9 | W25: 12.7 | X25: 12.8 | Y25: =[2]ALCOHOL!$G$110 -> 38.4 | Z25: =[2]ALCOHOL!$H$110 -> 34.4 | AA25: =[2]ALCOHOL!$I$110 -> 42.3 | AB25: 4.0 | AC25: 4.0 | AD25: =[2]ALCOHOL!$J$110 -> 10.5 | AE25: =[2]ALCOHOL!$K$110 -> 7.1 | AF25: =[2]ALCOHOL!$L$110 -> 13.9 | AG25: 3.4 | AH25: 3.4
A28: # age range 40–79 years
A29: Figure 1. Latest observed mortality from alcohol-related causes, by country, sex and level of education (deaths per 100,000 person-years, age-standardized)
A30: a. Men
A56: b. Women

Sheet Table 3
A1: Table 3. Educational inequalities in mortality from alcohol-related causes, latest observed period, by country and sex (Relative Index of Inequality and Slope Index of Inequality, with 95% Confidence Intervals)
C3: MEN | J3: WOMEN
B4: Country (period) | C4: RII | D4: 95%-CI | F4: SII | G4: 95%-CI | I4: % of SII in total mortality | J4: RII | K4: 95%-CI | M4: SII | N4: 95%-CI | P4: % of SII in total mortality
A5: North | B5: Finland (2006–2010) | C5: ='[2]Abs_rel diff'!CG124 -> 3.6 | D5: ='[2]Abs_rel diff'!CH124 -> (3.3 - | E5: ='[2]Abs_rel diff'!CI124 -> 4.0) | F5: ='[2]Abs_rel diff'!BJ124 -> 112.5 | G5: ='[2]Abs_rel diff'!BK124 -> (106.2 - | H5: ='[2]Abs_rel diff'!BL124 -> 118.8) | I5: ='[3]Abs_rel diff'!$CZ$124/'[3]Abs_rel diff'!$DO$124 -> 12.8% | J5: ='[2]Abs_rel diff'!CG132 -> 5.6 | K5: ='[2]Abs_rel diff'!CH132 -> (4.7 - | L5: ='[2]Abs_rel diff'!CI132 -> 6.8) | M5: ='[2]Abs_rel diff'!BJ132 -> 36.9 | N5: ='[2]Abs_rel diff'!BK132 -> (33.8 - | O5: ='[2]Abs_rel diff'!BL132 -> 40.1) | P5: ='[3]Abs_rel diff'!$CZ$132/'[3]Abs_rel diff'!$DO$132 -> 10.3%
B6: Sweden (2005–2008) | C6: ='[2]Abs_rel diff'!CG340 -> 3.8 | D6: ='[2]Abs_rel diff'!CH340 -> (3.2 - | E6: ='[2]Abs_rel diff'!CI340 -> 4.4) | F6: ='[2]Abs_rel diff'!BJ340 -> 28.8 | G6: ='[2]Abs_rel diff'!BK340 -> (26.1 - | H6: ='[2]Abs_rel diff'!BL340 -> 31.6) | I6: ='[3]Abs_rel diff'!$CZ$340/'[3]Abs_rel diff'!$DO$340 -> 5.5% | J6: ='[2]Abs_rel diff'!CG344 -> 4.3 | K6: ='[2]Abs_rel diff'!CH344 -> (3.2 - | L6: ='[2]Abs_rel diff'!CI344 -> 5.8) | M6: ='[2]Abs_rel diff'!BJ344 -> 9.0 | N6: ='[2]Abs_rel diff'!BK344 -> (7.5 - | O6: ='[2]Abs_rel diff'!BL344 -> 10.5) | P6: ='[3]Abs_rel diff'!$CZ$344/'[3]Abs_rel diff'!$DO$344 -> 2.6%
B7: Norway (2006–2009) | C7: ='[2]Abs_rel diff'!CG243 -> 6.4 | D7: ='[2]Abs_rel diff'!CH243 -> (4.7 - | E7: ='[2]Abs_rel diff'!CI243 -> 8.6) | F7: ='[2]Abs_rel diff'!BJ243 -> 37.4 | G7: ='[2]Abs_rel diff'!BK243 -> (31.4 - | H7: ='[2]Abs_rel diff'!BL243 -> 41.7) | I7: ='[3]Abs_rel diff'!$CZ$243/'[3]Abs_rel diff'!$DO$243 -> 4.5% | J7: ='[2]Abs_rel diff'!CG251 -> 4.7 | K7: ='[2]Abs_rel diff'!CH251 -> (2.9 - | L7: ='[2]Abs_rel diff'!CI251 -> 7.7) | M7: ='[2]Abs_rel diff'!BJ251 -> 11.7 | N7: ='[2]Abs_rel diff'!BK251 -> (9.4 - | O7: ='[2]Abs_rel diff'!BL251 -> 14.3) | P7: ='[3]Abs_rel diff'!$CZ$251/'[3]Abs_rel diff'!$DO$251 -> 2.3%
B8: Denmark (2001–2005) | C8: ='[2]Abs_rel diff'!CG49 -> 3.9 | D8: ='[2]Abs_rel diff'!CH49 -> (3.5 - | E8: ='[2]Abs_rel diff'!CI49 -> 4.4) | F8: ='[2]Abs_rel diff'!BJ49 -> 88.1 | G8: ='[2]Abs_rel diff'!BK49 -> (82.0 - | H8: ='[2]Abs_rel diff'!BL49 -> 94.3) | I8: ='[3]Abs_rel diff'!$CZ$49/'[3]Abs_rel diff'!$DO$49 -> 10.8% | J8: ='[2]Abs_rel diff'!CG52 -> 3.8 | K8: ='[2]Abs_rel diff'!CH52 -> (3.1 - | L8: ='[2]Abs_rel diff'!CI52 -> 4.6) | M8: ='[2]Abs_rel diff'!BJ52 -> 30.2 | N8: ='[2]Abs_rel diff'!BK52 -> (26.5 - | O8: ='[2]Abs_rel diff'!BL52 -> 33.7) | P8: ='[3]Abs_rel diff'!$CZ$52/'[3]Abs_rel diff'!$DO$52 -> 5.5%
A9: West | B9: Scotland (2006 - 2010) | C9: ='[2]Abs_rel diff'!CG273 -> 1.0 | D9: ='[2]Abs_rel diff'!CH273 -> (0.5 - | E9: ='[2]Abs_rel diff'!CI273 -> 2.2) | F9: ='[2]Abs_rel diff'!BJ273 -> 1.5 | G9: ='[2]Abs_rel diff'!BK273 -> (-25.7 - | H9: ='[2]Abs_rel diff'!BL273 -> 30.9) | I9: ='[3]Abs_rel diff'!$CZ$273/'[3]Abs_rel diff'!$DO$273 -> 0.3% | J9: ='[2]Abs_rel diff'!CG277 -> 1.6 | K9: ='[2]Abs_rel diff'!CH277 -> (0.5 - | L9: ='[2]Abs_rel diff'!CI277 -> 6.0) | M9: ='[2]Abs_rel diff'!BJ277 -> 7.4 | N9: ='[2]Abs_rel diff'!BK277 -> (-10.2 - | O9: ='[2]Abs_rel diff'!BL277 -> 24.0) | P9: ='[3]Abs_rel diff'!$CZ$277/'[3]Abs_rel diff'!$DO$277 -> 2.3%
B10: England & Wales (2006–2009) | C10: ='[2]Abs_rel diff'!$CG$67 -> 3.4 | D10: ='[2]Abs_rel diff'!$CH$67 -> (1.4 - | E10: ='[2]Abs_rel diff'!$CI$67 -> 8.4) | F10: ='[2]Abs_rel diff'!$BJ$67 -> 20.8 | G10: ='[2]Abs_rel diff'!$BK$67 -> (6.7 - | H10: ='[2]Abs_rel diff'!$BL$67 -> 32.1) | I10: ='[3]Abs_rel diff'!$CZ$67/'[3]Abs_rel diff'!$DO$67 -> 3.2% | J10: ='[2]Abs_rel diff'!$CG$75 -> 1.5 | K10: ='[2]Abs_rel diff'!$CH$75 -> (0.5 - | L10: ='[2]Abs_rel diff'!$CI$75 -> 4.4) | M10: ='[2]Abs_rel diff'!$BJ$75 -> 4.2 | N10: ='[2]Abs_rel diff'!$BK$75 -> (-5.4 - | O10: ='[2]Abs_rel diff'!$BL$75 -> 14.3) | P10: ='[3]Abs_rel diff'!$CZ$75/'[3]Abs_rel diff'!$DO$75 -> 1.1%
B11: Belgium (2004–2005) | C11: ='[2]Abs_rel diff'!CG23 -> 2.4 | D11: ='[2]Abs_rel diff'!CH23 -> (1.9 - | E11: ='[2]Abs_rel diff'!CI23 -> 3.0) | F11: ='[2]Abs_rel diff'!BJ23 -> 23.3 | G11: ='[2]Abs_rel diff'!BK23 -> (18.8 - | H11: ='[2]Abs_rel diff'!BL23 -> 27.8) | I11: ='[3]Abs_rel diff'!$CZ$23/'[3]Abs_rel diff'!$DO$23 -> 2.7% | J11: ='[2]Abs_rel diff'!CG28 -> 1.9 | K11: ='[2]Abs_rel diff'!CH28 -> (1.4 - | L11: ='[2]Abs_rel diff'!CI28 -> 2.7) | M11: ='[2]Abs_rel diff'!BJ28 -> 7.4 | N11: ='[2]Abs_rel diff'!BK28 -> (3.8 - | O11: ='[2]Abs_rel diff'!BL28 -> 11.0) | P11: ='[3]Abs_rel diff'!$CZ$28/'[3]Abs_rel diff'!$DO$28 -> 1.9%
B12: France (2003–2007) | C12: ='[2]Abs_rel diff'!CG147 -> 4.1 | D12: ='[2]Abs_rel diff'!CH147 -> (2.3 - | E12: ='[2]Abs_rel diff'!CI147 -> 7.4) | F12: ='[2]Abs_rel diff'!BJ147 -> 47.7 | G12: ='[2]Abs_rel diff'!BK147 -> (29.3 - | H12: ='[2]Abs_rel diff'!BL147 -> 61.4) | I12: ='[3]Abs_rel diff'!$CZ$147/'[3]Abs_rel diff'!$DO$147 -> 6.6% | J12: ='[2]Abs_rel diff'!CG155 -> 10.3 | K12: ='[2]Abs_rel diff'!CH155 -> (2.9 - | L12: ='[2]Abs_rel diff'!CI155 -> 36.5) | M12: ='[2]Abs_rel diff'!BJ155 -> 18.0 | N12: ='[2]Abs_rel diff'!BK155 -> (10.7 - | O12: ='[2]Abs_rel diff'!BL155 -> 24.0) | P12: ='[3]Abs_rel diff'!$CZ$155/'[3]Abs_rel diff'!$DO$155 -> 6.0%
B13: Switzerland (2005–2008) | C13: ='[2]Abs_rel diff'!CG355 -> 4.7 | D13: ='[2]Abs_rel diff'!CH355 -> (3.7 - | E13: ='[2]Abs_rel diff'!CI355 -> 6.1) | F13: ='[2]Abs_rel diff'!BJ355 -> 32.3 | G13: ='[2]Abs_rel diff'!BK355 -> (28.1 - | H13: ='[2]Abs_rel diff'!BL355 -> 36.1) | I13: ='[3]Abs_rel diff'!$CZ$355/'[3]Abs_rel diff'!$DO$355 -> 5.0% | J13: ='[2]Abs_rel diff'!CG359 -> 2.3 | K13: ='[2]Abs_rel diff'!CH359 -> (1.6 - | L13: ='[2]Abs_rel diff'!CI359 -> 3.3) | M13: ='[2]Abs_rel diff'!BJ359 -> 7.9 | N13: ='[2]Abs_rel diff'!BK359 -> (4.4 - | O13: ='[2]Abs_rel diff'!BL359 -> 10.8) | P13: ='[3]Abs_rel diff'!$CZ$359/'[3]Abs_rel diff'!$DO$359 -> 3.5%
B14: Austria (2001–2002) | C14: ='[2]Abs_rel diff'!CG8 -> 5.8 | D14: ='[2]Abs_rel diff'!CH8 -> (3.9 - | E14: ='[2]Abs_rel diff'!CI8 -> 8.5) | F14: ='[2]Abs_rel diff'!BJ8 -> 30.8 | G14: ='[2]Abs_rel diff'!BK8 -> (25.6 - | H14: ='[2]Abs_rel diff'!BL8 -> 35.4) | I14: ='[3]Abs_rel diff'!$CZ$8/'[3]Abs_rel diff'!$DO$8 -> 4.7% | J14: ='[2]Abs_rel diff'!CG11 -> 1.4 | K14: ='[2]Abs_rel diff'!CH11 -> (0.7 - | L14: ='[2]Abs_rel diff'!CI11 -> 3.1) | M14: ='[2]Abs_rel diff'!BJ11 -> 1.8 | N14: ='[2]Abs_rel diff'!BK11 -> (-1.8 - | O14: ='[2]Abs_rel diff'!BL11 -> 5.3) | P14: ='[3]Abs_rel diff'!$CZ$11/'[3]Abs_rel diff'!$DO$11 -> 0.7%
A15: South | B15: Barcelona (2007–2010) | C15: ='[2]Abs_rel diff'!CG303 -> 6.0 | D15: ='[2]Abs_rel diff'!CH303 -> (2.8 - | E15: ='[2]Abs_rel diff'!CI303 -> 13.2) | F15: ='[2]Abs_rel diff'!BJ303 -> 11.6 | G15: ='[2]Abs_rel diff'!BK303 -> (8.0 - | H15: ='[2]Abs_rel diff'!BL303 -> 14.9) | I15: ='[3]Abs_rel diff'!$CZ$303/'[3]Abs_rel diff'!$DO$303 -> 1.9% | J15: ='[2]Abs_rel diff'!CG307 -> 5.6 | K15: ='[2]Abs_rel diff'!CH307 -> (1.3 - | L15: ='[2]Abs_rel diff'!CI307 -> 24.2) | M15: ='[2]Abs_rel diff'!BJ307 -> 3.4 | N15: ='[2]Abs_rel diff'!BK307 -> (1.0 - | O15: ='[2]Abs_rel diff'!BL307 -> 5.1) | P15: ='[3]Abs_rel diff'!$CZ$307/'[3]Abs_rel diff'!$DO$307 -> 1.8%
B16: Basque Country (2001–2006) | C16: ='[2]Abs_rel diff'!CG316 -> 3.7 | D16: ='[2]Abs_rel diff'!CH316 -> (1.9 - | E16: ='[2]Abs_rel diff'!CI316 -> 7.2) | F16: ='[2]Abs_rel diff'!BJ316 -> 9.4 | G16: ='[2]Abs_rel diff'!BK316 -> (5.3 - | H16: ='[2]Abs_rel diff'!BL316 -> 13.2) | I16: ='[3]Abs_rel diff'!$CZ$316/'[3]Abs_rel diff'!$DO$316 -> 1.9% | J16: ='[2]Abs_rel diff'!CG318 -> 3.7 | K16: ='[2]Abs_rel diff'!CH318 -> (0.7 - | L16: ='[2]Abs_rel diff'!CI318 -> 18.4) | M16: ='[2]Abs_rel diff'!BJ318 -> 2.1 | N16: ='[2]Abs_rel diff'!BK318 -> (-0.3 - | O16: ='[2]Abs_rel diff'!BL318 -> 3.6) | P16: ='[3]Abs_rel diff'!$CZ$318/'[3]Abs_rel diff'!$DO$318 -> 1.5%
B17: Madrid (2001–2003) | C17: ='[2]Abs_rel diff'!CG327 -> 5.9 | D17: ='[2]Abs_rel diff'!CH327 -> (2.4 - | E17: ='[2]Abs_rel diff'!CI327 -> 14.4) | F17: ='[2]Abs_rel diff'!BJ327 -> 9.2 | G17: ='[2]Abs_rel diff'!BK327 -> (5.7 - | H17: ='[2]Abs_rel diff'!BL327 -> 12.0) | I17: ='[3]Abs_rel diff'!$CZ$327/'[3]Abs_rel diff'!$DO$327 -> 1.5% | J17: ='[2]Abs_rel diff'!CG329 -> 5.4 | K17: ='[2]Abs_rel diff'!CH329 -> (0.5 - | L17: ='[2]Abs_rel diff'!CI329 -> 53.3) | M17: ='[2]Abs_rel diff'!BJ329 -> 1.5 | N17: ='[2]Abs_rel diff'!BK329 -> (0.1 - | O17: ='[2]Abs_rel diff'!BL329 -> 2.7) | P17: ='[3]Abs_rel diff'!$CZ$329/'[3]Abs_rel diff'!$DO$329 -> 1.2%
B18: Turin (2006–2010) | C18: ='[2]Abs_rel diff'!CG185 -> 2.5 | D18: ='[2]Abs_rel diff'!CH185 -> (0.6 - | E18: ='[2]Abs_rel diff'!CI185 -> 10.1) | F18: ='[2]Abs_rel diff'!BJ185 -> 3.6 | G18: ='[2]Abs_rel diff'!BK185 -> (-0.8 - | H18: ='[2]Abs_rel diff'!BL185 -> 7.8) | I18: ='[3]Abs_rel diff'!$CZ$185/'[3]Abs_rel diff'!$DO$185 -> 0.7% | J18: ='[2]Abs_rel diff'!CG193 -> 3.0 | K18: ='[2]Abs_rel diff'!CH193 -> (0.2 - | L18: ='[2]Abs_rel diff'!CI193 -> 49.7) | M18: ='[2]Abs_rel diff'!BJ193 -> 1.0 | N18: ='[2]Abs_rel diff'!BK193 -> (-1.7 - | O18: ='[2]Abs_rel diff'!BL193 -> 2.8) | P18: ='[3]Abs_rel diff'!$CZ$193/'[3]Abs_rel diff'!$DO$193 -> 0.6%
A19: East | B19: Slovenia (2002–2006) | C19: ='[2]Abs_rel diff'!CG287 -> 8.0 | D19: ='[2]Abs_rel diff'!CH287 -> (6.6 - | E19: ='[2]Abs_rel diff'!CI287 -> 9.7) | F19: ='[2]Abs_rel diff'!BJ287 -> 117.8 | G19: ='[2]Abs_rel diff'!BK287 -> (109.9 - | H19: ='[2]Abs_rel diff'!BL287 -> 124.9) | I19: ='[3]Abs_rel diff'!$CZ$287/'[3]Abs_rel diff'!$DO$287 -> 10.5% | J19: ='[2]Abs_rel diff'!CG291 -> 8.5 | K19: ='[2]Abs_rel diff'!CH291 -> (5.7 - | L19: ='[2]Abs_rel diff'!CI291 -> 12.7) | M19: ='[2]Abs_rel diff'!BJ291 -> 32.2 | N19: ='[2]Abs_rel diff'!BK291 -> (28.0 - | O19: ='[2]Abs_rel diff'!BL291 -> 36.2) | P19: ='[3]Abs_rel diff'!$CZ$291/'[3]Abs_rel diff'!$DO$291 -> 8.2%
B20: Hungary (1999–2002) | C20: ='[2]Abs_rel diff'!CG166 -> 7.2 | D20: ='[2]Abs_rel diff'!CH166 -> (6.7 - | E20: ='[2]Abs_rel diff'!CI166 -> 7.8) | F20: ='[2]Abs_rel diff'!BJ166 -> 299.9 | G20: ='[2]Abs_rel diff'!BK166 -> (292.6 - | H20: ='[2]Abs_rel diff'!BL166 -> 307.4) | I20: ='[3]Abs_rel diff'!$CZ$166/'[3]Abs_rel diff'!$DO$166 -> 10.9% | J20: ='[2]Abs_rel diff'!CG170 -> 4.7 | K20: ='[2]Abs_rel diff'!CH170 -> (4.2 - | L20: ='[2]Abs_rel diff'!CI170 -> 5.4) | M20: ='[2]Abs_rel diff'!BJ170 -> 67.0 | N20: ='[2]Abs_rel diff'!BK170 -> (62.9 - | O20: ='[2]Abs_rel diff'!BL170 -> 70.8) | P20: ='[3]Abs_rel diff'!$CZ$170/'[3]Abs_rel diff'!$DO$170 -> 7.0%
B21: Czech Republic (1998–2003) | C21: ='[2]Abs_rel diff'!CG37 -> 10.6 | D21: ='[2]Abs_rel diff'!CH37 -> (9.0 - | E21: ='[2]Abs_rel diff'!CI37 -> 12.4) | F21: ='[2]Abs_rel diff'!BJ37 -> 56.2 | G21: ='[2]Abs_rel diff'!BK37 -> (53.9 - | H21: ='[2]Abs_rel diff'!BL37 -> 58.5) | I21: ='[3]Abs_rel diff'!$CZ$37/'[3]Abs_rel diff'!$DO$37 -> 0.3% | J21: ='[2]Abs_rel diff'!CG39 -> 4.8 | K21: ='[2]Abs_rel diff'!CH39 -> (3.8 - | L21: ='[2]Abs_rel diff'!CI39 -> 6.2) | M21: ='[2]Abs_rel diff'!BJ39 -> 12.0 | N21: ='[2]Abs_rel diff'!BK39 -> (10.4 - | O21: ='[2]Abs_rel diff'!BL39 -> 13.5) | P21: ='[3]Abs_rel diff'!$CZ$39/'[3]Abs_rel diff'!$DO$39 -> 0.2%
B22: Poland (2001–2003) | C22: ='[2]Abs_rel diff'!CG260 -> 18.5 | D22: ='[2]Abs_rel diff'!CH260 -> (16.2 - | E22: ='[2]Abs_rel diff'!CI260 -> 21.1) | F22: ='[2]Abs_rel diff'!BJ260 -> 66.4 | G22: ='[2]Abs_rel diff'!BK260 -> (64.7 - | H22: ='[2]Abs_rel diff'!BL260 -> 68.3) | I22: ='[3]Abs_rel diff'!$CZ$260/'[3]Abs_rel diff'!$DO$260 -> 1.5% | J22: ='[2]Abs_rel diff'!CG262 -> 10.1 | K22: ='[2]Abs_rel diff'!CH262 -> (7.6 - | L22: ='[2]Abs_rel diff'!CI262 -> 13.5) | M22: ='[2]Abs_rel diff'!BJ262 -> 7.5 | N22: ='[2]Abs_rel diff'!BK262 -> (6.9 - | O22: ='[2]Abs_rel diff'!BL262 -> 8.1) | P22: ='[3]Abs_rel diff'!$CZ$262/'[3]Abs_rel diff'!$DO$262 -> 0.6%
B23: Lithuania (2006–2009) | C23: ='[2]Abs_rel diff'!CG225 -> 4.5 | D23: ='[2]Abs_rel diff'!CH225 -> (3.9 - | E23: ='[2]Abs_rel diff'!CI225 -> 5.3) | F23: ='[2]Abs_rel diff'!BJ225 -> 177.6 | G23: ='[2]Abs_rel diff'!BK225 -> (163.2 - | H23: ='[2]Abs_rel diff'!BL225 -> 191.0) | I23: ='[3]Abs_rel diff'!$CZ$225/'[3]Abs_rel diff'!$DO$225 -> 8.8% | J23: ='[2]Abs_rel diff'!CG228 -> 6.9 | K23: ='[2]Abs_rel diff'!CH228 -> (5.3 - | L23: ='[2]Abs_rel diff'!CI228 -> 9.0) | M23: ='[2]Abs_rel diff'!BJ228 -> 64.2 | N23: ='[2]Abs_rel diff'!BK228 -> (58.0 - | O23: ='[2]Abs_rel diff'!BL228 -> 70.4) | P23: ='[3]Abs_rel diff'!$CZ$228/'[3]Abs_rel diff'!$DO$228 -> 9.1%
B24: Estonia (1998–2002) | C24: ='[2]Abs_rel diff'!CG107 -> 4.5 | D24: ='[2]Abs_rel diff'!CH107 -> (3.7 - | E24: ='[2]Abs_rel diff'!CI107 -> 5.4) | F24: ='[2]Abs_rel diff'!BJ107 -> 181.4 | G24: ='[2]Abs_rel diff'!BK107 -> (162.8 - | H24: ='[2]Abs_rel diff'!BL107 -> 196.7) | I24: ='[3]Abs_rel diff'!$CZ$107/'[3]Abs_rel diff'!$DO$107 -> 5.1% | J24: ='[2]Abs_rel diff'!CG109 -> 9.0 | K24: ='[2]Abs_rel diff'!CH109 -> (6.6 - | L24: ='[2]Abs_rel diff'!CI109 -> 12.4) | M24: ='[2]Abs_rel diff'!BJ109 -> 67.4 | N24: ='[2]Abs_rel diff'!BK109 -> (60.7 - | O24: ='[2]Abs_rel diff'!BL109 -> 73.9) | P24: ='[3]Abs_rel diff'!$CZ$109/'[3]Abs_rel diff'!$DO$109 -> 6.2%
B25: Median (interquartile range) | C25: =_xlfn.QUARTILE.INC(C5:C24,2) -> 4.5 | D25: =_xlfn.QUARTILE.INC(C5:C24,1) -> (3.7 - | E25: =_xlfn.QUARTILE.INC(C5:C24,3) -> 6.1) | F25: =_xlfn.QUARTILE.INC(F5:F24,2) -> 34.8 | G25: =_xlfn.QUARTILE.INC(F5:F24,1) -> (18.5 - | H25: =_xlfn.QUARTILE.INC(F5:F24,3) -> 94.2) | I25: =_xlfn.QUARTILE.INC(I5:I24,2) -> 4.6% | J25: =_xlfn.QUARTILE.INC(J5:J24,2) -> 4.7 | K25: =_xlfn.QUARTILE.INC(J5:J24,1) -> (2.8 - | L25: =_xlfn.QUARTILE.INC(J5:J24,3) -> 6.0) | M25: =_xlfn.QUARTILE.INC(M5:M24,2) -> 8.5 | N25: =_xlfn.QUARTILE.INC(M5:M24,1) -> (4.0 - | O25: =_xlfn.QUARTILE.INC(M5:M24,3) -> 30.7) | P25: =_xlfn.QUARTILE.INC(P5:P24,2) -> 2.3%
A27: N/E: not estimatable

Sheet Table 4ab
A1: Table 4. Trends in educational inequalities in mortality from alcohol-related causes, ca. 1980-2010, by country and sex (Relative Index of Inequality and Slope Index of Inequality, with 95% Confidence Intervals)
A2: a. Men Relative Index of Inequality | Q2: b. Men Slope Index of Inequality
D4: Relative Index of Inequality | S4: Slope Index of Inequality
D5: (95% CI) | S5: (95% CI)
D6: 1980-4 | F6: 1985-9 | H6: 1990-4 | J6: 1995-9 | L6: 2000-4 | N6: 2005-9 | S6: 1980-4 | U6: 1985-9 | W6: 1990-4 | Y6: 1995-9 | AA6: 2000-4 | AC6: 2005-9
B7: North | C7: Finland | D7: ='[2]Abs_rel diff'!$CG$119 -> 2.7 | F7: ='[2]Abs_rel diff'!$CG$120 -> 2.6 | H7: ='[2]Abs_rel diff'!$CG$121 -> 3.0 | J7: ='[2]Abs_rel diff'!$CG$122 -> 3.3 | L7: ='[2]Abs_rel diff'!$CG$123 -> 3.2 | N7: ='[2]Abs_rel diff'!$CG$124 -> 3.6 | Q7: North | R7: Finland | S7: ='[2]Abs_rel diff'!$BJ$119 -> 46.4 | U7: ='[2]Abs_rel diff'!$BJ$120 -> 57.4 | W7: ='[2]Abs_rel diff'!$BJ$121 -> 66.6 | Y7: ='[2]Abs_rel diff'!$BJ$122 -> 83.2 | AA7: ='[2]Abs_rel diff'!$BJ$123 -> 87.1 | AC7: ='[2]Abs_rel diff'!$BJ$124 -> 112.5
D8: ='[2]Abs_rel diff'!$CH$119 -> (2.2 - | E8: ='[2]Abs_rel diff'!$CI$119 -> 3.2) | F8: ='[2]Abs_rel diff'!$CH$120 -> (2.2 - | G8: ='[2]Abs_rel diff'!$CI$120 -> 3.0) | H8: ='[2]Abs_rel diff'!$CH$121 -> (2.6 - | I8: ='[2]Abs_rel diff'!$CI$121 -> 3.5) | J8: ='[2]Abs_rel diff'!$CH$122 -> (2.9 - | K8: ='[2]Abs_rel diff'!$CI$122 -> 3.7) | L8: ='[2]Abs_rel diff'!$CH$123 -> (2.9 - | M8: ='[2]Abs_rel diff'!$CI$123 -> 3.5) | N8: ='[2]Abs_rel diff'!$CH$124 -> (3.3 - | O8: ='[2]Abs_rel diff'!$CI$124 -> 4.0) | S8: ='[2]Abs_rel diff'!$BK$119 -> (39.1 - | T8: ='[2]Abs_rel diff'!$BL$119 -> 54.2) | U8: ='[2]Abs_rel diff'!$BK$120 -> (49.5 - | V8: ='[2]Abs_rel diff'!$BL$120 -> 65.3) | W8: ='[2]Abs_rel diff'!$BK$121 -> (60.5 - | X8: ='[2]Abs_rel diff'!$BL$121 -> 73.4) | Y8: ='[2]Abs_rel diff'!$BK$122 -> (76.9 - | Z8: ='[2]Abs_rel diff'!$BL$122 -> 89.7) | AA8: ='[2]Abs_rel diff'!$BK$123 -> (80.7 - | AB8: ='[2]Abs_rel diff'!$BL$123 -> 94.0) | AC8: ='[2]Abs_rel diff'!$BK$124 -> (106.2 - | AD8: ='[2]Abs_rel diff'!$BL$124 -> 118.8)
C9: Sweden | H9: ='[2]Abs_rel diff'!$CG$337 -> 4.3 | J9: ='[2]Abs_rel diff'!$CG$338 -> 4.1 | L9: ='[2]Abs_rel diff'!$CG$339 -> 4.7 | N9: ='[2]Abs_rel diff'!$CG$340 -> 3.8 | R9: Sweden | W9: ='[2]Abs_rel diff'!$BJ$337 -> 33.4 | Y9: ='[2]Abs_rel diff'!$BJ$338 -> 30.8 | AA9: ='[2]Abs_rel diff'!$BJ$339 -> 33.5 | AC9: ='[2]Abs_rel diff'!$BJ$340 -> 28.8
H10: ='[2]Abs_rel diff'!$CH$337 -> (3.6 - | I10: ='[2]Abs_rel diff'!$CI$337 -> 5.2) | J10: ='[2]Abs_rel diff'!$CH$338 -> (3.5 - | K10: ='[2]Abs_rel diff'!$CI$338 -> 4.8) | L10: ='[2]Abs_rel diff'!$CH$339 -> (4.0 - | M10: ='[2]Abs_rel diff'!$CI$339 -> 5.4) | N10: ='[2]Abs_rel diff'!$CH$340 -> (3.2 - | O10: ='[2]Abs_rel diff'!$CI$340 -> 4.4) | W10: ='[2]Abs_rel diff'!$BK$337 -> (30.3 - | X10: ='[2]Abs_rel diff'!$BL$337 -> 36.5) | Y10: ='[2]Abs_rel diff'!$BK$338 -> (28.2 - | Z10: ='[2]Abs_rel diff'!$BL$338 -> 33.5) | AA10: ='[2]Abs_rel diff'!$BK$339 -> (30.8 - | AB10: ='[2]Abs_rel diff'!$BL$339 -> 35.8) | AC10: ='[2]Abs_rel diff'!$BK$340 -> (26.1 - | AD10: ='[2]Abs_rel diff'!$BL$340 -> 31.6)
C11: Norway | D11: ='[2]Abs_rel diff'!$CG$238 -> 2.6 | F11: ='[2]Abs_rel diff'!$CG$239 -> 2.9 | H11: ='[2]Abs_rel diff'!$CG$240 -> 3.9 | J11: ='[2]Abs_rel diff'!$CG$241 -> 4.2 | L11: ='[2]Abs_rel diff'!$CG$242 -> 5.2 | N11: ='[2]Abs_rel diff'!$CG$243 -> 6.4 | R11: Norway | S11: ='[2]Abs_rel diff'!$BJ$238 -> 32.5 | U11: ='[2]Abs_rel diff'!$BJ$239 -> 42.3 | W11: ='[2]Abs_rel diff'!$BJ$240 -> 45.1 | Y11: ='[2]Abs_rel diff'!$BJ$241 -> 43.8 | AA11: ='[2]Abs_rel diff'!$BJ$242 -> 39.7 | AC11: ='[2]Abs_rel diff'!$BJ$243 -> 37.4
D12: ='[2]Abs_rel diff'!$CH$238 -> (2.1 - | E12: ='[2]Abs_rel diff'!$CI$238 -> 3.2) | F12: ='[2]Abs_rel diff'!$CH$239 -> (2.4 - | G12: ='[2]Abs_rel diff'!$CI$239 -> 3.6) | H12: ='[2]Abs_rel diff'!$CH$240 -> (3.1 - | I12: ='[2]Abs_rel diff'!$CI$240 -> 4.8) | J12: ='[2]Abs_rel diff'!$CH$241 -> (3.4 - | K12: ='[2]Abs_rel diff'!$CI$241 -> 5.1) | L12: ='[2]Abs_rel diff'!$CH$242 -> (4.2 - | M12: ='[2]Abs_rel diff'!$CI$242 -> 6.4) | N12: ='[2]Abs_rel diff'!$CH$243 -> (4.7 - | O12: ='[2]Abs_rel diff'!$CI$243 -> 8.6) | S12: ='[2]Abs_rel diff'!$BK$238 -> (25.0 - | T12: ='[2]Abs_rel diff'!$BL$238 -> 38.0) | U12: ='[2]Abs_rel diff'!$BK$239 -> (35.8 - | V12: ='[2]Abs_rel diff'!$BL$239 -> 48.7) | W12: ='[2]Abs_rel diff'!$BK$240 -> (39.0 - | X12: ='[2]Abs_rel diff'!$BL$240 -> 51.0) | Y12: ='[2]Abs_rel diff'!$BK$241 -> (39.3 - | Z12: ='[2]Abs_rel diff'!$BL$241 -> 48.4) | AA12: ='[2]Abs_rel diff'!$BK$242 -> (35.7 - | AB12: ='[2]Abs_rel diff'!$BL$242 -> 42.9) | AC12: ='[2]Abs_rel diff'!$BK$243 -> (31.4 - | AD12: ='[2]Abs_rel diff'!$BL$243 -> 41.7)
C13: Denmark | H13: ='[2]Abs_rel diff'!$CG$47 -> 3.0 | J13: ='[2]Abs_rel diff'!$CG$48 -> 2.7 | L13: ='[2]Abs_rel diff'!$CG$49 -> 3.9 | R13: Denmark | W13: ='[2]Abs_rel diff'!$BJ$47 -> 52.0 | Y13: ='[2]Abs_rel diff'!$BJ$48 -> 56.0 | AA13: ='[2]Abs_rel diff'!$BJ$49 -> 88.1
H14: ='[2]Abs_rel diff'!$CH$47 -> (2.6 - | I14: ='[2]Abs_rel diff'!$CI$47 -> 3.5) | J14: ='[2]Abs_rel diff'!$CH$48 -> (2.4 - | K14: ='[2]Abs_rel diff'!$CI$48 -> 3.1) | L14: ='[2]Abs_rel diff'!$CH$49 -> (3.5 - | M14: ='[2]Abs_rel diff'!$CI$49 -> 4.4) | W14: ='[2]Abs_rel diff'!$BK$47 -> (45.6 - | X14: ='[2]Abs_rel diff'!$BL$47 -> 57.8) | Y14: ='[2]Abs_rel diff'!$BK$48 -> (50.1 - | Z14: ='[2]Abs_rel diff'!$BL$48 -> 61.8) | AA14: ='[2]Abs_rel diff'!$BK$49 -> (82.0 - | AB14: ='[2]Abs_rel diff'!$BL$49 -> 94.3)
B15: West | C15: Scotland (UK) | H15: N/E | J15: ='[2]Abs_rel diff'!$CG$271 -> 3.1 | L15: ='[2]Abs_rel diff'!$CG$272 -> 3.2 | N15: ='[2]Abs_rel diff'!$CG$273 -> 1.0 | Q15: West | R15: Scotland (UK) | W15: ='[2]Abs_rel diff'!$BJ$270 -> 18.6 | Y15: ='[2]Abs_rel diff'!$BJ$271 -> 18.7 | AA15: ='[2]Abs_rel diff'!$BJ$272 -> 76.4 | AC15: ='[2]Abs_rel diff'!$BJ$273 -> 1.5
J16: ='[2]Abs_rel diff'!$CH$271 -> (0.4 - | K16: ='[2]Abs_rel diff'!$CI$271 -> 23.3) | L16: ='[2]Abs_rel diff'!$CH$272 -> (1.6 - | M16: ='[2]Abs_rel diff'!$CI$272 -> 6.4) | N16: ='[2]Abs_rel diff'!$CH$273 -> (0.5 - | O16: ='[2]Abs_rel diff'!$CI$273 -> 2.2) | W16: ='[2]Abs_rel diff'!$BK$270 -> (12.1 - | X16: ='[2]Abs_rel diff'!$BL$270 -> 26.5) | Y16: ='[2]Abs_rel diff'!$BK$271 -> (-9.2 - | Z16: ='[2]Abs_rel diff'!$BL$271 -> 38.9) | AA16: ='[2]Abs_rel diff'!$BK$272 -> (34.4 - | AB16: ='[2]Abs_rel diff'!$BL$272 -> 112.1) | AC16: ='[2]Abs_rel diff'!$BK$273 -> (-25.7 - | AD16: ='[2]Abs_rel diff'!$BL$273 -> 30.9)
C17: England & Wales (UK) | L17: ='[2]Abs_rel diff'!$CG$66 -> 3.0 | N17: ='[2]Abs_rel diff'!$CG$67 -> 3.4 | R17: England & Wales (UK) | AA17: ='[2]Abs_rel diff'!$BJ$66 -> 18.1 | AC17: ='[2]Abs_rel diff'!$BJ$67 -> 20.8
L18: ='[2]Abs_rel diff'!$CH$66 -> (1.3 - | M18: ='[2]Abs_rel diff'!$CI$66 -> 6.9) | N18: ='[2]Abs_rel diff'!$CH$67 -> (1.4 - | O18: ='[2]Abs_rel diff'!$CI$67 -> 8.4) | AA18: ='[2]Abs_rel diff'!$BK$66 -> (3.2 - | AB18: ='[2]Abs_rel diff'!$BL$66 -> 28.5) | AC18: ='[2]Abs_rel diff'!$BK$67 -> (6.7 - | AD18: ='[2]Abs_rel diff'!$BL$67 -> 32.1)
C19: France | D19: =('[2]Abs_rel diff'!$CG$141+'[2]Abs_rel diff'!$CG$142)/2 -> 8.8 | F19: =('[2]Abs_rel diff'!$CG$142+'[2]Abs_rel diff'!$CG$143)/2 -> 5.7 | H19: ='[2]Abs_rel diff'!$CG$144 -> 6.9 | J19: ='[2]Abs_rel diff'!$CG$145 -> 9.2 | L19: ='[2]Abs_rel diff'!$CG$146 -> 4.2 | N19: ='[2]Abs_rel diff'!$CG$147 -> 4.1 | R19: France | S19: =('[2]Abs_rel diff'!$BJ$141+'[2]Abs_rel diff'!$BJ$142)/2 -> 94.1 | U19: =('[2]Abs_rel diff'!$BJ$142+'[2]Abs_rel diff'!$BJ$143)/2 -> 85.5 | W19: ='[2]Abs_rel diff'!$BJ$144 -> 66.4 | Y19: ='[2]Abs_rel diff'!$BJ$145 -> 70.2 | AA19: ='[2]Abs_rel diff'!$BJ$146 -> 53.4 | AC19: ='[2]Abs_rel diff'!$BJ$147 -> 47.7
D20: =('[2]Abs_rel diff'!$CH$141+'[2]Abs_rel diff'!$CH$142)/2 -> (3.0 - | E20: =('[2]Abs_rel diff'!$CI$141+'[2]Abs_rel diff'!$CI$142)/2 -> 29.3) | F20: =('[2]Abs_rel diff'!$CH$142+'[2]Abs_rel diff'!$CH$143)/2 -> (2.8 - | G20: =('[2]Abs_rel diff'!$CI$142+'[2]Abs_rel diff'!$CI$143)/2 -> 11.9) | H20: ='[2]Abs_rel diff'!$CH$144 -> (3.6 - | I20: ='[2]Abs_rel diff'!$CI$144 -> 13.0) | J20: ='[2]Abs_rel diff'!$CH$145 -> (4.6 - | K20: ='[2]Abs_rel diff'!$CI$145 -> 18.4) | L20: ='[2]Abs_rel diff'!$CH$146 -> (2.5 - | M20: ='[2]Abs_rel diff'!$CI$146 -> 7.1) | N20: ='[2]Abs_rel diff'!$CH$147 -> (2.3 - | O20: ='[2]Abs_rel diff'!$CI$147 -> 7.4) | S20: =('[2]Abs_rel diff'!$BK$141+'[2]Abs_rel diff'!$BK$142)/2 -> (63.7 - | T20: =('[2]Abs_rel diff'!$BL$141+'[2]Abs_rel diff'!$BL$142)/2 -> 117.2) | U20: =('[2]Abs_rel diff'!$BK$142+'[2]Abs_rel diff'!$BK$143)/2 -> (59.3 - | V20: =('[2]Abs_rel diff'!$BL$142+'[2]Abs_rel diff'!$BL$143)/2 -> 107.7) | W20: ='[2]Abs_rel diff'!$BK$144 -> (50.5 - | X20: ='[2]Abs_rel diff'!$BL$144 -> 79.5) | Y20: ='[2]Abs_rel diff'!$BK$145 -> (54.9 - | Z20: ='[2]Abs_rel diff'!$BL$145 -> 84.1) | AA20: ='[2]Abs_rel diff'!$BK$146 -> (38.9 - | AB20: ='[2]Abs_rel diff'!$BL$146 -> 66.5) | AC20: ='[2]Abs_rel diff'!$BK$147 -> (29.3 - | AD20: ='[2]Abs_rel diff'!$BL$147 -> 61.4)
C21: Switzerland | H21: ='[2]Abs_rel diff'!$CG$352 -> 5.6 | J21: ='[2]Abs_rel diff'!$CG$353 -> 4.3 | L21: ='[2]Abs_rel diff'!$CG$354 -> 6.4 | N21: ='[2]Abs_rel diff'!$CG$355 -> 4.7 | R21: Switzerland | W21: ='[2]Abs_rel diff'!$BJ$352 -> 43.3 | Y21: ='[2]Abs_rel diff'!$BJ$353 -> 39.4 | AA21: ='[2]Abs_rel diff'!$BJ$354 -> 43.3 | AC21: ='[2]Abs_rel diff'!$BJ$355 -> 32.3
H22: ='[2]Abs_rel diff'!$CH$352 -> (4.7 - | I22: ='[2]Abs_rel diff'!$CI$352 -> 6.7) | J22: ='[2]Abs_rel diff'!$CH$353 -> (3.6 - | K22: ='[2]Abs_rel diff'!$CI$353 -> 5.1) | L22: ='[2]Abs_rel diff'!$CH$354 -> (5.3 - | M22: ='[2]Abs_rel diff'!$CI$354 -> 7.8) | N22: ='[2]Abs_rel diff'!$CH$355 -> (3.7 - | O22: ='[2]Abs_rel diff'!$CI$355 -> 6.1) | W22: ='[2]Abs_rel diff'!$BK$352 -> (39.6 - | X22: ='[2]Abs_rel diff'!$BL$352 -> 46.6) | Y22: ='[2]Abs_rel diff'!$BK$353 -> (35.5 - | Z22: ='[2]Abs_rel diff'!$BL$353 -> 43.1) | AA22: ='[2]Abs_rel diff'!$BK$354 -> (40.1 - | AB22: ='[2]Abs_rel diff'!$BL$354 -> 46.3) | AC22: ='[2]Abs_rel diff'!$BK$355 -> (28.1 - | AD22: ='[2]Abs_rel diff'!$BL$355 -> 36.1)
C23: Austria | D23: ='[2]Abs_rel diff'!$CG$6 -> 4.7 | H23: ='[2]Abs_rel diff'!$CG$7 -> 5.4 | L23: ='[2]Abs_rel diff'!$CG$8 -> 5.8 | R23: Austria | S23: ='[2]Abs_rel diff'!$BJ$6 -> 17.6 | W23: ='[2]Abs_rel diff'!$BJ$7 -> 27.1 | AA23: ='[2]Abs_rel diff'!$BJ$8 -> 30.8
D24: ='[2]Abs_rel diff'!$CH$6 -> (2.7 - | E24: ='[2]Abs_rel diff'!$CI$6 -> 8.3) | H24: ='[2]Abs_rel diff'!$CH$7 -> (3.5 - | I24: ='[2]Abs_rel diff'!$CI$7 -> 8.4) | L24: ='[2]Abs_rel diff'!$CH$8 -> (3.9 - | M24: ='[2]Abs_rel diff'!$CI$8 -> 8.5) | S24: ='[2]Abs_rel diff'!$BK$6 -> (12.4 - | T24: ='[2]Abs_rel diff'!$BL$6 -> 21.8) | W24: ='[2]Abs_rel diff'!$BK$7 -> (21.5 - | X24: ='[2]Abs_rel diff'!$BL$7 -> 32.4) | AA24: ='[2]Abs_rel diff'!$BK$8 -> (25.6 - | AB24: ='[2]Abs_rel diff'!$BL$8 -> 35.4)
B25: South | C25: Spain (Barcelona) | H25: ='[2]Abs_rel diff'!$CG$300 -> 8.7 | J25: ='[2]Abs_rel diff'!$CG$301 -> 9.9 | L25: ='[2]Abs_rel diff'!$CG$302 -> 8.8 | N25: ='[2]Abs_rel diff'!$CG$303 -> 6.0 | Q25: South | R25: Spain (Barcelona) | W25: ='[2]Abs_rel diff'!$BJ$300 -> 13.4 | Y25: ='[2]Abs_rel diff'!$BJ$301 -> 15.3 | AA25: ='[2]Abs_rel diff'!$BJ$302 -> 14.1 | AC25: ='[2]Abs_rel diff'!$BJ$303 -> 11.6
H26: ='[2]Abs_rel diff'!$CH$300 -> (3.7 - | I26: ='[2]Abs_rel diff'!$CI$300 -> 20.5) | J26: ='[2]Abs_rel diff'!$CH$301 -> (4.4 - | K26: ='[2]Abs_rel diff'!$CI$301 -> 22.1) | L26: ='[2]Abs_rel diff'!$CH$302 -> (4.1 - | M26: ='[2]Abs_rel diff'!$CI$302 -> 18.6) | N26: ='[2]Abs_rel diff'!$CH$303 -> (2.8 - | O26: ='[2]Abs_rel diff'!$CI$303 -> 13.2) | W26: ='[2]Abs_rel diff'!$BK$300 -> (9.7 - | X26: ='[2]Abs_rel diff'!$BL$300 -> 16.3) | Y26: ='[2]Abs_rel diff'!$BK$301 -> (11.5 - | Z26: ='[2]Abs_rel diff'!$BL$301 -> 18.4) | AA26: ='[2]Abs_rel diff'!$BK$302 -> (10.8 - | AB26: ='[2]Abs_rel diff'!$BL$302 -> 17.0) | AC26: ='[2]Abs_rel diff'!$BK$303 -> (8.0 - | AD26: ='[2]Abs_rel diff'!$BL$303 -> 14.9)
C27: Spain (Basque country) | J27: ='[2]Abs_rel diff'!$CG$315 -> 7.8 | L27: ='[2]Abs_rel diff'!$CG$316 -> 3.7 | R27: Spain (Basque country) | Y27: ='[2]Abs_rel diff'!$BJ$315 -> 12.7 | AA27: ='[2]Abs_rel diff'!$BJ$316 -> 9.4
J28: ='[2]Abs_rel diff'!$CH$315 -> (3.4 - | K28: ='[2]Abs_rel diff'!$CI$315 -> 18.2) | L28: ='[2]Abs_rel diff'!$CH$316 -> (1.9 - | M28: ='[2]Abs_rel diff'!$CI$316 -> 7.2) | Y28: ='[2]Abs_rel diff'!$BK$315 -> (9.1 - | Z28: ='[2]Abs_rel diff'!$BL$315 -> 15.5) | AA28: ='[2]Abs_rel diff'!$BK$316 -> (5.3 - | AB28: ='[2]Abs_rel diff'!$BL$316 -> 13.2)
C29: Spain (Madrid) | J29: ='[2]Abs_rel diff'!$CG$326 -> 6.0 | L29: ='[2]Abs_rel diff'!$CG$327 -> 5.9 | R29: Spain (Madrid) | Y29: ='[2]Abs_rel diff'!$BJ$326 -> 8.5 | AA29: ='[2]Abs_rel diff'!$BJ$327 -> 9.2
J30: ='[2]Abs_rel diff'!$CH$326 -> (2.0 - | K30: ='[2]Abs_rel diff'!$CI$326 -> 18.1) | L30: ='[2]Abs_rel diff'!$CH$327 -> (2.4 - | M30: ='[2]Abs_rel diff'!$CI$327 -> 14.4) | Y30: ='[2]Abs_rel diff'!$BK$326 -> (4.8 - | Z30: ='[2]Abs_rel diff'!$BL$326 -> 11.5) | AA30: ='[2]Abs_rel diff'!$BK$327 -> (5.7 - | AB30: ='[2]Abs_rel diff'!$BL$327 -> 12.0)
C31: Italy (Turin) | D31: ='[2]Abs_rel diff'!$CG$180 -> 11.2 | F31: ='[2]Abs_rel diff'!$CG$181 -> 2.0 | H31: ='[2]Abs_rel diff'!$CG$182 -> 5.0 | J31: ='[2]Abs_rel diff'!$CG$183 -> 5.2 | L31: ='[2]Abs_rel diff'!$CG$184 -> 7.3 | N31: ='[2]Abs_rel diff'!$CG$185 -> 2.5 | R31: Italy (Turin) | S31: ='[2]Abs_rel diff'!$BJ$180 -> 10.8 | U31: ='[2]Abs_rel diff'!$BJ$181 -> 3.8 | W31: ='[2]Abs_rel diff'!$BJ$182 -> 5.7 | Y31: ='[2]Abs_rel diff'!$BJ$183 -> 6.8 | AA31: ='[2]Abs_rel diff'!$BJ$184 -> 9.5 | AC31: ='[2]Abs_rel diff'!$BJ$185 -> 3.6
D32: ='[2]Abs_rel diff'!$CH$180 -> (1.9 - | E32: ='[2]Abs_rel diff'!$CI$180 -> 66.1) | F32: ='[2]Abs_rel diff'!$CH$181 -> (0.6 - | G32: ='[2]Abs_rel diff'!$CI$181 -> 7.1) | H32: ='[2]Abs_rel diff'!$CH$182 -> (1.1 - | I32: ='[2]Abs_rel diff'!$CI$182 -> 23.4) | J32: ='[2]Abs_rel diff'!$CH$183 -> (1.3 - | K32: ='[2]Abs_rel diff'!$CI$183 -> 21.5) | L32: ='[2]Abs_rel diff'!$CH$184 -> (2.2 - | M32: ='[2]Abs_rel diff'!$CI$184 -> 23.6) | N32: ='[2]Abs_rel diff'!$CH$185 -> (0.6 - | O32: ='[2]Abs_rel diff'!$CI$185 -> 10.1) | S32: ='[2]Abs_rel diff'!$BK$180 -> (5.7 - | T32: ='[2]Abs_rel diff'!$BL$180 -> 14.3) | U32: ='[2]Abs_rel diff'!$BK$181 -> (-2.7 - | V32: ='[2]Abs_rel diff'!$BL$181 -> 9.5) | W32: ='[2]Abs_rel diff'!$BK$182 -> (1.3 - | X32: ='[2]Abs_rel diff'!$BL$182 -> 9.0) | Y32: ='[2]Abs_rel diff'!$BK$183 -> (1.9 - | Z32: ='[2]Abs_rel diff'!$BL$183 -> 10.6) | AA32: ='[2]Abs_rel diff'!$BK$184 -> (5.0 - | AB32: ='[2]Abs_rel diff'!$BL$184 -> 13.0) | AC32: ='[2]Abs_rel diff'!$BK$185 -> (-0.8 - | AD32: ='[2]Abs_rel diff'!$BL$185 -> 7.8)
B33: East | C33: Slovenia | H33: ='[2]Abs_rel diff'!$CG$285 -> 14.1 | L33: ='[2]Abs_rel diff'!$CG$287 -> 8.0 | Q33: East | R33: Slovenia | W33: ='[2]Abs_rel diff'!$BJ$285 -> 150.0 | AA33: ='[2]Abs_rel diff'!$BJ$287 -> 117.8
H34: ='[2]Abs_rel diff'!$CH$285 -> (10.0 - | I34: ='[2]Abs_rel diff'!$CI$285 -> 19.7) | L34: ='[2]Abs_rel diff'!$CH$287 -> (6.6 - | M34: ='[2]Abs_rel diff'!$CI$287 -> 9.7) | W34: ='[2]Abs_rel diff'!$BK$285 -> (139.9 - | X34: ='[2]Abs_rel diff'!$BL$285 -> 159.2) | AA34: ='[2]Abs_rel diff'!$BK$287 -> (109.9 - | AB34: ='[2]Abs_rel diff'!$BL$287 -> 124.9)
C35: Hungary | D35: ='[2]Abs_rel diff'!$CG$164 -> 7.4 | H35: ='[2]Abs_rel diff'!$CG$165 -> 8.5 | L35: ='[2]Abs_rel diff'!$CG$166 -> 7.2 | R35: Hungary | S35: ='[2]Abs_rel diff'!$BJ$164 -> 79.0 | W35: ='[2]Abs_rel diff'!$BJ$165 -> 235.2 | AA35: ='[2]Abs_rel diff'!$BJ$166 -> 299.9
D36: ='[2]Abs_rel diff'!$CH$164 -> (6.0 - | E36: ='[2]Abs_rel diff'!$CI$164 -> 9.1) | H36: ='[2]Abs_rel diff'!$CH$165 -> (7.6 - | I36: ='[2]Abs_rel diff'!$CI$165 -> 9.5) | L36: ='[2]Abs_rel diff'!$CH$166 -> (6.7 - | M36: ='[2]Abs_rel diff'!$CI$166 -> 7.8) | S36: ='[2]Abs_rel diff'!$BK$164 -> (74.2 - | T36: ='[2]Abs_rel diff'!$BL$164 -> 84.0) | W36: ='[2]Abs_rel diff'!$BK$165 -> (227.5 - | X36: ='[2]Abs_rel diff'!$BL$165 -> 242.2) | AA36: ='[2]Abs_rel diff'!$BK$166 -> (292.6 - | AB36: ='[2]Abs_rel diff'!$BL$166 -> 307.4)
C37: Lithuania | F37: ='[2]Abs_rel diff'!$CJ$223 -> 3.3 | L37: ='[2]Abs_rel diff'!$CJ$224 -> 3.2 | N37: ='[2]Abs_rel diff'!$CJ$225 -> 4.2 | R37: Lithuania | U37: ='[2]Abs_rel diff'!$BM$223 -> 26.8 | AA37: ='[2]Abs_rel diff'!$BM$224 -> 90.4 | AC37: ='[2]Abs_rel diff'!$BM$225 -> 137.7
F38: ='[2]Abs_rel diff'!$CK$223 -> (2.2 - | G38: ='[2]Abs_rel diff'!$CL$223 -> 4.9) | L38: ='[2]Abs_rel diff'!$CK$224 -> (2.7 - | M38: ='[2]Abs_rel diff'!$CL$224 -> 3.9) | N38: ='[2]Abs_rel diff'!$CK$225 -> (3.5 - | O38: ='[2]Abs_rel diff'!$CL$225 -> 5.0) | U38: ='[2]Abs_rel diff'!$BN$223 -> (21.8 - | V38: ='[2]Abs_rel diff'!$BO$223 -> 31.7) | AA38: ='[2]Abs_rel diff'!$BN$224 -> (79.0 - | AB38: ='[2]Abs_rel diff'!$BO$224 -> 101.3) | AC38: ='[2]Abs_rel diff'!$BN$225 -> (125.1 - | AD38: ='[2]Abs_rel diff'!$BO$225 -> 148.2)
C39: Estonia | F39: ='[2]Abs_rel diff'!$CJ$106 -> 4.4 | L39: ='[2]Abs_rel diff'!$CJ$107 -> 4.1 | R39: Estonia | U39: ='[2]Abs_rel diff'!$BM$106 -> 45.5 | AA39: ='[2]Abs_rel diff'!$BM$107 -> 104.1
F40: ='[2]Abs_rel diff'!$CK$106 -> 3.1 | G40: ='[2]Abs_rel diff'!$CL$106 -> 6.4 | L40: ='[2]Abs_rel diff'!$CK$107 -> 3.2 | M40: ='[2]Abs_rel diff'!$CL107 -> 5.1 | U40: ='[2]Abs_rel diff'!$BN$106 -> 36.9 | V40: ='[2]Abs_rel diff'!$BO$106 -> 54.3 | AA40: ='[2]Abs_rel diff'!$BN$107 -> 89.6 | AB40: ='[2]Abs_rel diff'!$BO$107 -> 116.9
B42: N/E: not estimable
B43: Trend data for England & Wales only available for 2000s, because only two levels of education were available for 1980s and 1990s
B44: Trend data for Belgium, Czech Republic and Poland not available because data on alcoholic liver cirrhosis were missing in earlier periods
B45: In Lithuania and Estonia, only mortality due to alcoholic liver cirrhosis and alcohol poisoning were included in this trend table, because compoarable data on other alcohol-related causes were not available for earlier time points.

Sheet Table 4cd
A1: Table 3. Trends in educational inequalities in mortality from alcohol-related causes, ca. 1980-2010, by country and sex (Relative Index of Inequality and Slope Index of Inequality, with 95% Confidence Intervals)
A2: c. Women Relative Index of Inequality | Q2: d. Women Slope Index of Inequality
D4: Relative Index of Inequality | S4: Slope Index of Inequality
D5: (95% CI) | S5: (95% CI)
D6: 1980-4 | F6: 1985-9 | H6: 1990-4 | J6: 1995-9 | L6: 2000-4 | N6: 2005-9 | S6: 1980-4 | U6: 1985-9 | W6: 1990-4 | Y6: 1995-9 | AA6: 2000-4 | AC6: 2005-9
B7: North | C7: Finland | D7: 1.7 | F7: 2.5 | H7: 3.6 | J7: 3.8 | L7: 4.7 | N7: 5.6 | Q7: North | R7: Finland | S7: 4.3 | U7: 10.4 | W7: 14.8 | Y7: 20.4 | AA7: 29.0 | AC7: 36.9
D8: (1.1 - | E8: 2.7) | F8: (1.8 - | G8: 3.6) | H8: (2.7 - | I8: 4.9) | J8: (2.9 - | K8: 4.8) | L8: (3.8 - | M8: 5.8) | N8: (4.7 - | O8: 6.8) | S8: (1.0 - | T8: 7.4) | U8: (6.3 - | V8: 13.9) | W8: (11.8 - | X8: 17.8) | Y8: (17.1 - | Z8: 23.6) | AA8: (26.0 - | AB8: 32.0) | AC8: (33.8 - | AD8: 40.1)
C9: Sweden | H9: 3.8 | J9: 3.9 | L9: 3.8 | N9: 4.3 | R9: Sweden | W9: 7.3 | Y9: 4.8 | AA9: 4.9 | AC9: 7.9
H10: (2.6 - | I10: 5.6) | J10: (2.8 - | K10: 5.3) | L10: (2.9 - | M10: 5.0) | N10: (3.2 - | O10: 5.8) | W10: (4.6 - | X10: 10.0) | Y10: (1.8 - | Z10: 7.5) | AA10: (1.7 - | AB10: 7.7) | AC10: (4.4 - | AD10: 10.8)
C11: Norway | D11: 1.5 | F11: 1.2 | H11: 2.4 | J11: 3.1 | L11: 4.9 | N11: 4.7 | R11: Norway | S11: 3.7 | U11: 2.1 | W11: 8.0 | Y11: 9.5 | AA11: 11.2 | AC11: 11.7
D12: (1.0 - | E12: 2.3) | F12: (0.8 - | G12: 1.8) | H12: (1.6 - | I12: 3.6) | J12: (2.1 - | K12: 4.6) | L12: (3.3 - | M12: 7.4) | N12: (2.9 - | O12: 7.7) | S12: (-0.0 - | T12: 6.8) | U12: (-1.9 - | V12: 6.5) | W12: (4.2 - | X12: 11.1) | Y12: (6.5 - | Z12: 12.8) | AA12: (9.0 - | AB12: 12.9) | AC12: (9.4 - | AD12: 14.3)
C13: Denmark | H13: 2.3 | J13: 2.8 | L13: 3.8 | R13: Denmark | W13: 15.0 | Y13: 21.4 | AA13: 30.2
H14: (1.7 - | I14: 2.9) | J14: (2.3 - | K14: 3.6) | L14: (3.1 - | M14: 4.6) | W14: (10.8 - | X14: 19.1) | Y14: (17.3 - | Z14: 25.5) | AA14: (26.5 - | AB14: 33.7)
B15: West | C15: Scotland (UK) | H15: 4.8 | J15: 6.9 | L15: 2.7 | N15: 1.6 | Q15: West | R15: Scotland (UK) | W15: 5.6 | Y15: 10.1 | AA15: 27.6 | AC15: 7.4
H16: (0.1 - | I16: 310.0) | J16: (0.1 - | K16: 423.0) | L16: (0.9 - | M16: 8.1) | N16: (0.5 - | O16: 6.0) | W16: (-4.1 - | X16: 11.8) | Y16: (-5.7 - | Z16: 18.2) | AA16: (-1.2 - | AB16: 50.4) | AC16: (-10.2 - | AD16: 24.0)
C17: England & Wales (UK) | L17: 1.8 | N17: 1.5 | R17: England & Wales (UK) | AA17: 4.9 | AC17: 4.2
L18: (0.6 - | M18: 5.3) | N18: (0.5 - | O18: 4.4) | AA18: (-4.0 - | AB18: 12.9) | AC18: (-5.4 - | AD18: 14.3)
C19: France | D19: 6.6 | F19: 7.1 | H19: 2.2 | J19: 6.1 | L19: 4.5 | N19: 10.3 | R19: France | S19: 28.7 | U19: 30.7 | W19: 10.6 | Y19: 22.1 | AA19: 19.1 | AC19: 18.0
D20: (1.2 - | E20: 44.8) | F20: (1.6 - | G20: 31.6) | H20: (0.7 - | I20: 6.5) | J20: (1.9 - | K20: 19.8) | L20: (1.8 - | M20: 11.4) | N20: (2.9 - | O20: 36.5) | S20: (5.8 - | T20: 42.2) | U20: (12.4 - | V20: 42.6) | W20: (-2.4 - | X20: 22.5) | Y20: (10.9 - | Z20: 30.8) | AA20: (7.9 - | AB20: 27.2) | AC20: (10.7 - | AD20: 24.0)
C21: Switzerland | H21: 2.1 | J21: 1.6 | L21: 1.7 | N21: 2.3 | R21: Switzerland | W21: 7.3 | Y21: 4.8 | AA21: 4.9 | AC21: 7.9
H22: (1.6 - | I22: 2.8) | J22: (1.2 - | K22: 2.0) | L22: (1.2 - | M22: 2.2) | N22: (1.6 - | O22: 3.3) | W22: (4.6 - | X22: 10.0) | Y22: (1.8 - | Z22: 7.5) | AA22: (1.7 - | AB22: 7.7) | AC22: (4.4 - | AD22: 10.8)
C23: Austria | D23: 5.3 | H23: 1.3 | L23: 1.4 | R23: Austria | S23: 3.7 | W23: 1.0 | AA23: 1.8
D24: (1.3 - | E24: 22.2) | H24: (0.5 - | I24: 3.7) | L24: (0.7 - | M24: 3.1) | S24: (1.2 - | T24: 5.6) | W24: (-1.8 - | X24: 4.0) | AA24: (-1.8 - | AB24: 5.3)
B25: South | C25: Spain (Barcelona) | H25: 4.8 | J25: 21.8 | L25: 7.9 | N25: 5.6 | Q25: South | R25: Spain (Barcelona) | W25: 2.7 | Y25: 4.5 | AA25: 3.4 | AC25: 3.4
H26: (0.8 - | I26: 27.9) | J26: (3.0 - | K26: 157.5) | L26: (1.7 - | M26: 36.8) | N26: (1.3 - | O26: 24.2) | W26: (0.2 - | X26: 4.3) | Y26: (2.8 - | Z26: 6.0) | AA26: (1.4 - | AB26: 4.9) | AC26: (1.0 - | AD26: 5.1)
C27: Spain (Basque country) | J27: 3.1 | L27: 3.7 | R27: Spain (Basque country) | Y27: 2.2 | AA27: 2.1
J28: (0.6 - | K28: 16.0) | L28: (0.7 - | M28: 18.4) | Y28: (-1.1 - | Z28: 4.4) | AA28: (-0.3 - | AB28: 3.6)
C29: Spain (Madrid) | J29: 1.1 | L29: 5.4 | R29: Spain (Madrid) | Y29: 0.1 | AA29: 1.5
J30: (0.2 - | K30: 7.8) | L30: (0.5 - | M30: 53.3) | Y30: (-1.7 - | Z30: 2.3) | AA30: (0.1 - | AB30: 2.7)
C31: Italy (Turin) | D31: 4.4 | F31: 0.5 | H31: 3.0 | J31: 61.0 | L31: 3.0 | N31: 3.0 | R31: Italy (Turin) | S31: 1.4 | U31: -1.2 | W31: 1.5 | Y31: 3.4 | AA31: 2.5 | AC31: 1.0
D32: (0.1 - | E32: 273.3) | F32: (0.0 - | G32: 4.2) | H32: (0.2 - | I32: 38.7) | J32: (0.9 - | K32: 3955.3) | L32: (0.5 - | M32: 16.8) | N32: (0.2 - | O32: 49.7) | S32: (-1.2 - | T32: 3.1) | U32: (-3.2 - | V32: 3.0) | W32: (-1.5 - | X32: 3.8) | Y32: (1.6 - | Z32: 5.0) | AA32: (-0.1 - | AB32: 5.0) | AC32: (-1.7 - | AD32: 2.8)
B33: East | C33: Slovenia | H33: 10.0 | L33: 8.5 | Q33: East | R33: Slovenia | W33: 39.6 | AA33: 32.2
H34: (5.4 - | I34: 18.3) | L34: (5.7 - | M34: 12.7) | W34: (33.5 - | X34: 45.0) | AA34: (28.0 - | AB34: 36.2)
C35: Hungary | D35: 5.1 | H35: 4.7 | L35: 4.4 | R35: Hungary | S35: 17.4 | W35: 55.0 | AA35: 67.0
D36: (3.3 - | E36: 8.1) | H36: (3.7 - | I36: 5.3) | L36: (4.2 - | M36: 5.4) | S36: (13.9 - | T36: 20.3) | W36: (50.2 - | X36: 59.8) | AA36: (62.9 - | AB36: 70.8)
C37: Lithuania | F37: 8.0 | L37: 6.9 | N37: 6.6 | R37: Lithuania | U37: 9.0 | AA37: 40.4 | AC37: 53.3
F38: (3.5 - | G38: 18.3) | L38: (5.1 - | M38: 9.3) | N38: (4.9 - | O38: 8.7) | U38: (6.6 - | V38: 10.9) | AA38: (35.7 - | AB38: 44.7) | AC38: (47.3 - | AD38: 58.4)
C39: Estonia | F39: 8.1 | L39: 8.8 | R39: Estonia | U39: 12.6 | AA39: 42.4
F40: 4.0 | G40: 16.8 | L40: 5.9 | M40: 13.2 | U40: 9.5 | V40: 15.6 | AA40: 36.4 | AB40: 47.7
B42: N/E: not estimable
B43: Trend data for England & Wales only available for 2000s, because only two levels of education were available for 1980s and 1990s
B44: Trend data for Belgium, Czech Republic and Poland not available because data on alcoholic liver cirrhosis were missing in earlier periods
B45: In Lithuania and Estonia, only mortality due to alcoholic liver cirrhosis and alcohol poisoning were included in this trend table, because compoarable data on other alcohol-related causes were not available for earlier time points.

Sheet Figure 2a
A1: Figure 2. Trends in mortality from alcohol-related causes among low- and high-educated men, ca. 1980-2010, by country
A2: the number of deaths is smaller than 5
B4: EDUCATION
D5: Men | J5: Women
D6: low education | G6: high education | J6: low education | M6: high education
B7: Country | C7: Period | D7: ASMR | E7: 95%-CI | G7: ASMR | H7: 95%-CI | J7: ASMR | K7: 95%-CI | M7: ASMR | N7: 95%-CI
A8: NORTH | B8: Finland | C8: 1980-1984 | D8: =[2]ALCOHOL!D120 -> 57.6 | E8: =[2]ALCOHOL!E120 -> (55.0 - | F8: =[2]ALCOHOL!F120 -> 60.2) | G8: =[2]ALCOHOL!J120 -> 30.8 | H8: =[2]ALCOHOL!K120 -> (26.5 - | I8: =[2]ALCOHOL!L120 -> 35.1) | J8: =[2]ALCOHOL!D128 -> 8.4 | K8: =[2]ALCOHOL!E128 -> (7.4 - | L8: =[2]ALCOHOL!F128 -> 9.3) | M8: =[2]ALCOHOL!J128 -> 4.8 | N8: =[2]ALCOHOL!K128 -> (3.2 - | O8: =[2]ALCOHOL!L128 -> 6.6)
C9: 1985-1989 | D9: =[2]ALCOHOL!D121 -> 76.2 | E9: =[2]ALCOHOL!E121 -> (73.1 - | F9: =[2]ALCOHOL!F121 -> 79.3) | G9: =[2]ALCOHOL!J121 -> 42.7 | H9: =[2]ALCOHOL!K121 -> (38.0 - | I9: =[2]ALCOHOL!L121 -> 47.4) | J9: =[2]ALCOHOL!D129 -> 14.4 | K9: =[2]ALCOHOL!E129 -> (13.0 - | L9: =[2]ALCOHOL!F129 -> 15.9) | M9: =[2]ALCOHOL!J129 -> 9.3 | N9: =[2]ALCOHOL!K129 -> (7.2 - | O9: =[2]ALCOHOL!L129 -> 11.7)
C10: 1990-1994 | D10: =[2]ALCOHOL!D122 -> 81.0 | E10: =[2]ALCOHOL!E122 -> (77.7 - | F10: =[2]ALCOHOL!F122 -> 84.6) | G10: =[2]ALCOHOL!J122 -> 35.7 | H10: =[2]ALCOHOL!K122 -> (32.1 - | I10: =[2]ALCOHOL!L122 -> 39.3) | J10: =[2]ALCOHOL!D130 -> 17.3 | K10: =[2]ALCOHOL!E130 -> (15.8 - | L10: =[2]ALCOHOL!F130 -> 18.7) | M10: =[2]ALCOHOL!J130 -> 8.2 | N10: =[2]ALCOHOL!K130 -> (6.3 - | O10: =[2]ALCOHOL!L130 -> 10.2)
C11: 1995-1999 | D11: =[2]ALCOHOL!D123 -> 101.7 | E11: =[2]ALCOHOL!E123 -> (97.8 - | F11: =[2]ALCOHOL!F123 -> 105.9) | G11: =[2]ALCOHOL!J123 -> 37.4 | H11: =[2]ALCOHOL!K123 -> (34.3 - | I11: =[2]ALCOHOL!L123 -> 40.6) | J11: =[2]ALCOHOL!D131 -> 25.3 | K11: =[2]ALCOHOL!E131 -> (23.1 - | L11: =[2]ALCOHOL!F131 -> 27.7) | M11: =[2]ALCOHOL!J131 -> 11.4 | N11: =[2]ALCOHOL!K131 -> (9.3 - | O11: =[2]ALCOHOL!L131 -> 13.5)
C12: 2000-2004 | D12: =[2]ALCOHOL!D124 -> 113.3 | E12: =[2]ALCOHOL!E124 -> (109.1 - | F12: =[2]ALCOHOL!F124 -> 117.9) | G12: =[2]ALCOHOL!J124 -> 44.8 | H12: =[2]ALCOHOL!K124 -> (41.8 - | I12: =[2]ALCOHOL!L124 -> 48.1) | J12: =[2]ALCOHOL!D132 -> 36.1 | K12: =[2]ALCOHOL!E132 -> (33.3 - | L12: =[2]ALCOHOL!F132 -> 39.1) | M12: =[2]ALCOHOL!J132 -> 11.8 | N12: =[2]ALCOHOL!K132 -> (10.2 - | O12: =[2]ALCOHOL!L132 -> 13.5)
C13: 2005-2009 | D13: =[2]ALCOHOL!D125 -> 144.6 | E13: =[2]ALCOHOL!E125 -> (139.3 - | F13: =[2]ALCOHOL!F125 -> 150.5) | G13: =[2]ALCOHOL!J125 -> 48.6 | H13: =[2]ALCOHOL!K125 -> (45.4 - | I13: =[2]ALCOHOL!L125 -> 51.5) | J13: =[2]ALCOHOL!D133 -> 50.0 | K13: =[2]ALCOHOL!E133 -> (46.0 - | L13: =[2]ALCOHOL!F133 -> 54.1) | M13: =[2]ALCOHOL!J133 -> 13.8 | N13: =[2]ALCOHOL!K133 -> (12.2 - | O13: =[2]ALCOHOL!L133 -> 15.4)
B14: Sweden | C14: 1980-1984
C15: 1985-1989
C16: 1990-1994 | D16: =[2]ALCOHOL!D338 -> 35.1 | E16: =[2]ALCOHOL!E338 -> (33.1 - | F16: =[2]ALCOHOL!F338 -> 37.3) | G16: =[2]ALCOHOL!J338 -> 8.7 | H16: =[2]ALCOHOL!K338 -> (7.1 - | I16: =[2]ALCOHOL!L338 -> 10.4) | J16: =[2]ALCOHOL!D342 -> 8.0 | K16: =[2]ALCOHOL!E342 -> (6.9 - | L16: =[2]ALCOHOL!F342 -> 9.0) | M16: =[2]ALCOHOL!J342 -> 2.8 | N16: =[2]ALCOHOL!K342 -> (1.8 - | O16: =[2]ALCOHOL!L342 -> 3.7)
C17: 1995-1999 | D17: =[2]ALCOHOL!D339 -> 34.9 | E17: =[2]ALCOHOL!E339 -> (32.9 - | F17: =[2]ALCOHOL!F339 -> 36.8) | G17: =[2]ALCOHOL!J339 -> 9.9 | H17: =[2]ALCOHOL!K339 -> (8.5 - | I17: =[2]ALCOHOL!L339 -> 11.4) | J17: =[2]ALCOHOL!D343 -> 9.5 | K17: =[2]ALCOHOL!E343 -> (8.3 - | L17: =[2]ALCOHOL!F343 -> 10.5) | M17: =[2]ALCOHOL!J343 -> 3.0 | N17: =[2]ALCOHOL!K343 -> (2.3 - | O17: =[2]ALCOHOL!L343 -> 3.8)
C18: 2000-2004 | D18: =[2]ALCOHOL!D340 -> 37.5 | E18: =[2]ALCOHOL!E340 -> (35.3 - | F18: =[2]ALCOHOL!F340 -> 39.7) | G18: =[2]ALCOHOL!J340 -> 9.8 | H18: =[2]ALCOHOL!K340 -> (8.6 - | I18: =[2]ALCOHOL!L340 -> 11.2) | J18: =[2]ALCOHOL!D344 -> 11.5 | K18: =[2]ALCOHOL!E344 -> (10.4 - | L18: =[2]ALCOHOL!F344 -> 12.8) | M18: =[2]ALCOHOL!J344 -> 3.9 | N18: =[2]ALCOHOL!K344 -> (3.1 - | O18: =[2]ALCOHOL!L344 -> 4.8)
C19: 2005-2009 | D19: =[2]ALCOHOL!D341 -> 35.4 | E19: =[2]ALCOHOL!E341 -> (32.9 - | F19: =[2]ALCOHOL!F341 -> 37.8) | G19: =[2]ALCOHOL!J341 -> 10.1 | H19: =[2]ALCOHOL!K341 -> (8.7 - | I19: =[2]ALCOHOL!L341 -> 11.3) | J19: =[2]ALCOHOL!D345 -> 12.1 | K19: =[2]ALCOHOL!E345 -> (10.7 - | L19: =[2]ALCOHOL!F345 -> 13.8) | M19: =[2]ALCOHOL!J345 -> 3.7 | N19: =[2]ALCOHOL!K345 -> (3.0 - | O19: =[2]ALCOHOL!L345 -> 4.5)
B20: Norway | C20: 1980-1984 | D20: =[2]ALCOHOL!D239 -> 45.3 | E20: =[2]ALCOHOL!E239 -> (41.9 - | F20: =[2]ALCOHOL!F239 -> 49.5) | G20: =[2]ALCOHOL!J239 -> 16.5 | H20: =[2]ALCOHOL!K239 -> (12.4 - | I20: =[2]ALCOHOL!L239 -> 20.8) | J20: =[2]ALCOHOL!D247 -> 10.4 | K20: =[2]ALCOHOL!E247 -> (9.0 - | L20: =[2]ALCOHOL!F247 -> 12.0) | M20: =[2]ALCOHOL!J247 -> 4.6 | N20: =[2]ALCOHOL!K247 -> (2.8 - | O20: =[2]ALCOHOL!L247 -> 7.3)
C21: 1985-1989 | D21: =[2]ALCOHOL!D240 -> 56.3 | E21: =[2]ALCOHOL!E240 -> (50.9 - | F21: =[2]ALCOHOL!F240 -> 60.8) | G21: =[2]ALCOHOL!J240 -> 17.4 | H21: =[2]ALCOHOL!K240 -> (13.3 - | I21: =[2]ALCOHOL!L240 -> 21.8) | J21: =[2]ALCOHOL!D248 -> 11.3 | K21: =[2]ALCOHOL!E248 -> (9.2 - | L21: =[2]ALCOHOL!F248 -> 13.3) | M21: =[2]ALCOHOL!J248 -> 5.8 | N21: =[2]ALCOHOL!K248 -> (3.2 - | O21: =[2]ALCOHOL!L248 -> 8.4)
C22: 1990-1994 | D22: =[2]ALCOHOL!D241 -> 55.2 | E22: =[2]ALCOHOL!E241 -> (50.9 - | F22: =[2]ALCOHOL!F241 -> 59.9) | G22: =[2]ALCOHOL!J241 -> 15.8 | H22: =[2]ALCOHOL!K241 -> (12.8 - | I22: =[2]ALCOHOL!L241 -> 18.5) | J22: =[2]ALCOHOL!D249 -> 13.5 | K22: =[2]ALCOHOL!E249 -> (11.5 - | L22: =[2]ALCOHOL!F249 -> 15.7) | M22: =[2]ALCOHOL!J249 -> 5.3 | N22: =[2]ALCOHOL!K249 -> (3.4 - | O22: =[2]ALCOHOL!L249 -> 7.1)
C23: 1995-1999 | D23: =[2]ALCOHOL!D242 -> 60.0 | E23: =[2]ALCOHOL!E242 -> (56.0 - | F23: =[2]ALCOHOL!F242 -> 66.1) | G23: =[2]ALCOHOL!J242 -> 15.7 | H23: =[2]ALCOHOL!K242 -> (13.0 - | I23: =[2]ALCOHOL!L242 -> 17.8) | J23: =[2]ALCOHOL!D250 -> 13.1 | K23: =[2]ALCOHOL!E250 -> (10.7 - | L23: =[2]ALCOHOL!F250 -> 15.9) | M23: =[2]ALCOHOL!J250 -> 3.5 | N23: =[2]ALCOHOL!K250 -> (2.1 - | O23: =[2]ALCOHOL!L250 -> 5.0)
C24: 2000-2004 | D24: =[2]ALCOHOL!D243 -> 50.0 | E24: =[2]ALCOHOL!E243 -> (46.0 - | F24: =[2]ALCOHOL!F243 -> 53.7) | G24: =[2]ALCOHOL!J243 -> 14.2 | H24: =[2]ALCOHOL!K243 -> (11.9 - | I24: =[2]ALCOHOL!L243 -> 16.8) | J24: =[2]ALCOHOL!D251 -> 14.4 | K24: =[2]ALCOHOL!E251 -> (12.4 - | L24: =[2]ALCOHOL!F251 -> 16.2) | M24: =[2]ALCOHOL!J251 -> 3.9 | N24: =[2]ALCOHOL!K251 -> (2.4 - | O24: =[2]ALCOHOL!L251 -> 5.5)
C25: 2005-2009 | D25: =[2]ALCOHOL!D244 -> 47.2 | E25: =[2]ALCOHOL!E244 -> (41.7 - | F25: =[2]ALCOHOL!F244 -> 54.0) | G25: =[2]ALCOHOL!J244 -> 11.9 | H25: =[2]ALCOHOL!K244 -> (9.4 - | I25: =[2]ALCOHOL!L244 -> 15.2) | J25: =[2]ALCOHOL!D252 -> 15.3 | K25: =[2]ALCOHOL!E252 -> (12.5 - | L25: =[2]ALCOHOL!F252 -> 18.0) | M25: =[2]ALCOHOL!J252 -> 4.6 | N25: =[2]ALCOHOL!K252 -> (3.3 - | O25: =[2]ALCOHOL!L252 -> 6.3)
B26: Denmark | C26: 1980-1984
C27: 1985-1989
C28: 1990-1994 | D28: =[2]ALCOHOL!D48 -> 65.4 | E28: =[2]ALCOHOL!E48 -> (62.3 - | F28: =[2]ALCOHOL!F48 -> 68.8) | G28: =[2]ALCOHOL!J48 -> 26.0 | H28: =[2]ALCOHOL!K48 -> (22.6 - | I28: =[2]ALCOHOL!L48 -> 29.4) | J28: =[2]ALCOHOL!D51 -> 22.5 | K28: =[2]ALCOHOL!E51 -> (20.8 - | L28: =[2]ALCOHOL!F51 -> 24.1) | M28: =[2]ALCOHOL!J51 -> 16.6 | N28: =[2]ALCOHOL!K51 -> (9.6 - | O28: =[2]ALCOHOL!L51 -> 26.2)
C29: 1995-1999 | D29: =[2]ALCOHOL!D49 -> 76.6 | E29: =[2]ALCOHOL!E49 -> (73.1 - | F29: =[2]ALCOHOL!F49 -> 80.7) | G29: =[2]ALCOHOL!J49 -> 35.3 | H29: =[2]ALCOHOL!K49 -> (30.1 - | I29: =[2]ALCOHOL!L49 -> 42.7) | J29: =[2]ALCOHOL!D52 -> 27.8 | K29: =[2]ALCOHOL!E52 -> (25.9 - | L29: =[2]ALCOHOL!F52 -> 29.8) | M29: =[2]ALCOHOL!J52 -> 13.3 | N29: =[2]ALCOHOL!K52 -> (10.9 - | O29: =[2]ALCOHOL!L52 -> 15.9)
C30: 2000-2004 | D30: =[2]ALCOHOL!D50 -> 106.7 | E30: =[2]ALCOHOL!E50 -> (102.3 - | F30: =[2]ALCOHOL!F50 -> 110.8) | G30: =[2]ALCOHOL!J50 -> 37.1 | H30: =[2]ALCOHOL!K50 -> (33.8 - | I30: =[2]ALCOHOL!L50 -> 40.6) | J30: =[2]ALCOHOL!D53 -> 36.5 | K30: =[2]ALCOHOL!E53 -> (34.3 - | L30: =[2]ALCOHOL!F53 -> 38.9) | M30: =[2]ALCOHOL!J53 -> 15.4 | N30: =[2]ALCOHOL!K53 -> (13.3 - | O30: =[2]ALCOHOL!L53 -> 18.0)
C31: 2005-2009
A32: WEST | B32: Scotland | C32: 1980-1984
C33: 1985-1989
C34: 1990-1994 | D34: =[2]ALCOHOL!D271 -> 11.7 | E34: =[2]ALCOHOL!E271 -> (7.8 - | F34: -
C35: 1995-1999 | D35: =[2]ALCOHOL!D272 -> 24.4 | E35: =[2]ALCOHOL!E272 -> (19.0 - | F35: =[2]ALCOHOL!F272 -> 30.8) | G35: =[2]ALCOHOL!J272 -> 15.1 | H35: =[2]ALCOHOL!K272 -> (0.0 | I35: =[2]ALCOHOL!L272 -> 35.5)
C36: 2000-2004 | D36: =[2]ALCOHOL!D273 -> 64.2 | E36: =[2]ALCOHOL!E273 -> (52.4 - | F36: =[2]ALCOHOL!F273 -> 76.4) | G36: =[2]ALCOHOL!J273 -> 24.3 | H36: =[2]ALCOHOL!K273 -> (13.5 - | I36: =[2]ALCOHOL!L273 -> 36.7) | J36: =[2]ALCOHOL!D277 -> 25.5 | K36: =[2]ALCOHOL!E277 -> (18.8 - | L36: =[2]ALCOHOL!F277 -> 33.0) | M36: =[2]ALCOHOL!J277 -> 11.9 | N36: =[2]ALCOHOL!K277 -> (4.4 - | O36: =[2]ALCOHOL!L277 -> 21.2)
C37: 2005-2009 | D37: =[2]ALCOHOL!D274 -> 47.1 | E37: =[2]ALCOHOL!E274 -> (36.9 - | F37: =[2]ALCOHOL!F274 -> 57.6) | G37: =[2]ALCOHOL!J274 -> 31.0 | H37: =[2]ALCOHOL!K274 -> (18.5 - | I37: =[2]ALCOHOL!L274 -> 45.3) | J37: =[2]ALCOHOL!D278 -> 20.6 | K37: =[2]ALCOHOL!E278 -> (13.8 - | L37: =[2]ALCOHOL!F278 -> 27.7) | M37: =[2]ALCOHOL!J278 -> 13.3 | N37: =[2]ALCOHOL!K278 -> (5.7 - | O37: =[2]ALCOHOL!L278 -> 22.4)
B38: England & Wales | C38: 1980-1984
C39: 1985-1989
C40: 1990-1994
C41: 1995-1999
C42: 2000-2004 | D42: =[2]ALCOHOL!D67 -> 21.9 | E42: =[2]ALCOHOL!E67 -> (16.7 - | F42: =[2]ALCOHOL!F67 -> 27.3) | G42: =[2]ALCOHOL!J67 -> 11.9 | H42: =[2]ALCOHOL!K67 -> (5.9 - | I42: =[2]ALCOHOL!L67 -> 18.8) | J42: =[2]ALCOHOL!D75 -> 10.4 | K42: =[2]ALCOHOL!E75 -> (7.3 - | L42: =[2]ALCOHOL!F75 -> 13.6) | M42: =[2]ALCOHOL!J75 -> 7.9 | N42: =[2]ALCOHOL!K75 -> (3.3 - | O42: =[2]ALCOHOL!L75 -> 13.4)
C43: 2005-2009 | D43: =[2]ALCOHOL!D68 -> 26.0 | E43: =[2]ALCOHOL!E68 -> (19.6 - | F43: =[2]ALCOHOL!F68 -> 32.6) | G43: =[2]ALCOHOL!J68 -> 11.9 | H43: =[2]ALCOHOL!K68 -> (5.8 - | I43: =[2]ALCOHOL!L68 -> 19.0) | J43: =[2]ALCOHOL!D76 -> 12.0 | K43: =[2]ALCOHOL!E76 -> (8.3 - | L43: =[2]ALCOHOL!F76 -> 16.6) | M43: =[2]ALCOHOL!J76 -> 9.8 | N43: =[2]ALCOHOL!K76 -> (3.9 - | O43: =[2]ALCOHOL!L76 -> 16.4)
B44: England & Wales2 | C44: 1980-1984 | D44: =[2]ALCOHOL!D86 -> 5.2 | E44: =[2]ALCOHOL!E86 -> (3.4 - | F44: =[2]ALCOHOL!F86 -> 7.2) | G44: =[2]ALCOHOL!J86 -> 5.8 | H44: =[2]ALCOHOL!K86 -> (1.2 - | I44: =[2]ALCOHOL!L86 -> 12.6) | J44: =[2]ALCOHOL!D94 -> 2.6 | K44: =[2]ALCOHOL!E94 -> (1.4 - | L44: =[2]ALCOHOL!F94 -> 4.1) | M44: =[2]ALCOHOL!J94 -> 2.9 | N44: =[2]ALCOHOL!K94 -> (0.0 | O44: =[2]ALCOHOL!L94 -> 8.7)
C45: 1985-1989 | D45: =[2]ALCOHOL!D87 -> 6.3 | E45: =[2]ALCOHOL!E87 -> (4.2 - | F45: =[2]ALCOHOL!F87 -> 8.3) | G45: =[2]ALCOHOL!J87 -> 7.0 | H45: =[2]ALCOHOL!K87 -> (1.6 - | I45: =[2]ALCOHOL!L87 -> 13.7) | J45: =[2]ALCOHOL!D95 -> 3.7 | K45: =[2]ALCOHOL!E95 -> (2.1 - | L45: =[2]ALCOHOL!F95 -> 5.4) | M45: =[2]ALCOHOL!J95 -> 4.4 | N45: =[2]ALCOHOL!K95 -> (0.0 | O45: =[2]ALCOHOL!L95 -> 12.4)
C46: 1990-1994 | D46: =[2]ALCOHOL!D88 -> 8.0 | E46: =[2]ALCOHOL!E88 -> (5.5 - | F46: =[2]ALCOHOL!F88 -> 10.6) | G46: =[2]ALCOHOL!J88 -> 5.9 | H46: =[2]ALCOHOL!K88 -> (1.4 - | I46: =[2]ALCOHOL!L88 -> 11.2) | J46: =[2]ALCOHOL!D96 -> 5.6 | K46: =[2]ALCOHOL!E96 -> (3.7 - | L46: =[2]ALCOHOL!F96 -> 7.7) | M46: =[2]ALCOHOL!J96 -> 6.2 | N46: =[2]ALCOHOL!K96 -> (1.6 - | O46: =[2]ALCOHOL!L96 -> 12.3)
C47: 1995-1999 | D47: =[2]ALCOHOL!D89 -> 14.7 | E47: =[2]ALCOHOL!E89 -> (11.2 - | F47: =[2]ALCOHOL!F89 -> 18.8) | G47: =[2]ALCOHOL!J89 -> 13.1 | H47: =[2]ALCOHOL!K89 -> (7.4 - | I47: =[2]ALCOHOL!L89 -> 20.4) | J47: =[2]ALCOHOL!D97 -> 8.3 | K47: =[2]ALCOHOL!E97 -> (6.0 - | L47: =[2]ALCOHOL!F97 -> 11.1) | M47: =[2]ALCOHOL!J97 -> 7.1 | N47: =[2]ALCOHOL!K97 -> (2.2 - | O47: =[2]ALCOHOL!L97 -> 13.2)
C48: 2000-2004 | D48: =[2]ALCOHOL!D90 -> 19.6 | E48: =[2]ALCOHOL!E90 -> (15.7 - | F48: =[2]ALCOHOL!F90 -> 23.9) | G48: =[2]ALCOHOL!J90 -> 11.9 | H48: =[2]ALCOHOL!K90 -> (6.1 - | I48: =[2]ALCOHOL!L90 -> 18.8) | J48: =[2]ALCOHOL!D98 -> 9.4 | K48: =[2]ALCOHOL!E98 -> (6.9 - | L48: =[2]ALCOHOL!F98 -> 11.9) | M48: =[2]ALCOHOL!J98 -> 7.9 | N48: =[2]ALCOHOL!K98 -> (3.3 - | O48: =[2]ALCOHOL!L98 -> 13.3)
C49: 2005-2009 | D49: =[2]ALCOHOL!D91 -> 23.1 | E49: =[2]ALCOHOL!E91 -> (18.2 - | F49: =[2]ALCOHOL!F91 -> 28.8) | G49: =[2]ALCOHOL!J91 -> 11.9 | H49: =[2]ALCOHOL!K91 -> (5.2 - | I49: =[2]ALCOHOL!L91 -> 18.5) | J49: =[2]ALCOHOL!D99 -> 11.4 | K49: =[2]ALCOHOL!E99 -> (8.1 - | L49: =[2]ALCOHOL!F99 -> 15.1) | M49: =[2]ALCOHOL!J99 -> 9.8 | N49: =[2]ALCOHOL!K99 -> (3.9 - | O49: =[2]ALCOHOL!L99 -> 16.1)
B50: Belgium | C50: 1980-1984
C51: 1985-1989
C52: 1990-1994 | D52: =[2]ALCOHOLcomp!D20 -> 8.8 | E52: =[2]ALCOHOLcomp!E20 -> (8.1 - | F52: =[2]ALCOHOLcomp!F20 -> 9.5) | G52: =[2]ALCOHOLcomp!J20 -> 5.6 | H52: =[2]ALCOHOLcomp!K20 -> (4.4 - | I52: =[2]ALCOHOLcomp!L20 -> 7.0) | J52: =[2]ALCOHOLcomp!D25 -> 2.4 | K52: =[2]ALCOHOLcomp!E25 -> (2.1 - | L52: =[2]ALCOHOLcomp!F25 -> 2.8) | M52: =[2]ALCOHOLcomp!J25 -> 2.2 | N52: =[2]ALCOHOLcomp!K25 -> (1.2 - | O52: =[2]ALCOHOLcomp!L25 -> 3.1)
C53: 1995-1999
C54: 2000-2004 | D54: =[2]ALCOHOLcomp!D24 -> 0.0 | E54: =[2]ALCOHOLcomp!E24 -> (0.0 | F54: =[2]ALCOHOLcomp!F24 -> 0.0) | G54: =[2]ALCOHOLcomp!J24 -> 0.0 | H54: =[2]ALCOHOLcomp!K24 -> (0.0 | I54: =[2]ALCOHOLcomp!L24 -> 0.0) | J54: =[2]ALCOHOLcomp!D29 -> 13.0 | K54: =[2]ALCOHOLcomp!E29 -> (11.9 - | L54: =[2]ALCOHOLcomp!F29 -> 14.1) | M54: =[2]ALCOHOLcomp!J29 -> 0.0 | N54: =[2]ALCOHOLcomp!K29 -> (0.0 | O54: =[2]ALCOHOLcomp!L29 -> 0.0)
C55: 2005-2009
B56: France | C56: 1980-1984 | D56: =([2]ALCOHOL!D142+[2]ALCOHOL!D143)/2 -> 74.2 | E56: =([2]ALCOHOL!E142+[2]ALCOHOL!E143)/2 -> (62.5 - | F56: =([2]ALCOHOL!F142+[2]ALCOHOL!F143)/2 -> 86.7) | G56: =([2]ALCOHOL!J142+[2]ALCOHOL!J143)/2 -> 10.7 | H56: =([2]ALCOHOL!K142+[2]ALCOHOL!K143)/2 -> (2.0 - | I56: =([2]ALCOHOL!L142+[2]ALCOHOL!L143)/2 -> 24.5) | J56: =([2]ALCOHOL!D150+[2]ALCOHOL!D151)/2 -> 22.1 | K56: =([2]ALCOHOL!E150+[2]ALCOHOL!E151)/2 -> (16.5 - | L56: =([2]ALCOHOL!F150+[2]ALCOHOL!F151)/2 -> 28.2 | M56: =([2]ALCOHOL!J150+[2]ALCOHOL!J151)/2 -> 8.6 | N56: =([2]ALCOHOL!K150+[2]ALCOHOL!K151)/2 -> (0.0 | O56: =([2]ALCOHOL!L150+[2]ALCOHOL!L151)/2 -> 25.8)
C57: 1985-1989 | D57: =([2]ALCOHOL!D143+[2]ALCOHOL!D144)/2 -> 74.6 | E57: =([2]ALCOHOL!E143+[2]ALCOHOL!E144)/2 -> (64.3 - | F57: =([2]ALCOHOL!F143+[2]ALCOHOL!F144)/2 -> 86.1) | G57: =([2]ALCOHOL!J143+[2]ALCOHOL!J144)/2 -> 20.4 | H57: =([2]ALCOHOL!K143+[2]ALCOHOL!K144)/2 -> (5.9 - | I57: =([2]ALCOHOL!L143+[2]ALCOHOL!L144)/2 -> 39.5) | J57: =([2]ALCOHOL!D151+[2]ALCOHOL!D152)/2 -> 23.6 | K57: =([2]ALCOHOL!E151+[2]ALCOHOL!E152)/2 -> (18.4 - | L57: =([2]ALCOHOL!F151+[2]ALCOHOL!F152)/2 -> 29.4) | M57: =([2]ALCOHOL!J151+[2]ALCOHOL!J152)/2 -> 0.0 | N57: =([2]ALCOHOL!K151+[2]ALCOHOL!K152)/2 -> (0.0 | O57: =([2]ALCOHOL!L151+[2]ALCOHOL!L152)/2 -> 0.0)
C58: 1990-1994 | D58: =[2]ALCOHOL!D145 -> 59.3 | E58: =[2]ALCOHOL!E145 -> (50.2 - | F58: =[2]ALCOHOL!F145 -> 68.5) | G58: =[2]ALCOHOL!J145 -> 7.2 | H58: =[2]ALCOHOL!K145 -> (1.9 - | I58: =[2]ALCOHOL!L145 -> 14.0) | J58: =[2]ALCOHOL!D153 -> 15.2 | K58: =[2]ALCOHOL!E153 -> (11.3 - | L58: =[2]ALCOHOL!F153 -> 19.3) | M58: =[2]ALCOHOL!J153 -> 10.1 | N58: =[2]ALCOHOL!K153 -> (0.0 | O58: =[2]ALCOHOL!L153 -> 24.6)
C59: 1995-1999 | D59: =[2]ALCOHOL!D146 -> 64.7 | E59: =[2]ALCOHOL!E146 -> (54.4 - | F59: =[2]ALCOHOL!F146 -> 76.4) | G59: =[2]ALCOHOL!J146 -> 7.0 | H59: =[2]ALCOHOL!K146 -> (1.2 - | I59: =[2]ALCOHOL!L146 -> 15.1) | J59: =[2]ALCOHOL!D154 -> 20.2 | K59: =[2]ALCOHOL!E154 -> (14.7 - | L59: =[2]ALCOHOL!F154 -> 26.0) | M59: =[2]ALCOHOL!J154 -> 0.0 | N59: =[2]ALCOHOL!K154 -> (0.0 | O59: =[2]ALCOHOL!L154 -> 0.0)
C60: 2000-2004 | D60: =[2]ALCOHOL!D147 -> 59.5 | E60: =[2]ALCOHOL!E147 -> (50.2 - | F60: =[2]ALCOHOL!F147 -> 68.4) | G60: =[2]ALCOHOL!J147 -> 15.6 | H60: =[2]ALCOHOL!K147 -> (7.1 - | I60: =[2]ALCOHOL!L147 -> 24.4) | J60: =[2]ALCOHOL!D155 -> 20.4 | K60: =[2]ALCOHOL!E155 -> (15.0 - | L60: =[2]ALCOHOL!F155 -> 25.7) | M60: =[2]ALCOHOL!J155 -> 7.6 | N60: =[2]ALCOHOL!K155 -> (1.7 - | O60: =[2]ALCOHOL!L155 -> 15.3)
C61: 2005-2009 | D61: =[2]ALCOHOL!D148 -> 57.5 | E61: =[2]ALCOHOL!E148 -> (45.4 - | F61: =[2]ALCOHOL!F148 -> 69.5) | G61: =[2]ALCOHOL!J148 -> 16.3 | H61: =[2]ALCOHOL!K148 -> (8.1 - | I61: =[2]ALCOHOL!L148 -> 25.9) | J61: =[2]ALCOHOL!D156 -> 16.5 | K61: =[2]ALCOHOL!E156 -> (11.7 - | L61: =[2]ALCOHOL!F156 -> 22.4) | M61: =[2]ALCOHOL!J156 -> 1.1 | N61: =[2]ALCOHOL!K156 -> (0.0 | O61: =[2]ALCOHOL!L156 -> 3.4)
B62: Switzerland | C62: 1980-1984
C63: 1985-1989
C64: 1990-1994 | D64: =[2]ALCOHOL!D353 -> 55.3 | E64: =[2]ALCOHOL!E353 -> (51.0 - | F64: =[2]ALCOHOL!F353 -> 59.4) | G64: =[2]ALCOHOL!J353 -> 14.1 | H64: =[2]ALCOHOL!K353 -> (12.0 - | I64: =[2]ALCOHOL!L353 -> 16.3) | J64: =[2]ALCOHOL!D357 -> 13.1 | K64: =[2]ALCOHOL!E357 -> (11.8 - | L64: =[2]ALCOHOL!F357 -> 14.5) | M64: =[2]ALCOHOL!J357 -> 8.5 | N64: =[2]ALCOHOL!K357 -> (5.6 - | O64: =[2]ALCOHOL!L357 -> 11.6)
C65: 1995-1999 | D65: =[2]ALCOHOL!D354 -> 54.3 | E65: =[2]ALCOHOL!E354 -> (49.8 - | F65: =[2]ALCOHOL!F354 -> 59.2) | G65: =[2]ALCOHOL!J354 -> 17.0 | H65: =[2]ALCOHOL!K354 -> (14.9 - | I65: =[2]ALCOHOL!L354 -> 19.1) | J65: =[2]ALCOHOL!D358 -> 13.0 | K65: =[2]ALCOHOL!E358 -> (11.5 - | L65: =[2]ALCOHOL!F358 -> 14.6) | M65: =[2]ALCOHOL!J358 -> 7.4 | N65: =[2]ALCOHOL!K358 -> (5.3 - | O65: =[2]ALCOHOL!L358 -> 10.0)
C66: 2000-2004 | D66: =[2]ALCOHOL!D355 -> 50.9 | E66: =[2]ALCOHOL!E355 -> (46.7 - | F66: =[2]ALCOHOL!F355 -> 55.3) | G66: =[2]ALCOHOL!J355 -> 12.1 | H66: =[2]ALCOHOL!K355 -> (10.6 - | I66: =[2]ALCOHOL!L355 -> 13.6) | J66: =[2]ALCOHOL!D359 -> 11.1 | K66: =[2]ALCOHOL!E359 -> (9.7 - | L66: =[2]ALCOHOL!F359 -> 12.5) | M66: =[2]ALCOHOL!J359 -> 7.1 | N66: =[2]ALCOHOL!K359 -> (5.1 - | O66: =[2]ALCOHOL!L359 -> 9.5)
C67: 2005-2009 | D67: =[2]ALCOHOL!D356 -> 41.7 | E67: =[2]ALCOHOL!E356 -> (36.9 - | F67: =[2]ALCOHOL!F356 -> 47.1) | G67: =[2]ALCOHOL!J356 -> 12.5 | H67: =[2]ALCOHOL!K356 -> (10.6 - | I67: =[2]ALCOHOL!L356 -> 14.6) | J67: =[2]ALCOHOL!D360 -> 12.4 | K67: =[2]ALCOHOL!E360 -> (10.7 - | L67: =[2]ALCOHOL!F360 -> 14.2) | M67: =[2]ALCOHOL!J360 -> 5.3 | N67: =[2]ALCOHOL!K360 -> (3.4 - | O67: =[2]ALCOHOL!L360 -> 7.6)
B68: Austria | C68: 1980-1984 | D68: =[2]ALCOHOL!D7 -> 19.5 | E68: =[2]ALCOHOL!E7 -> (16.1 - | F68: =[2]ALCOHOL!F7 -> 23.0) | G68: =[2]ALCOHOL!J7 -> 3.6 | H68: =[2]ALCOHOL!K7 -> (0.0 | I68: =[2]ALCOHOL!L7 -> 9.4) | J68: =[2]ALCOHOL!D10 -> 3.3 | K68: =[2]ALCOHOL!E10 -> (2.3 - | L68: =[2]ALCOHOL!F10 -> 4.5) | M68: =[2]ALCOHOL!J10 -> 0.0 | N68: =[2]ALCOHOL!K10 -> (0.0 | O68: =[2]ALCOHOL!L10 -> 0.0)
C69: 1985-1989
C70: 1990-1994 | D70: =[2]ALCOHOL!D8 -> 30.8 | E70: =[2]ALCOHOL!E8 -> (26.3 - | F70: =[2]ALCOHOL!F8 -> 35.7) | G70: =[2]ALCOHOL!J8 -> 1.8 | H70: =[2]ALCOHOL!K8 -> (0.0 | I70: =[2]ALCOHOL!L8 -> 4.8) | J70: =[2]ALCOHOL!D11 -> 3.3 | K70: =[2]ALCOHOL!E11 -> (2.2 - | L70: =[2]ALCOHOL!F11 -> 4.4) | M70: =[2]ALCOHOL!J11 -> 0.0 | N70: =[2]ALCOHOL!K11 -> (0.0 | O70: =[2]ALCOHOL!L11 -> 0.0)
C71: 1995-1999
C72: 2000-2004 | D72: =[2]ALCOHOL!D9 -> 37.4 | E72: =[2]ALCOHOL!E9 -> (31.9 - | F72: =[2]ALCOHOL!F9 -> 43.6) | G72: =[2]ALCOHOL!J9 -> 6.2 | H72: =[2]ALCOHOL!K9 -> (2.2 - | I72: =[2]ALCOHOL!L9 -> 10.3) | J72: =[2]ALCOHOL!D12 -> 5.4 | K72: =[2]ALCOHOL!E12 -> (3.9 - | L72: =[2]ALCOHOL!F12 -> 7.1) | M72: =[2]ALCOHOL!J12 -> 0.4 | N72: =[2]ALCOHOL!K12 -> (0.0 | O72: =[2]ALCOHOL!L12 -> 1.1)
C73: 2005-2009
A74: SOUTH | B74: Barcelona | C74: 1980-1984
C75: 1985-1989
C76: 1990-1994 | D76: =[2]ALCOHOL!D301 -> 11.2 | E76: =[2]ALCOHOL!E301 -> (9.3 - | F76: =[2]ALCOHOL!F301 -> 13.2) | G76: =[2]ALCOHOL!J301 -> 2.4 | H76: =[2]ALCOHOL!K301 -> (0.8 - | I76: =[2]ALCOHOL!L301 -> 4.1) | J76: =[2]ALCOHOL!D305 -> 2.4 | K76: =[2]ALCOHOL!E305 -> (1.7 - | L76: =[2]ALCOHOL!F305 -> 3.3) | M76: =[2]ALCOHOL!J305 -> 0.4 | N76: =[2]ALCOHOL!K305 -> (0.0 | O76: =[2]ALCOHOL!L305 -> 1.4)
C77: 1995-1999 | D77: =[2]ALCOHOL!D302 -> 13.5 | E77: =[2]ALCOHOL!E302 -> (11.2 - | F77: =[2]ALCOHOL!F302 -> 15.8) | G77: =[2]ALCOHOL!J302 -> 4.9 | H77: =[2]ALCOHOL!K302 -> (2.8 - | I77: =[2]ALCOHOL!L302 -> 7.4) | J77: =[2]ALCOHOL!D306 -> 3.4 | K77: =[2]ALCOHOL!E306 -> (2.4 - | L77: =[2]ALCOHOL!F306 -> 4.4) | M77: =[2]ALCOHOL!J306 -> 1.1 | N77: =[2]ALCOHOL!K306 -> (0.0 | O77: =[2]ALCOHOL!L306 -> 2.4)
C78: 2000-2004 | D78: =[2]ALCOHOL!D303 -> 12.5 | E78: =[2]ALCOHOL!E303 -> (10.3 - | F78: =[2]ALCOHOL!F303 -> 14.7) | G78: =[2]ALCOHOL!J303 -> 2.2 | H78: =[2]ALCOHOL!K303 -> (0.9 - | I78: =[2]ALCOHOL!L303 -> 3.5) | J78: =[2]ALCOHOL!D307 -> 3.0 | K78: =[2]ALCOHOL!E307 -> (2.1 - | L78: =[2]ALCOHOL!F307 -> 4.1) | M78: =[2]ALCOHOL!J307 -> 0.7 | N78: =[2]ALCOHOL!K307 -> (0.0 | O78: =[2]ALCOHOL!L307 -> 2.0)
C79: 2005-2009 | D79: =[2]ALCOHOL!D304 -> 11.2 | E79: =[2]ALCOHOL!E304 -> (8.9 - | F79: =[2]ALCOHOL!F304 -> 13.7) | G79: =[2]ALCOHOL!J304 -> 3.0 | H79: =[2]ALCOHOL!K304 -> (1.3 - | I79: =[2]ALCOHOL!L304 -> 4.9) | J79: =[2]ALCOHOL!D308 -> 3.2 | K79: =[2]ALCOHOL!E308 -> (2.0 - | L79: =[2]ALCOHOL!F308 -> 4.4) | M79: =[2]ALCOHOL!J308 -> 0.7 | N79: =[2]ALCOHOL!K308 -> (0.0 | O79: =[2]ALCOHOL!L308 -> 1.7)
B80: Basque Country | C80: 1980-1984
C81: 1985-1989
C82: 1990-1994
C83: 1995-1999 | D83: =[2]ALCOHOL!D316 -> 9.9 | E83: =[2]ALCOHOL!E316 -> (8.6 - | F83: =[2]ALCOHOL!F316 -> 11.4) | G83: =[2]ALCOHOL!J316 -> 2.3 | H83: =[2]ALCOHOL!K316 -> (0.7 - | I83: =[2]ALCOHOL!L316 -> 4.2) | J83: =[2]ALCOHOL!D318 -> 2.4 | K83: =[2]ALCOHOL!E318 -> (1.7 - | L83: =[2]ALCOHOL!F318 -> 3.1) | M83: =[2]ALCOHOL!J318 -> 1.8 | N83: =[2]ALCOHOL!K318 -> (0.0 | O83: =[2]ALCOHOL!L318 -> 4.6)
C84: 2000-2004 | D84: =[2]ALCOHOL!D317 -> 9.9 | E84: =[2]ALCOHOL!E317 -> (8.5 - | F84: =[2]ALCOHOL!F317 -> 11.4) | G84: =[2]ALCOHOL!J317 -> 3.9 | H84: =[2]ALCOHOL!K317 -> (2.1 - | I84: =[2]ALCOHOL!L317 -> 5.8) | J84: =[2]ALCOHOL!D319 -> 2.1 | K84: =[2]ALCOHOL!E319 -> (1.5 - | L84: =[2]ALCOHOL!F319 -> 2.7) | M84: =[2]ALCOHOL!J319 -> 1.0 | N84: =[2]ALCOHOL!K319 -> (0.0 | O84: =[2]ALCOHOL!L319 -> 2.3)
C85: 2005-2009
B86: Madrid | C86: 1980-1984
C87: 1985-1989
C88: 1990-1994
C89: 1995-1999 | D89: =[2]ALCOHOL!D327 -> 6.6 | E89: =[2]ALCOHOL!E327 -> (5.1 - | F89: =[2]ALCOHOL!F327 -> 8.1) | G89: =[2]ALCOHOL!J327 -> 0.5 | H89: =[2]ALCOHOL!K327 -> (0.0 | I89: =[2]ALCOHOL!L327 -> 1.3) | J89: =[2]ALCOHOL!D329 -> 1.3 | K89: =[2]ALCOHOL!E329 -> (0.8 - | L89: =[2]ALCOHOL!F329 -> 1.9) | M89: =[2]ALCOHOL!J329 -> 0.0 | N89: =[2]ALCOHOL!K329 -> (0.0 | O89: =[2]ALCOHOL!L329 -> 0.0)
C90: 2000-2004 | D90: =[2]ALCOHOL!D328 -> 7.9 | E90: =[2]ALCOHOL!E328 -> (6.4 - | F90: =[2]ALCOHOL!F328 -> 9.6) | G90: =[2]ALCOHOL!J328 -> 3.1 | H90: =[2]ALCOHOL!K328 -> (1.4 - | I90: =[2]ALCOHOL!L328 -> 5.0) | J90: =[2]ALCOHOL!D330 -> 1.3 | K90: =[2]ALCOHOL!E330 -> (0.8 - | L90: =[2]ALCOHOL!F330 -> 1.9) | M90: =[2]ALCOHOL!J330 -> 0.3 | N90: =[2]ALCOHOL!K330 -> (0.0 | O90: =[2]ALCOHOL!L330 -> 1.0)
C91: 2005-2009
B92: Italy, Turin | C92: 1980-1984 | D92: =[2]ALCOHOL!D181 -> 7.3 | E92: =[2]ALCOHOL!E181 -> (5.7 - | F92: =[2]ALCOHOL!F181 -> 9.1) | G92: =[2]ALCOHOL!J181 -> 3.1 | H92: =[2]ALCOHOL!K181 -> (0.0 | I92: =[2]ALCOHOL!L181 -> 7.0) | J92: =[2]ALCOHOL!D189 -> 1.1 | K92: =[2]ALCOHOL!E189 -> (0.6 - | L92: =[2]ALCOHOL!F189 -> 1.7) | M92: =[2]ALCOHOL!J189 -> 0.0 | N92: =[2]ALCOHOL!K189 -> (0.0 | O92: =[2]ALCOHOL!L189 -> 0.0)
C93: 1985-1989 | D93: =[2]ALCOHOL!D182 -> 6.3 | E93: =[2]ALCOHOL!E182 -> (4.5 - | F93: =[2]ALCOHOL!F182 -> 8.0) | G93: =[2]ALCOHOL!J182 -> 2.2 | H93: =[2]ALCOHOL!K182 -> (0.0 | I93: =[2]ALCOHOL!L182 -> 5.5) | J93: =[2]ALCOHOL!D190 -> 1.5 | K93: =[2]ALCOHOL!E190 -> (0.8 - | L93: =[2]ALCOHOL!F190 -> 2.5) | M93: =[2]ALCOHOL!J190 -> 2.0 | N93: =[2]ALCOHOL!K190 -> (0.0 | O93: =[2]ALCOHOL!L190 -> 6.0)
C94: 1990-1994 | D94: =[2]ALCOHOL!D183 -> 5.1 | E94: =[2]ALCOHOL!E183 -> (3.5 - | F94: =[2]ALCOHOL!F183 -> 6.5) | G94: =[2]ALCOHOL!J183 -> 1.9 | H94: =[2]ALCOHOL!K183 -> (0.0 | I94: =[2]ALCOHOL!L183 -> 5.5) | J94: =[2]ALCOHOL!D191 -> 1.7 | K94: =[2]ALCOHOL!E191 -> (1.0 - | L94: =[2]ALCOHOL!F191 -> 2.6) | M94: =[2]ALCOHOL!J191 -> 0.0 | N94: =[2]ALCOHOL!K191 -> (0.0 | O94: =[2]ALCOHOL!L191 -> 0.0)
C95: 1995-1999 | D95: =[2]ALCOHOL!D184 -> 6.5 | E95: =[2]ALCOHOL!E184 -> (4.5 - | F95: =[2]ALCOHOL!F184 -> 8.9) | G95: =[2]ALCOHOL!J184 -> 1.8 | H95: =[2]ALCOHOL!K184 -> (0.0 | I95: =[2]ALCOHOL!L184 -> 4.6) | J95: =[2]ALCOHOL!D192 -> 2.4 | K95: =[2]ALCOHOL!E192 -> (1.3 - | L95: =[2]ALCOHOL!F192 -> 3.6) | M95: =[2]ALCOHOL!J192 -> 0.0 | N95: =[2]ALCOHOL!K192 -> (0.0 | O95: =[2]ALCOHOL!L192 -> 0.0)
C96: 2000-2004 | D96: =[2]ALCOHOL!D185 -> 8.6 | E96: =[2]ALCOHOL!E185 -> (6.4 - | F96: =[2]ALCOHOL!F185 -> 11.0) | G96: =[2]ALCOHOL!J185 -> 4.5 | H96: =[2]ALCOHOL!K185 -> (1.3 - | I96: =[2]ALCOHOL!L185 -> 7.9) | J96: =[2]ALCOHOL!D193 -> 2.6 | K96: =[2]ALCOHOL!E193 -> (1.5 - | L96: =[2]ALCOHOL!F193 -> 3.9) | M96: =[2]ALCOHOL!J193 -> 0.0 | N96: =[2]ALCOHOL!K193 -> (0.0 | O96: =[2]ALCOHOL!L193 -> 0.0)
C97: 2005-2009 | D97: =[2]ALCOHOL!D186 -> 5.0 | E97: =[2]ALCOHOL!E186 -> (2.8 - | F97: =[2]ALCOHOL!F186 -> 7.8) | G97: =[2]ALCOHOL!J186 -> 0.0 | H97: =[2]ALCOHOL!K186 -> (0.0 | I97: =[2]ALCOHOL!L186 -> 0.0) | J97: =[2]ALCOHOL!D194 -> 1.5 | K97: =[2]ALCOHOL!E194 -> (0.4 - | L97: =[2]ALCOHOL!F194 -> 2.9) | M97: =[2]ALCOHOL!J194 -> 0.8 | N97: =[2]ALCOHOL!K194 -> (0.0 | O97: =[2]ALCOHOL!L194 -> 2.4)
A98: EAST | B98: Slovenia | C98: 1980-1984
C99: 1985-1989
C100: 1990-1994 | D100: =[2]ALCOHOL!D286 -> 107.3 | E100: =[2]ALCOHOL!E286 -> (101.4 - | F100: =[2]ALCOHOL!F286 -> 113.1) | G100: =[2]ALCOHOL!J286 -> 18.1 | H100: =[2]ALCOHOL!K286 -> (12.5 - | I100: =[2]ALCOHOL!L286 -> 24.6) | J100: =[2]ALCOHOL!D290 -> 28.6 | K100: =[2]ALCOHOL!E290 -> (25.9 - | L100: =[2]ALCOHOL!F290 -> 31.2) | M100: =[2]ALCOHOL!J290 -> 4.1 | N100: =[2]ALCOHOL!K290 -> (0.7 - | O100: =[2]ALCOHOL!L290 -> 8.4)
C101: 1995-1999
C102: 2000-2004 | D102: =[2]ALCOHOL!D288 -> 133.9 | E102: =[2]ALCOHOL!E288 -> (125.9 - | F102: =[2]ALCOHOL!F288 -> 142.4) | G102: =[2]ALCOHOL!J288 -> 24.7 | H102: =[2]ALCOHOL!K288 -> (19.8 - | I102: =[2]ALCOHOL!L288 -> 30.0) | J102: =[2]ALCOHOL!D292 -> 32.1 | K102: =[2]ALCOHOL!E292 -> (28.7 - | L102: =[2]ALCOHOL!F292 -> 35.7) | M102: =[2]ALCOHOL!J292 -> 7.5 | N102: =[2]ALCOHOL!K292 -> (4.3 - | O102: =[2]ALCOHOL!L292 -> 10.9)
C103: 2005-2009
B104: Hungary | C104: 1980-1984 | D104: =[2]ALCOHOL!D165 -> 59.3 | E104: =[2]ALCOHOL!E165 -> (57.5 - | F104: =[2]ALCOHOL!F165 -> 61.0) | G104: =[2]ALCOHOL!J165 -> 19.6 | H104: =[2]ALCOHOL!K165 -> (16.5 - | I104: =[2]ALCOHOL!L165 -> 23.0) | J104: =[2]ALCOHOL!D169 -> 14.0 | K104: =[2]ALCOHOL!E169 -> (13.2 - | L104: =[2]ALCOHOL!F169 -> 14.8) | M104: =[2]ALCOHOL!J169 -> 4.7 | N104: =[2]ALCOHOL!K169 -> (2.0 - | O104: =[2]ALCOHOL!L169 -> 7.8)
C105: 1985-1989
C106: 1990-1994 | D106: =[2]ALCOHOL!D166 -> 179.1 | E106: =[2]ALCOHOL!E166 -> (175.5 - | F106: =[2]ALCOHOL!F166 -> 182.4) | G106: =[2]ALCOHOL!J166 -> 40.8 | H106: =[2]ALCOHOL!K166 -> (37.0 - | I106: =[2]ALCOHOL!L166 -> 44.4) | J106: =[2]ALCOHOL!D170 -> 50.1 | K106: =[2]ALCOHOL!E170 -> (48.5 - | L106: =[2]ALCOHOL!F170 -> 51.8) | M106: =[2]ALCOHOL!J170 -> 15.8 | N106: =[2]ALCOHOL!K170 -> (12.6 - | O106: =[2]ALCOHOL!L170 -> 19.0)
C107: 1995-1999
C108: 2000-2004 | D108: =[2]ALCOHOL!D167 -> 251.1 | E108: =[2]ALCOHOL!E167 -> (247.5 - | F108: =[2]ALCOHOL!F167 -> 255.1) | G108: =[2]ALCOHOL!J167 -> 63.7 | H108: =[2]ALCOHOL!K167 -> (59.7 - | I108: =[2]ALCOHOL!L167 -> 67.7) | J108: =[2]ALCOHOL!D171 -> 65.0 | K108: =[2]ALCOHOL!E171 -> (62.9 - | L108: =[2]ALCOHOL!F171 -> 66.9) | M108: =[2]ALCOHOL!J171 -> 21.6 | N108: =[2]ALCOHOL!K171 -> (18.9 - | O108: =[2]ALCOHOL!L171 -> 24.4)
C109: 2005-2009
B110: Czech Republic | C110: 1980-1984 | D110: =[2]ALCOHOLcomp!D37 -> 0.4 | E110: =[2]ALCOHOLcomp!E37 -> (0.3 - | F110: =[2]ALCOHOLcomp!F37 -> 0.6) | G110: =[2]ALCOHOLcomp!J37 -> 0.4 | H110: =[2]ALCOHOLcomp!K37 -> (0.0 | I110: =[2]ALCOHOLcomp!L37 -> 1.0) | J110: =[2]ALCOHOLcomp!D39 -> 0.1 | K110: =[2]ALCOHOLcomp!E39 -> (0.0 - | L110: =[2]ALCOHOLcomp!F39 -> 0.2) | M110: =[2]ALCOHOLcomp!J39 -> 0.0 | N110: =[2]ALCOHOLcomp!K39 -> (0.0 | O110: =[2]ALCOHOLcomp!L39 -> 0.0)
C111: 1985-1989
C112: 1990-1994
C113: 1995-1999
C114: 2000-2004 | D114: =[2]ALCOHOLcomp!D38 -> 4.9 | E114: =[2]ALCOHOLcomp!E38 -> (4.5 - | F114: =[2]ALCOHOLcomp!F38 -> 5.4) | G114: =[2]ALCOHOLcomp!J38 -> 1.1 | H114: =[2]ALCOHOLcomp!K38 -> (0.8 - | I114: =[2]ALCOHOLcomp!L38 -> 1.6) | J114: =[2]ALCOHOLcomp!D40 -> 1.4 | K114: =[2]ALCOHOLcomp!E40 -> (1.1 - | L114: =[2]ALCOHOLcomp!F40 -> 1.6) | M114: =[2]ALCOHOLcomp!J40 -> 0.3 | N114: =[2]ALCOHOLcomp!K40 -> (0.1 - | O114: =[2]ALCOHOLcomp!L40 -> 0.7)
C115: 2005-2009
B116: Poland | C116: 1980-1984
C117: 1985-1989
C118: 1990-1994 | D118: =[2]ALCOHOLcomp!D260 -> 25.0 | E118: =[2]ALCOHOLcomp!E260 -> (24.2 - | F118: =[2]ALCOHOLcomp!F260 -> 25.9) | G118: =[2]ALCOHOLcomp!J260 -> 2.2 | H118: =[2]ALCOHOLcomp!K260 -> (1.6 - | I118: =[2]ALCOHOLcomp!L260 -> 2.9) | J118: =[2]ALCOHOLcomp!D262 -> 2.9 | K118: =[2]ALCOHOLcomp!E262 -> (2.6 - | L118: =[2]ALCOHOLcomp!F262 -> 3.2) | M118: =[2]ALCOHOLcomp!J262 -> 0.4 | N118: =[2]ALCOHOLcomp!K262 -> (0.1 - | O118: =[2]ALCOHOLcomp!L262 -> 0.8)
C119: 1995-1999
C120: 2000-2004 | D120: =[2]ALCOHOLcomp!D261 -> 16.5 | E120: =[2]ALCOHOLcomp!E261 -> (15.8 - | F120: =[2]ALCOHOLcomp!F261 -> 17.2) | G120: =[2]ALCOHOLcomp!J261 -> 1.9 | H120: =[2]ALCOHOLcomp!K261 -> (1.4 - | I120: =[2]ALCOHOLcomp!L261 -> 2.5) | J120: =[2]ALCOHOLcomp!D263 -> 2.2 | K120: =[2]ALCOHOLcomp!E263 -> (2.0 - | L120: =[2]ALCOHOLcomp!F263 -> 2.6) | M120: =[2]ALCOHOLcomp!J263 -> 0.2 | N120: =[2]ALCOHOLcomp!K263 -> (0.1 - | O120: =[2]ALCOHOLcomp!L263 -> 0.4)
C121: 2005-2009
B122: Lithuania | C122: 1980-1984
C123: 1985-1989 | D123: =[2]ALCOHOLcomp!$D$224 -> 23.8 | E123: =[2]ALCOHOLcomp!$E$224 -> (21.0 - | F123: =[2]ALCOHOLcomp!$F$224 -> 26.6) | G123: =[2]ALCOHOLcomp!$J$224 -> 3.6 | H123: =[2]ALCOHOLcomp!$K$224 -> (1.2 - | I123: =[2]ALCOHOLcomp!$L$224 -> 6.4) | J123: =[2]ALCOHOLcomp!$D$227 -> 7.0 | K123: =[2]ALCOHOLcomp!$E$227 -> (5.3 - | L123: =[2]ALCOHOLcomp!$F$227 -> 8.7) | M123: =[2]ALCOHOLcomp!$J$227 -> 1.8 | N123: =[2]ALCOHOLcomp!$K$227 -> (0.3 - | O123: =[2]ALCOHOLcomp!$L$227 -> 3.5)
C124: 1990-1994
C125: 1995-1999
C126: 2000-2004 | D126: =[2]ALCOHOLcomp!D225 -> 112.5 | E126: =[2]ALCOHOLcomp!E225 -> (103.4 - | F126: =[2]ALCOHOLcomp!F225 -> 122.5) | G126: =[2]ALCOHOLcomp!J225 -> 27.7 | H126: =[2]ALCOHOLcomp!K225 -> (21.7 - | I126: =[2]ALCOHOLcomp!L225 -> 33.4) | J126: =[2]ALCOHOLcomp!D228 -> 50.7 | K126: =[2]ALCOHOLcomp!E228 -> (43.4 - | L126: =[2]ALCOHOLcomp!F228 -> 59.5) | M126: =[2]ALCOHOLcomp!J228 -> 9.7 | N126: =[2]ALCOHOLcomp!K228 -> (7.4 - | O126: =[2]ALCOHOLcomp!L228 -> 11.9)
C127: 2005-2009 | D127: =[2]ALCOHOLcomp!D226 -> 162.5 | E127: =[2]ALCOHOLcomp!E226 -> (148.6 - | F127: =[2]ALCOHOLcomp!F226 -> 175.6) | G127: =[2]ALCOHOLcomp!J226 -> 43.2 | H127: =[2]ALCOHOLcomp!K226 -> (37.0 - | I127: =[2]ALCOHOLcomp!L226 -> 49.2) | J127: =[2]ALCOHOLcomp!D229 -> 66.4 | K127: =[2]ALCOHOLcomp!E229 -> (55.3 - | L127: =[2]ALCOHOLcomp!F229 -> 78.0) | M127: =[2]ALCOHOLcomp!J229 -> 11.9 | N127: =[2]ALCOHOLcomp!K229 -> (9.3 - | O127: =[2]ALCOHOLcomp!L229 -> 14.6)
B128: Estonia | C128: 1980-1984
C129: 1985-1989 | D129: =[2]ALCOHOLcomp!D107 -> 48.6 | E129: =[2]ALCOHOLcomp!E107 -> (43.9 - | F129: =[2]ALCOHOLcomp!F107 -> 54.0) | G129: =[2]ALCOHOLcomp!J107 -> 15.5 | H129: =[2]ALCOHOLcomp!K107 -> (10.8 - | I129: =[2]ALCOHOLcomp!L107 -> 20.7) | J129: =[2]ALCOHOLcomp!D109 -> 12.5 | K129: =[2]ALCOHOLcomp!E109 -> (9.8 - | L129: =[2]ALCOHOLcomp!F109 -> 15.4) | M129: =[2]ALCOHOLcomp!J109 -> 1.2 | N129: =[2]ALCOHOLcomp!K109 -> (0.0 | O129: =[2]ALCOHOLcomp!L109 -> 2.7)
C130: 1990-1994
C131: 1995-1999
C132: 2000-2004 | D132: =[2]ALCOHOLcomp!D108 -> 125.4 | E132: =[2]ALCOHOLcomp!E108 -> (113.4 - | F132: =[2]ALCOHOLcomp!F108 -> 137.2) | G132: =[2]ALCOHOLcomp!J108 -> 31.3 | H132: =[2]ALCOHOLcomp!K108 -> (24.4 - | I132: =[2]ALCOHOLcomp!L108 -> 38.5) | J132: =[2]ALCOHOLcomp!D110 -> 59.8 | K132: =[2]ALCOHOLcomp!E110 -> (49.2 - | L132: =[2]ALCOHOLcomp!F110 -> 71.5) | M132: =[2]ALCOHOLcomp!J110 -> 6.7 | N132: =[2]ALCOHOLcomp!K110 -> (4.3 - | O132: =[2]ALCOHOLcomp!L110 -> 9.3)
C133: 2005-2009
B135: * different codes of alcohol-related causes; or some specific alcohol-related causes are missing
B136: # age range 40–79 years
B137: NA = not available; regression gives 'infinite' value
A139: In the Czech Republic, only mortality due to alcohol poisoning was included in this trend table, because this is the only cause of death comparable between multiple time points. Note that the number of observations in the first period is very small and it shouldn't be included
A140: In Estonia, only mortality due to liver cirrhosis and alcohol poisoning was included in this trend table, because these are the only causes of death comparable between multiple time points.
A141: In Poland, only mortality due to alcohol poisoning was included in this trend table, because this is the only cause of death comparable between multiple time points. Note that the number of observations in the first period is very small and it shouldn't be included
A142: In Lithuania, only the last 2 periods were included, because these were the only periods that contained all 4 separate alcohol-related causes of death and were comparable over time.\
A144: JOHAN: Engeland&Wales komt overeen met England&Wales2 in de jaren 80-90. Daarom voor Engeland&Wales de jaren 80-90 weggelaten (dat maakt het maken van de grafiek makkelijker).

Sheet Figure 2b
A1: Web appendix figure A2. Trends in mortality from alcohol-related causes among low- and high-educated women, ca. 1980-2010, by country
A2: the number of deaths is smaller than 5
B4: EDUCATION
D5: Men | J5: Women
D6: low education | G6: high education | J6: low education | M6: high education
B7: Country | C7: Period | D7: ASMR | E7: 95%-CI | G7: ASMR | H7: 95%-CI | J7: ASMR | K7: 95%-CI | M7: ASMR | N7: 95%-CI
A8: NORTH | B8: Finland | C8: 1980-1984 | D8: =[2]ALCOHOL!D120 -> 57.6 | E8: =[2]ALCOHOL!E120 -> (55.0 - | F8: =[2]ALCOHOL!F120 -> 60.2) | G8: =[2]ALCOHOL!J120 -> 30.8 | H8: =[2]ALCOHOL!K120 -> (26.5 - | I8: =[2]ALCOHOL!L120 -> 35.1) | J8: =[2]ALCOHOL!D128 -> 8.4 | K8: =[2]ALCOHOL!E128 -> (7.4 - | L8: =[2]ALCOHOL!F128 -> 9.3) | M8: =[2]ALCOHOL!J128 -> 4.8 | N8: =[2]ALCOHOL!K128 -> (3.2 - | O8: =[2]ALCOHOL!L128 -> 6.6)
C9: 1985-1989 | D9: =[2]ALCOHOL!D121 -> 76.2 | E9: =[2]ALCOHOL!E121 -> (73.1 - | F9: =[2]ALCOHOL!F121 -> 79.3) | G9: =[2]ALCOHOL!J121 -> 42.7 | H9: =[2]ALCOHOL!K121 -> (38.0 - | I9: =[2]ALCOHOL!L121 -> 47.4) | J9: =[2]ALCOHOL!D129 -> 14.4 | K9: =[2]ALCOHOL!E129 -> (13.0 - | L9: =[2]ALCOHOL!F129 -> 15.9) | M9: =[2]ALCOHOL!J129 -> 9.3 | N9: =[2]ALCOHOL!K129 -> (7.2 - | O9: =[2]ALCOHOL!L129 -> 11.7)
C10: 1990-1994 | D10: =[2]ALCOHOL!D122 -> 81.0 | E10: =[2]ALCOHOL!E122 -> (77.7 - | F10: =[2]ALCOHOL!F122 -> 84.6) | G10: =[2]ALCOHOL!J122 -> 35.7 | H10: =[2]ALCOHOL!K122 -> (32.1 - | I10: =[2]ALCOHOL!L122 -> 39.3) | J10: =[2]ALCOHOL!D130 -> 17.3 | K10: =[2]ALCOHOL!E130 -> (15.8 - | L10: =[2]ALCOHOL!F130 -> 18.7) | M10: =[2]ALCOHOL!J130 -> 8.2 | N10: =[2]ALCOHOL!K130 -> (6.3 - | O10: =[2]ALCOHOL!L130 -> 10.2)
C11: 1995-1999 | D11: =[2]ALCOHOL!D123 -> 101.7 | E11: =[2]ALCOHOL!E123 -> (97.8 - | F11: =[2]ALCOHOL!F123 -> 105.9) | G11: =[2]ALCOHOL!J123 -> 37.4 | H11: =[2]ALCOHOL!K123 -> (34.3 - | I11: =[2]ALCOHOL!L123 -> 40.6) | J11: =[2]ALCOHOL!D131 -> 25.3 | K11: =[2]ALCOHOL!E131 -> (23.1 - | L11: =[2]ALCOHOL!F131 -> 27.7) | M11: =[2]ALCOHOL!J131 -> 11.4 | N11: =[2]ALCOHOL!K131 -> (9.3 - | O11: =[2]ALCOHOL!L131 -> 13.5)
C12: 2000-2004 | D12: =[2]ALCOHOL!D124 -> 113.3 | E12: =[2]ALCOHOL!E124 -> (109.1 - | F12: =[2]ALCOHOL!F124 -> 117.9) | G12: =[2]ALCOHOL!J124 -> 44.8 | H12: =[2]ALCOHOL!K124 -> (41.8 - | I12: =[2]ALCOHOL!L124 -> 48.1) | J12: =[2]ALCOHOL!D132 -> 36.1 | K12: =[2]ALCOHOL!E132 -> (33.3 - | L12: =[2]ALCOHOL!F132 -> 39.1) | M12: =[2]ALCOHOL!J132 -> 11.8 | N12: =[2]ALCOHOL!K132 -> (10.2 - | O12: =[2]ALCOHOL!L132 -> 13.5)
C13: 2005-2009 | D13: =[2]ALCOHOL!D125 -> 144.6 | E13: =[2]ALCOHOL!E125 -> (139.3 - | F13: =[2]ALCOHOL!F125 -> 150.5) | G13: =[2]ALCOHOL!J125 -> 48.6 | H13: =[2]ALCOHOL!K125 -> (45.4 - | I13: =[2]ALCOHOL!L125 -> 51.5) | J13: =[2]ALCOHOL!D133 -> 50.0 | K13: =[2]ALCOHOL!E133 -> (46.0 - | L13: =[2]ALCOHOL!F133 -> 54.1) | M13: =[2]ALCOHOL!J133 -> 13.8 | N13: =[2]ALCOHOL!K133 -> (12.2 - | O13: =[2]ALCOHOL!L133 -> 15.4)
B14: Sweden | C14: 1980-1984
C15: 1985-1989
C16: 1990-1994 | D16: =[2]ALCOHOL!D338 -> 35.1 | E16: =[2]ALCOHOL!E338 -> (33.1 - | F16: =[2]ALCOHOL!F338 -> 37.3) | G16: =[2]ALCOHOL!J338 -> 8.7 | H16: =[2]ALCOHOL!K338 -> (7.1 - | I16: =[2]ALCOHOL!L338 -> 10.4) | J16: =[2]ALCOHOL!D342 -> 8.0 | K16: =[2]ALCOHOL!E342 -> (6.9 - | L16: =[2]ALCOHOL!F342 -> 9.0) | M16: =[2]ALCOHOL!J342 -> 2.8 | N16: =[2]ALCOHOL!K342 -> (1.8 - | O16: =[2]ALCOHOL!L342 -> 3.7)
C17: 1995-1999 | D17: =[2]ALCOHOL!D339 -> 34.9 | E17: =[2]ALCOHOL!E339 -> (32.9 - | F17: =[2]ALCOHOL!F339 -> 36.8) | G17: =[2]ALCOHOL!J339 -> 9.9 | H17: =[2]ALCOHOL!K339 -> (8.5 - | I17: =[2]ALCOHOL!L339 -> 11.4) | J17: =[2]ALCOHOL!D343 -> 9.5 | K17: =[2]ALCOHOL!E343 -> (8.3 - | L17: =[2]ALCOHOL!F343 -> 10.5) | M17: =[2]ALCOHOL!J343 -> 3.0 | N17: =[2]ALCOHOL!K343 -> (2.3 - | O17: =[2]ALCOHOL!L343 -> 3.8)
C18: 2000-2004 | D18: =[2]ALCOHOL!D340 -> 37.5 | E18: =[2]ALCOHOL!E340 -> (35.3 - | F18: =[2]ALCOHOL!F340 -> 39.7) | G18: =[2]ALCOHOL!J340 -> 9.8 | H18: =[2]ALCOHOL!K340 -> (8.6 - | I18: =[2]ALCOHOL!L340 -> 11.2) | J18: =[2]ALCOHOL!D344 -> 11.5 | K18: =[2]ALCOHOL!E344 -> (10.4 - | L18: =[2]ALCOHOL!F344 -> 12.8) | M18: =[2]ALCOHOL!J344 -> 3.9 | N18: =[2]ALCOHOL!K344 -> (3.1 - | O18: =[2]ALCOHOL!L344 -> 4.8)
C19: 2005-2009 | D19: =[2]ALCOHOL!D341 -> 35.4 | E19: =[2]ALCOHOL!E341 -> (32.9 - | F19: =[2]ALCOHOL!F341 -> 37.8) | G19: =[2]ALCOHOL!J341 -> 10.1 | H19: =[2]ALCOHOL!K341 -> (8.7 - | I19: =[2]ALCOHOL!L341 -> 11.3) | J19: =[2]ALCOHOL!D345 -> 12.1 | K19: =[2]ALCOHOL!E345 -> (10.7 - | L19: =[2]ALCOHOL!F345 -> 13.8) | M19: =[2]ALCOHOL!J345 -> 3.7 | N19: =[2]ALCOHOL!K345 -> (3.0 - | O19: =[2]ALCOHOL!L345 -> 4.5)
B20: Norway | C20: 1980-1984 | D20: =[2]ALCOHOL!D239 -> 45.3 | E20: =[2]ALCOHOL!E239 -> (41.9 - | F20: =[2]ALCOHOL!F239 -> 49.5) | G20: =[2]ALCOHOL!J239 -> 16.5 | H20: =[2]ALCOHOL!K239 -> (12.4 - | I20: =[2]ALCOHOL!L239 -> 20.8) | J20: =[2]ALCOHOL!D247 -> 10.4 | K20: =[2]ALCOHOL!E247 -> (9.0 - | L20: =[2]ALCOHOL!F247 -> 12.0) | M20: =[2]ALCOHOL!J247 -> 4.6 | N20: =[2]ALCOHOL!K247 -> (2.8 - | O20: =[2]ALCOHOL!L247 -> 7.3)
C21: 1985-1989 | D21: =[2]ALCOHOL!D240 -> 56.3 | E21: =[2]ALCOHOL!E240 -> (50.9 - | F21: =[2]ALCOHOL!F240 -> 60.8) | G21: =[2]ALCOHOL!J240 -> 17.4 | H21: =[2]ALCOHOL!K240 -> (13.3 - | I21: =[2]ALCOHOL!L240 -> 21.8) | J21: =[2]ALCOHOL!D248 -> 11.3 | K21: =[2]ALCOHOL!E248 -> (9.2 - | L21: =[2]ALCOHOL!F248 -> 13.3) | M21: =[2]ALCOHOL!J248 -> 5.8 | N21: =[2]ALCOHOL!K248 -> (3.2 - | O21: =[2]ALCOHOL!L248 -> 8.4)
C22: 1990-1994 | D22: =[2]ALCOHOL!D241 -> 55.2 | E22: =[2]ALCOHOL!E241 -> (50.9 - | F22: =[2]ALCOHOL!F241 -> 59.9) | G22: =[2]ALCOHOL!J241 -> 15.8 | H22: =[2]ALCOHOL!K241 -> (12.8 - | I22: =[2]ALCOHOL!L241 -> 18.5) | J22: =[2]ALCOHOL!D249 -> 13.5 | K22: =[2]ALCOHOL!E249 -> (11.5 - | L22: =[2]ALCOHOL!F249 -> 15.7) | M22: =[2]ALCOHOL!J249 -> 5.3 | N22: =[2]ALCOHOL!K249 -> (3.4 - | O22: =[2]ALCOHOL!L249 -> 7.1)
C23: 1995-1999 | D23: =[2]ALCOHOL!D242 -> 60.0 | E23: =[2]ALCOHOL!E242 -> (56.0 - | F23: =[2]ALCOHOL!F242 -> 66.1) | G23: =[2]ALCOHOL!J242 -> 15.7 | H23: =[2]ALCOHOL!K242 -> (13.0 - | I23: =[2]ALCOHOL!L242 -> 17.8) | J23: =[2]ALCOHOL!D250 -> 13.1 | K23: =[2]ALCOHOL!E250 -> (10.7 - | L23: =[2]ALCOHOL!F250 -> 15.9) | M23: =[2]ALCOHOL!J250 -> 3.5 | N23: =[2]ALCOHOL!K250 -> (2.1 - | O23: =[2]ALCOHOL!L250 -> 5.0)
C24: 2000-2004 | D24: =[2]ALCOHOL!D243 -> 50.0 | E24: =[2]ALCOHOL!E243 -> (46.0 - | F24: =[2]ALCOHOL!F243 -> 53.7) | G24: =[2]ALCOHOL!J243 -> 14.2 | H24: =[2]ALCOHOL!K243 -> (11.9 - | I24: =[2]ALCOHOL!L243 -> 16.8) | J24: =[2]ALCOHOL!D251 -> 14.4 | K24: =[2]ALCOHOL!E251 -> (12.4 - | L24: =[2]ALCOHOL!F251 -> 16.2) | M24: =[2]ALCOHOL!J251 -> 3.9 | N24: =[2]ALCOHOL!K251 -> (2.4 - | O24: =[2]ALCOHOL!L251 -> 5.5)
C25: 2005-2009 | D25: =[2]ALCOHOL!D244 -> 47.2 | E25: =[2]ALCOHOL!E244 -> (41.7 - | F25: =[2]ALCOHOL!F244 -> 54.0) | G25: =[2]ALCOHOL!J244 -> 11.9 | H25: =[2]ALCOHOL!K244 -> (9.4 - | I25: =[2]ALCOHOL!L244 -> 15.2) | J25: =[2]ALCOHOL!D252 -> 15.3 | K25: =[2]ALCOHOL!E252 -> (12.5 - | L25: =[2]ALCOHOL!F252 -> 18.0) | M25: =[2]ALCOHOL!J252 -> 4.6 | N25: =[2]ALCOHOL!K252 -> (3.3 - | O25: =[2]ALCOHOL!L252 -> 6.3)
B26: Denmark | C26: 1980-1984
C27: 1985-1989
C28: 1990-1994 | D28: =[2]ALCOHOL!D48 -> 65.4 | E28: =[2]ALCOHOL!E48 -> (62.3 - | F28: =[2]ALCOHOL!F48 -> 68.8) | G28: =[2]ALCOHOL!J48 -> 26.0 | H28: =[2]ALCOHOL!K48 -> (22.6 - | I28: =[2]ALCOHOL!L48 -> 29.4) | J28: =[2]ALCOHOL!D51 -> 22.5 | K28: =[2]ALCOHOL!E51 -> (20.8 - | L28: =[2]ALCOHOL!F51 -> 24.1) | M28: =[2]ALCOHOL!J51 -> 16.6 | N28: =[2]ALCOHOL!K51 -> (9.6 - | O28: =[2]ALCOHOL!L51 -> 26.2)
C29: 1995-1999 | D29: =[2]ALCOHOL!D49 -> 76.6 | E29: =[2]ALCOHOL!E49 -> (73.1 - | F29: =[2]ALCOHOL!F49 -> 80.7) | G29: =[2]ALCOHOL!J49 -> 35.3 | H29: =[2]ALCOHOL!K49 -> (30.1 - | I29: =[2]ALCOHOL!L49 -> 42.7) | J29: =[2]ALCOHOL!D52 -> 27.8 | K29: =[2]ALCOHOL!E52 -> (25.9 - | L29: =[2]ALCOHOL!F52 -> 29.8) | M29: =[2]ALCOHOL!J52 -> 13.3 | N29: =[2]ALCOHOL!K52 -> (10.9 - | O29: =[2]ALCOHOL!L52 -> 15.9)
C30: 2000-2004 | D30: =[2]ALCOHOL!D50 -> 106.7 | E30: =[2]ALCOHOL!E50 -> (102.3 - | F30: =[2]ALCOHOL!F50 -> 110.8) | G30: =[2]ALCOHOL!J50 -> 37.1 | H30: =[2]ALCOHOL!K50 -> (33.8 - | I30: =[2]ALCOHOL!L50 -> 40.6) | J30: =[2]ALCOHOL!D53 -> 36.5 | K30: =[2]ALCOHOL!E53 -> (34.3 - | L30: =[2]ALCOHOL!F53 -> 38.9) | M30: =[2]ALCOHOL!J53 -> 15.4 | N30: =[2]ALCOHOL!K53 -> (13.3 - | O30: =[2]ALCOHOL!L53 -> 18.0)
C31: 2005-2009
A32: WEST | B32: Scotland | C32: 1980-1984
C33: 1985-1989
C34: 1990-1994 | D34: =[2]ALCOHOL!D271 -> 11.7 | E34: =[2]ALCOHOL!E271 -> (7.8 - | F34: -
C35: 1995-1999 | D35: =[2]ALCOHOL!D272 -> 24.4 | E35: =[2]ALCOHOL!E272 -> (19.0 - | F35: =[2]ALCOHOL!F272 -> 30.8) | G35: =[2]ALCOHOL!J272 -> 15.1 | H35: =[2]ALCOHOL!K272 -> (0.0 | I35: =[2]ALCOHOL!L272 -> 35.5)
C36: 2000-2004 | D36: =[2]ALCOHOL!D273 -> 64.2 | E36: =[2]ALCOHOL!E273 -> (52.4 - | F36: =[2]ALCOHOL!F273 -> 76.4) | G36: =[2]ALCOHOL!J273 -> 24.3 | H36: =[2]ALCOHOL!K273 -> (13.5 - | I36: =[2]ALCOHOL!L273 -> 36.7) | J36: =[2]ALCOHOL!D277 -> 25.5 | K36: =[2]ALCOHOL!E277 -> (18.8 - | L36: =[2]ALCOHOL!F277 -> 33.0) | M36: =[2]ALCOHOL!J277 -> 11.9 | N36: =[2]ALCOHOL!K277 -> (4.4 - | O36: =[2]ALCOHOL!L277 -> 21.2)
C37: 2005-2009 | D37: =[2]ALCOHOL!D274 -> 47.1 | E37: =[2]ALCOHOL!E274 -> (36.9 - | F37: =[2]ALCOHOL!F274 -> 57.6) | G37: =[2]ALCOHOL!J274 -> 31.0 | H37: =[2]ALCOHOL!K274 -> (18.5 - | I37: =[2]ALCOHOL!L274 -> 45.3) | J37: =[2]ALCOHOL!D278 -> 20.6 | K37: =[2]ALCOHOL!E278 -> (13.8 - | L37: =[2]ALCOHOL!F278 -> 27.7) | M37: =[2]ALCOHOL!J278 -> 13.3 | N37: =[2]ALCOHOL!K278 -> (5.7 - | O37: =[2]ALCOHOL!L278 -> 22.4)
B38: England & Wales2 | C38: 1980-1984 | D38: =[2]ALCOHOL!D86 -> 5.2 | E38: =[2]ALCOHOL!E86 -> (3.4 - | F38: =[2]ALCOHOL!F86 -> 7.2) | G38: =[2]ALCOHOL!J86 -> 5.8 | H38: =[2]ALCOHOL!K86 -> (1.2 - | I38: =[2]ALCOHOL!L86 -> 12.6) | J38: =[2]ALCOHOL!D94 -> 2.6 | K38: =[2]ALCOHOL!E94 -> (1.4 - | L38: =[2]ALCOHOL!F94 -> 4.1) | M38: =[2]ALCOHOL!J94 -> 2.9 | N38: =[2]ALCOHOL!K94 -> (0.0 | O38: =[2]ALCOHOL!L94 -> 8.7)
C39: 1985-1989 | D39: =[2]ALCOHOL!D87 -> 6.3 | E39: =[2]ALCOHOL!E87 -> (4.2 - | F39: =[2]ALCOHOL!F87 -> 8.3) | G39: =[2]ALCOHOL!J87 -> 7.0 | H39: =[2]ALCOHOL!K87 -> (1.6 - | I39: =[2]ALCOHOL!L87 -> 13.7) | J39: =[2]ALCOHOL!D95 -> 3.7 | K39: =[2]ALCOHOL!E95 -> (2.1 - | L39: =[2]ALCOHOL!F95 -> 5.4) | M39: =[2]ALCOHOL!J95 -> 4.4 | N39: =[2]ALCOHOL!K95 -> (0.0 | O39: =[2]ALCOHOL!L95 -> 12.4)
C40: 1990-1994 | D40: =[2]ALCOHOL!D88 -> 8.0 | E40: =[2]ALCOHOL!E88 -> (5.5 - | F40: =[2]ALCOHOL!F88 -> 10.6) | G40: =[2]ALCOHOL!J88 -> 5.9 | H40: =[2]ALCOHOL!K88 -> (1.4 - | I40: =[2]ALCOHOL!L88 -> 11.2) | J40: =[2]ALCOHOL!D96 -> 5.6 | K40: =[2]ALCOHOL!E96 -> (3.7 - | L40: =[2]ALCOHOL!F96 -> 7.7) | M40: =[2]ALCOHOL!J96 -> 6.2 | N40: =[2]ALCOHOL!K96 -> (1.6 - | O40: =[2]ALCOHOL!L96 -> 12.3)
C41: 1995-1999 | D41: =[2]ALCOHOL!D89 -> 14.7 | E41: =[2]ALCOHOL!E89 -> (11.2 - | F41: =[2]ALCOHOL!F89 -> 18.8) | G41: =[2]ALCOHOL!J89 -> 13.1 | H41: =[2]ALCOHOL!K89 -> (7.4 - | I41: =[2]ALCOHOL!L89 -> 20.4) | J41: =[2]ALCOHOL!D97 -> 8.3 | K41: =[2]ALCOHOL!E97 -> (6.0 - | L41: =[2]ALCOHOL!F97 -> 11.1) | M41: =[2]ALCOHOL!J97 -> 7.1 | N41: =[2]ALCOHOL!K97 -> (2.2 - | O41: =[2]ALCOHOL!L97 -> 13.2)
C42: 2000-2004 | D42: =[2]ALCOHOL!D90 -> 19.6 | E42: =[2]ALCOHOL!E90 -> (15.7 - | F42: =[2]ALCOHOL!F90 -> 23.9) | G42: =[2]ALCOHOL!J90 -> 11.9 | H42: =[2]ALCOHOL!K90 -> (6.1 - | I42: =[2]ALCOHOL!L90 -> 18.8) | J42: =[2]ALCOHOL!D98 -> 9.4 | K42: =[2]ALCOHOL!E98 -> (6.9 - | L42: =[2]ALCOHOL!F98 -> 11.9) | M42: =[2]ALCOHOL!J98 -> 7.9 | N42: =[2]ALCOHOL!K98 -> (3.3 - | O42: =[2]ALCOHOL!L98 -> 13.3)
C43: 2005-2009 | D43: =[2]ALCOHOL!D91 -> 23.1 | E43: =[2]ALCOHOL!E91 -> (18.2 - | F43: =[2]ALCOHOL!F91 -> 28.8) | G43: =[2]ALCOHOL!J91 -> 11.9 | H43: =[2]ALCOHOL!K91 -> (5.2 - | I43: =[2]ALCOHOL!L91 -> 18.5) | J43: =[2]ALCOHOL!D99 -> 11.4 | K43: =[2]ALCOHOL!E99 -> (8.1 - | L43: =[2]ALCOHOL!F99 -> 15.1) | M43: =[2]ALCOHOL!J99 -> 9.8 | N43: =[2]ALCOHOL!K99 -> (3.9 - | O43: =[2]ALCOHOL!L99 -> 16.1)
B44: Belgium | C44: 1980-1984
C45: 1985-1989
C46: 1990-1994 | D46: =[2]ALCOHOLcomp!D20 -> 8.8 | E46: =[2]ALCOHOLcomp!E20 -> (8.1 - | F46: =[2]ALCOHOLcomp!F20 -> 9.5) | G46: =[2]ALCOHOLcomp!J20 -> 5.6 | H46: =[2]ALCOHOLcomp!K20 -> (4.4 - | I46: =[2]ALCOHOLcomp!L20 -> 7.0) | J46: =[2]ALCOHOLcomp!D25 -> 2.4 | K46: =[2]ALCOHOLcomp!E25 -> (2.1 - | L46: =[2]ALCOHOLcomp!F25 -> 2.8) | M46: =[2]ALCOHOLcomp!J25 -> 2.2 | N46: =[2]ALCOHOLcomp!K25 -> (1.2 - | O46: =[2]ALCOHOLcomp!L25 -> 3.1)
C47: 1995-1999
C48: 2000-2004 | D48: =[2]ALCOHOLcomp!D24 -> 0.0 | E48: =[2]ALCOHOLcomp!E24 -> (0.0 | F48: =[2]ALCOHOLcomp!F24 -> 0.0) | G48: =[2]ALCOHOLcomp!J24 -> 0.0 | H48: =[2]ALCOHOLcomp!K24 -> (0.0 | I48: =[2]ALCOHOLcomp!L24 -> 0.0) | J48: =[2]ALCOHOLcomp!D29 -> 13.0 | K48: =[2]ALCOHOLcomp!E29 -> (11.9 - | L48: =[2]ALCOHOLcomp!F29 -> 14.1) | M48: =[2]ALCOHOLcomp!J29 -> 0.0 | N48: =[2]ALCOHOLcomp!K29 -> (0.0 | O48: =[2]ALCOHOLcomp!L29 -> 0.0)
C49: 2005-2009
B50: France | C50: 1980-1984 | D50: =([2]ALCOHOL!D142+[2]ALCOHOL!D143)/2 -> 74.2 | E50: =([2]ALCOHOL!E142+[2]ALCOHOL!E143)/2 -> (62.5 - | F50: =([2]ALCOHOL!F142+[2]ALCOHOL!F143)/2 -> 86.7) | G50: =([2]ALCOHOL!J142+[2]ALCOHOL!J143)/2 -> 10.7 | H50: =([2]ALCOHOL!K142+[2]ALCOHOL!K143)/2 -> (2.0 - | I50: =([2]ALCOHOL!L142+[2]ALCOHOL!L143)/2 -> 24.5) | J50: =([2]ALCOHOL!D150+[2]ALCOHOL!D151)/2 -> 22.1 | K50: =([2]ALCOHOL!E150+[2]ALCOHOL!E151)/2 -> (16.5 - | L50: =([2]ALCOHOL!F150+[2]ALCOHOL!F151)/2 -> 28.2 | M50: =([2]ALCOHOL!J150+[2]ALCOHOL!J151)/2 -> 8.6 | N50: =([2]ALCOHOL!K150+[2]ALCOHOL!K151)/2 -> (0.0 | O50: =([2]ALCOHOL!L150+[2]ALCOHOL!L151)/2 -> 25.8)
C51: 1985-1989 | D51: =([2]ALCOHOL!D143+[2]ALCOHOL!D144)/2 -> 74.6 | E51: =([2]ALCOHOL!E143+[2]ALCOHOL!E144)/2 -> (64.3 - | F51: =([2]ALCOHOL!F143+[2]ALCOHOL!F144)/2 -> 86.1) | G51: =([2]ALCOHOL!J143+[2]ALCOHOL!J144)/2 -> 20.4 | H51: =([2]ALCOHOL!K143+[2]ALCOHOL!K144)/2 -> (5.9 - | I51: =([2]ALCOHOL!L143+[2]ALCOHOL!L144)/2 -> 39.5) | J51: =([2]ALCOHOL!D151+[2]ALCOHOL!D152)/2 -> 23.6 | K51: =([2]ALCOHOL!E151+[2]ALCOHOL!E152)/2 -> (18.4 - | L51: =([2]ALCOHOL!F151+[2]ALCOHOL!F152)/2 -> 29.4) | M51: =([2]ALCOHOL!J151+[2]ALCOHOL!J152)/2 -> 0.0 | N51: =([2]ALCOHOL!K151+[2]ALCOHOL!K152)/2 -> (0.0 | O51: =([2]ALCOHOL!L151+[2]ALCOHOL!L152)/2 -> 0.0)
C52: 1990-1994 | D52: =[2]ALCOHOL!D145 -> 59.3 | E52: =[2]ALCOHOL!E145 -> (50.2 - | F52: =[2]ALCOHOL!F145 -> 68.5) | G52: =[2]ALCOHOL!J145 -> 7.2 | H52: =[2]ALCOHOL!K145 -> (1.9 - | I52: =[2]ALCOHOL!L145 -> 14.0) | J52: =[2]ALCOHOL!D153 -> 15.2 | K52: =[2]ALCOHOL!E153 -> (11.3 - | L52: =[2]ALCOHOL!F153 -> 19.3) | M52: =[2]ALCOHOL!J153 -> 10.1 | N52: =[2]ALCOHOL!K153 -> (0.0 | O52: =[2]ALCOHOL!L153 -> 24.6)
C53: 1995-1999 | D53: =[2]ALCOHOL!D146 -> 64.7 | E53: =[2]ALCOHOL!E146 -> (54.4 - | F53: =[2]ALCOHOL!F146 -> 76.4) | G53: =[2]ALCOHOL!J146 -> 7.0 | H53: =[2]ALCOHOL!K146 -> (1.2 - | I53: =[2]ALCOHOL!L146 -> 15.1) | J53: =[2]ALCOHOL!D154 -> 20.2 | K53: =[2]ALCOHOL!E154 -> (14.7 - | L53: =[2]ALCOHOL!F154 -> 26.0) | M53: =[2]ALCOHOL!J154 -> 0.0 | N53: =[2]ALCOHOL!K154 -> (0.0 | O53: =[2]ALCOHOL!L154 -> 0.0)
C54: 2000-2004 | D54: =[2]ALCOHOL!D147 -> 59.5 | E54: =[2]ALCOHOL!E147 -> (50.2 - | F54: =[2]ALCOHOL!F147 -> 68.4) | G54: =[2]ALCOHOL!J147 -> 15.6 | H54: =[2]ALCOHOL!K147 -> (7.1 - | I54: =[2]ALCOHOL!L147 -> 24.4) | J54: =[2]ALCOHOL!D155 -> 20.4 | K54: =[2]ALCOHOL!E155 -> (15.0 - | L54: =[2]ALCOHOL!F155 -> 25.7) | M54: =[2]ALCOHOL!J155 -> 7.6 | N54: =[2]ALCOHOL!K155 -> (1.7 - | O54: =[2]ALCOHOL!L155 -> 15.3)
C55: 2005-2009 | D55: =[2]ALCOHOL!D148 -> 57.5 | E55: =[2]ALCOHOL!E148 -> (45.4 - | F55: =[2]ALCOHOL!F148 -> 69.5) | G55: =[2]ALCOHOL!J148 -> 16.3 | H55: =[2]ALCOHOL!K148 -> (8.1 - | I55: =[2]ALCOHOL!L148 -> 25.9) | J55: =[2]ALCOHOL!D156 -> 16.5 | K55: =[2]ALCOHOL!E156 -> (11.7 - | L55: =[2]ALCOHOL!F156 -> 22.4) | M55: =[2]ALCOHOL!J156 -> 1.1 | N55: =[2]ALCOHOL!K156 -> (0.0 | O55: =[2]ALCOHOL!L156 -> 3.4)
B56: Switzerland | C56: 1980-1984
C57: 1985-1989
C58: 1990-1994 | D58: =[2]ALCOHOL!D353 -> 55.3 | E58: =[2]ALCOHOL!E353 -> (51.0 - | F58: =[2]ALCOHOL!F353 -> 59.4) | G58: =[2]ALCOHOL!J353 -> 14.1 | H58: =[2]ALCOHOL!K353 -> (12.0 - | I58: =[2]ALCOHOL!L353 -> 16.3) | J58: =[2]ALCOHOL!D357 -> 13.1 | K58: =[2]ALCOHOL!E357 -> (11.8 - | L58: =[2]ALCOHOL!F357 -> 14.5) | M58: =[2]ALCOHOL!J357 -> 8.5 | N58: =[2]ALCOHOL!K357 -> (5.6 - | O58: =[2]ALCOHOL!L357 -> 11.6)
C59: 1995-1999 | D59: =[2]ALCOHOL!D354 -> 54.3 | E59: =[2]ALCOHOL!E354 -> (49.8 - | F59: =[2]ALCOHOL!F354 -> 59.2) | G59: =[2]ALCOHOL!J354 -> 17.0 | H59: =[2]ALCOHOL!K354 -> (14.9 - | I59: =[2]ALCOHOL!L354 -> 19.1) | J59: =[2]ALCOHOL!D358 -> 13.0 | K59: =[2]ALCOHOL!E358 -> (11.5 - | L59: =[2]ALCOHOL!F358 -> 14.6) | M59: =[2]ALCOHOL!J358 -> 7.4 | N59: =[2]ALCOHOL!K358 -> (5.3 - | O59: =[2]ALCOHOL!L358 -> 10.0)
C60: 2000-2004 | D60: =[2]ALCOHOL!D355 -> 50.9 | E60: =[2]ALCOHOL!E355 -> (46.7 - | F60: =[2]ALCOHOL!F355 -> 55.3) | G60: =[2]ALCOHOL!J355 -> 12.1 | H60: =[2]ALCOHOL!K355 -> (10.6 - | I60: =[2]ALCOHOL!L355 -> 13.6) | J60: =[2]ALCOHOL!D359 -> 11.1 | K60: =[2]ALCOHOL!E359 -> (9.7 - | L60: =[2]ALCOHOL!F359 -> 12.5) | M60: =[2]ALCOHOL!J359 -> 7.1 | N60: =[2]ALCOHOL!K359 -> (5.1 - | O60: =[2]ALCOHOL!L359 -> 9.5)
C61: 2005-2009 | D61: =[2]ALCOHOL!D356 -> 41.7 | E61: =[2]ALCOHOL!E356 -> (36.9 - | F61: =[2]ALCOHOL!F356 -> 47.1) | G61: =[2]ALCOHOL!J356 -> 12.5 | H61: =[2]ALCOHOL!K356 -> (10.6 - | I61: =[2]ALCOHOL!L356 -> 14.6) | J61: =[2]ALCOHOL!D360 -> 12.4 | K61: =[2]ALCOHOL!E360 -> (10.7 - | L61: =[2]ALCOHOL!F360 -> 14.2) | M61: =[2]ALCOHOL!J360 -> 5.3 | N61: =[2]ALCOHOL!K360 -> (3.4 - | O61: =[2]ALCOHOL!L360 -> 7.6)
B62: Austria | C62: 1980-1984 | D62: =[2]ALCOHOL!D7 -> 19.5 | E62: =[2]ALCOHOL!E7 -> (16.1 - | F62: =[2]ALCOHOL!F7 -> 23.0) | G62: =[2]ALCOHOL!J7 -> 3.6 | H62: =[2]ALCOHOL!K7 -> (0.0 | I62: =[2]ALCOHOL!L7 -> 9.4) | J62: =[2]ALCOHOL!D10 -> 3.3 | K62: =[2]ALCOHOL!E10 -> (2.3 - | L62: =[2]ALCOHOL!F10 -> 4.5) | M62: =[2]ALCOHOL!J10 -> 0.0 | N62: =[2]ALCOHOL!K10 -> (0.0 | O62: =[2]ALCOHOL!L10 -> 0.0)
C63: 1985-1989
C64: 1990-1994 | D64: =[2]ALCOHOL!D8 -> 30.8 | E64: =[2]ALCOHOL!E8 -> (26.3 - | F64: =[2]ALCOHOL!F8 -> 35.7) | G64: =[2]ALCOHOL!J8 -> 1.8 | H64: =[2]ALCOHOL!K8 -> (0.0 | I64: =[2]ALCOHOL!L8 -> 4.8) | J64: =[2]ALCOHOL!D11 -> 3.3 | K64: =[2]ALCOHOL!E11 -> (2.2 - | L64: =[2]ALCOHOL!F11 -> 4.4) | M64: =[2]ALCOHOL!J11 -> 0.0 | N64: =[2]ALCOHOL!K11 -> (0.0 | O64: =[2]ALCOHOL!L11 -> 0.0)
C65: 1995-1999
C66: 2000-2004 | D66: =[2]ALCOHOL!D9 -> 37.4 | E66: =[2]ALCOHOL!E9 -> (31.9 - | F66: =[2]ALCOHOL!F9 -> 43.6) | G66: =[2]ALCOHOL!J9 -> 6.2 | H66: =[2]ALCOHOL!K9 -> (2.2 - | I66: =[2]ALCOHOL!L9 -> 10.3) | J66: =[2]ALCOHOL!D12 -> 5.4 | K66: =[2]ALCOHOL!E12 -> (3.9 - | L66: =[2]ALCOHOL!F12 -> 7.1) | M66: =[2]ALCOHOL!J12 -> 0.4 | N66: =[2]ALCOHOL!K12 -> (0.0 | O66: =[2]ALCOHOL!L12 -> 1.1)
C67: 2005-2009
A68: SOUTH | B68: Barcelona | C68: 1980-1984
C69: 1985-1989
C70: 1990-1994 | D70: =[2]ALCOHOL!D301 -> 11.2 | E70: =[2]ALCOHOL!E301 -> (9.3 - | F70: =[2]ALCOHOL!F301 -> 13.2) | G70: =[2]ALCOHOL!J301 -> 2.4 | H70: =[2]ALCOHOL!K301 -> (0.8 - | I70: =[2]ALCOHOL!L301 -> 4.1) | J70: =[2]ALCOHOL!D305 -> 2.4 | K70: =[2]ALCOHOL!E305 -> (1.7 - | L70: =[2]ALCOHOL!F305 -> 3.3) | M70: =[2]ALCOHOL!J305 -> 0.4 | N70: =[2]ALCOHOL!K305 -> (0.0 | O70: =[2]ALCOHOL!L305 -> 1.4)
C71: 1995-1999 | D71: =[2]ALCOHOL!D302 -> 13.5 | E71: =[2]ALCOHOL!E302 -> (11.2 - | F71: =[2]ALCOHOL!F302 -> 15.8) | G71: =[2]ALCOHOL!J302 -> 4.9 | H71: =[2]ALCOHOL!K302 -> (2.8 - | I71: =[2]ALCOHOL!L302 -> 7.4) | J71: =[2]ALCOHOL!D306 -> 3.4 | K71: =[2]ALCOHOL!E306 -> (2.4 - | L71: =[2]ALCOHOL!F306 -> 4.4) | M71: =[2]ALCOHOL!J306 -> 1.1 | N71: =[2]ALCOHOL!K306 -> (0.0 | O71: =[2]ALCOHOL!L306 -> 2.4)
C72: 2000-2004 | D72: =[2]ALCOHOL!D303 -> 12.5 | E72: =[2]ALCOHOL!E303 -> (10.3 - | F72: =[2]ALCOHOL!F303 -> 14.7) | G72: =[2]ALCOHOL!J303 -> 2.2 | H72: =[2]ALCOHOL!K303 -> (0.9 - | I72: =[2]ALCOHOL!L303 -> 3.5) | J72: =[2]ALCOHOL!D307 -> 3.0 | K72: =[2]ALCOHOL!E307 -> (2.1 - | L72: =[2]ALCOHOL!F307 -> 4.1) | M72: =[2]ALCOHOL!J307 -> 0.7 | N72: =[2]ALCOHOL!K307 -> (0.0 | O72: =[2]ALCOHOL!L307 -> 2.0)
C73: 2005-2009 | D73: =[2]ALCOHOL!D304 -> 11.2 | E73: =[2]ALCOHOL!E304 -> (8.9 - | F73: =[2]ALCOHOL!F304 -> 13.7) | G73: =[2]ALCOHOL!J304 -> 3.0 | H73: =[2]ALCOHOL!K304 -> (1.3 - | I73: =[2]ALCOHOL!L304 -> 4.9) | J73: =[2]ALCOHOL!D308 -> 3.2 | K73: =[2]ALCOHOL!E308 -> (2.0 - | L73: =[2]ALCOHOL!F308 -> 4.4) | M73: =[2]ALCOHOL!J308 -> 0.7 | N73: =[2]ALCOHOL!K308 -> (0.0 | O73: =[2]ALCOHOL!L308 -> 1.7)
B74: Basque Country | C74: 1980-1984
C75: 1985-1989
C76: 1990-1994
C77: 1995-1999 | D77: =[2]ALCOHOL!D316 -> 9.9 | E77: =[2]ALCOHOL!E316 -> (8.6 - | F77: =[2]ALCOHOL!F316 -> 11.4) | G77: =[2]ALCOHOL!J316 -> 2.3 | H77: =[2]ALCOHOL!K316 -> (0.7 - | I77: =[2]ALCOHOL!L316 -> 4.2) | J77: =[2]ALCOHOL!D318 -> 2.4 | K77: =[2]ALCOHOL!E318 -> (1.7 - | L77: =[2]ALCOHOL!F318 -> 3.1) | M77: =[2]ALCOHOL!J318 -> 1.8 | N77: =[2]ALCOHOL!K318 -> (0.0 | O77: =[2]ALCOHOL!L318 -> 4.6)
C78: 2000-2004 | D78: =[2]ALCOHOL!D317 -> 9.9 | E78: =[2]ALCOHOL!E317 -> (8.5 - | F78: =[2]ALCOHOL!F317 -> 11.4) | G78: =[2]ALCOHOL!J317 -> 3.9 | H78: =[2]ALCOHOL!K317 -> (2.1 - | I78: =[2]ALCOHOL!L317 -> 5.8) | J78: =[2]ALCOHOL!D319 -> 2.1 | K78: =[2]ALCOHOL!E319 -> (1.5 - | L78: =[2]ALCOHOL!F319 -> 2.7) | M78: =[2]ALCOHOL!J319 -> 1.0 | N78: =[2]ALCOHOL!K319 -> (0.0 | O78: =[2]ALCOHOL!L319 -> 2.3)
C79: 2005-2009
B80: Madrid | C80: 1980-1984
C81: 1985-1989
C82: 1990-1994
C83: 1995-1999 | D83: =[2]ALCOHOL!D327 -> 6.6 | E83: =[2]ALCOHOL!E327 -> (5.1 - | F83: =[2]ALCOHOL!F327 -> 8.1) | G83: =[2]ALCOHOL!J327 -> 0.5 | H83: =[2]ALCOHOL!K327 -> (0.0 | I83: =[2]ALCOHOL!L327 -> 1.3) | J83: =[2]ALCOHOL!D329 -> 1.3 | K83: =[2]ALCOHOL!E329 -> (0.8 - | L83: =[2]ALCOHOL!F329 -> 1.9) | M83: =[2]ALCOHOL!J329 -> 0.0 | N83: =[2]ALCOHOL!K329 -> (0.0 | O83: =[2]ALCOHOL!L329 -> 0.0)
C84: 2000-2004 | D84: =[2]ALCOHOL!D328 -> 7.9 | E84: =[2]ALCOHOL!E328 -> (6.4 - | F84: =[2]ALCOHOL!F328 -> 9.6) | G84: =[2]ALCOHOL!J328 -> 3.1 | H84: =[2]ALCOHOL!K328 -> (1.4 - | I84: =[2]ALCOHOL!L328 -> 5.0) | J84: =[2]ALCOHOL!D330 -> 1.3 | K84: =[2]ALCOHOL!E330 -> (0.8 - | L84: =[2]ALCOHOL!F330 -> 1.9) | M84: =[2]ALCOHOL!J330 -> 0.3 | N84: =[2]ALCOHOL!K330 -> (0.0 | O84: =[2]ALCOHOL!L330 -> 1.0)
C85: 2005-2009
B86: Italy, Turin | C86: 1980-1984 | D86: =[2]ALCOHOL!D181 -> 7.3 | E86: =[2]ALCOHOL!E181 -> (5.7 - | F86: =[2]ALCOHOL!F181 -> 9.1) | G86: =[2]ALCOHOL!J181 -> 3.1 | H86: =[2]ALCOHOL!K181 -> (0.0 | I86: =[2]ALCOHOL!L181 -> 7.0) | J86: =[2]ALCOHOL!D189 -> 1.1 | K86: =[2]ALCOHOL!E189 -> (0.6 - | L86: =[2]ALCOHOL!F189 -> 1.7) | M86: =[2]ALCOHOL!J189 -> 0.0 | N86: =[2]ALCOHOL!K189 -> (0.0 | O86: =[2]ALCOHOL!L189 -> 0.0)
C87: 1985-1989 | D87: =[2]ALCOHOL!D182 -> 6.3 | E87: =[2]ALCOHOL!E182 -> (4.5 - | F87: =[2]ALCOHOL!F182 -> 8.0) | G87: =[2]ALCOHOL!J182 -> 2.2 | H87: =[2]ALCOHOL!K182 -> (0.0 | I87: =[2]ALCOHOL!L182 -> 5.5) | J87: =[2]ALCOHOL!D190 -> 1.5 | K87: =[2]ALCOHOL!E190 -> (0.8 - | L87: =[2]ALCOHOL!F190 -> 2.5) | M87: =[2]ALCOHOL!J190 -> 2.0 | N87: =[2]ALCOHOL!K190 -> (0.0 | O87: =[2]ALCOHOL!L190 -> 6.0)
C88: 1990-1994 | D88: =[2]ALCOHOL!D183 -> 5.1 | E88: =[2]ALCOHOL!E183 -> (3.5 - | F88: =[2]ALCOHOL!F183 -> 6.5) | G88: =[2]ALCOHOL!J183 -> 1.9 | H88: =[2]ALCOHOL!K183 -> (0.0 | I88: =[2]ALCOHOL!L183 -> 5.5) | J88: =[2]ALCOHOL!D191 -> 1.7 | K88: =[2]ALCOHOL!E191 -> (1.0 - | L88: =[2]ALCOHOL!F191 -> 2.6) | M88: =[2]ALCOHOL!J191 -> 0.0 | N88: =[2]ALCOHOL!K191 -> (0.0 | O88: =[2]ALCOHOL!L191 -> 0.0)
C89: 1995-1999 | D89: =[2]ALCOHOL!D184 -> 6.5 | E89: =[2]ALCOHOL!E184 -> (4.5 - | F89: =[2]ALCOHOL!F184 -> 8.9) | G89: =[2]ALCOHOL!J184 -> 1.8 | H89: =[2]ALCOHOL!K184 -> (0.0 | I89: =[2]ALCOHOL!L184 -> 4.6) | J89: =[2]ALCOHOL!D192 -> 2.4 | K89: =[2]ALCOHOL!E192 -> (1.3 - | L89: =[2]ALCOHOL!F192 -> 3.6) | M89: =[2]ALCOHOL!J192 -> 0.0 | N89: =[2]ALCOHOL!K192 -> (0.0 | O89: =[2]ALCOHOL!L192 -> 0.0)
C90: 2000-2004 | D90: =[2]ALCOHOL!D185 -> 8.6 | E90: =[2]ALCOHOL!E185 -> (6.4 - | F90: =[2]ALCOHOL!F185 -> 11.0) | G90: =[2]ALCOHOL!J185 -> 4.5 | H90: =[2]ALCOHOL!K185 -> (1.3 - | I90: =[2]ALCOHOL!L185 -> 7.9) | J90: =[2]ALCOHOL!D193 -> 2.6 | K90: =[2]ALCOHOL!E193 -> (1.5 - | L90: =[2]ALCOHOL!F193 -> 3.9) | M90: =[2]ALCOHOL!J193 -> 0.0 | N90: =[2]ALCOHOL!K193 -> (0.0 | O90: =[2]ALCOHOL!L193 -> 0.0)
C91: 2005-2009 | D91: =[2]ALCOHOL!D186 -> 5.0 | E91: =[2]ALCOHOL!E186 -> (2.8 - | F91: =[2]ALCOHOL!F186 -> 7.8) | G91: =[2]ALCOHOL!J186 -> 0.0 | H91: =[2]ALCOHOL!K186 -> (0.0 | I91: =[2]ALCOHOL!L186 -> 0.0) | J91: =[2]ALCOHOL!D194 -> 1.5 | K91: =[2]ALCOHOL!E194 -> (0.4 - | L91: =[2]ALCOHOL!F194 -> 2.9) | M91: =[2]ALCOHOL!J194 -> 0.8 | N91: =[2]ALCOHOL!K194 -> (0.0 | O91: =[2]ALCOHOL!L194 -> 2.4)
A92: EAST | B92: Slovenia | C92: 1980-1984
C93: 1985-1989
C94: 1990-1994 | D94: =[2]ALCOHOL!D286 -> 107.3 | E94: =[2]ALCOHOL!E286 -> (101.4 - | F94: =[2]ALCOHOL!F286 -> 113.1) | G94: =[2]ALCOHOL!J286 -> 18.1 | H94: =[2]ALCOHOL!K286 -> (12.5 - | I94: =[2]ALCOHOL!L286 -> 24.6) | J94: =[2]ALCOHOL!D290 -> 28.6 | K94: =[2]ALCOHOL!E290 -> (25.9 - | L94: =[2]ALCOHOL!F290 -> 31.2) | M94: =[2]ALCOHOL!J290 -> 4.1 | N94: =[2]ALCOHOL!K290 -> (0.7 - | O94: =[2]ALCOHOL!L290 -> 8.4)
C95: 1995-1999
C96: 2000-2004 | D96: =[2]ALCOHOL!D288 -> 133.9 | E96: =[2]ALCOHOL!E288 -> (125.9 - | F96: =[2]ALCOHOL!F288 -> 142.4) | G96: =[2]ALCOHOL!J288 -> 24.7 | H96: =[2]ALCOHOL!K288 -> (19.8 - | I96: =[2]ALCOHOL!L288 -> 30.0) | J96: =[2]ALCOHOL!D292 -> 32.1 | K96: =[2]ALCOHOL!E292 -> (28.7 - | L96: =[2]ALCOHOL!F292 -> 35.7) | M96: =[2]ALCOHOL!J292 -> 7.5 | N96: =[2]ALCOHOL!K292 -> (4.3 - | O96: =[2]ALCOHOL!L292 -> 10.9)
C97: 2005-2009
B98: Hungary | C98: 1980-1984 | D98: =[2]ALCOHOL!D165 -> 59.3 | E98: =[2]ALCOHOL!E165 -> (57.5 - | F98: =[2]ALCOHOL!F165 -> 61.0) | G98: =[2]ALCOHOL!J165 -> 19.6 | H98: =[2]ALCOHOL!K165 -> (16.5 - | I98: =[2]ALCOHOL!L165 -> 23.0) | J98: =[2]ALCOHOL!D169 -> 14.0 | K98: =[2]ALCOHOL!E169 -> (13.2 - | L98: =[2]ALCOHOL!F169 -> 14.8) | M98: =[2]ALCOHOL!J169 -> 4.7 | N98: =[2]ALCOHOL!K169 -> (2.0 - | O98: =[2]ALCOHOL!L169 -> 7.8)
C99: 1985-1989
C100: 1990-1994 | D100: =[2]ALCOHOL!D166 -> 179.1 | E100: =[2]ALCOHOL!E166 -> (175.5 - | F100: =[2]ALCOHOL!F166 -> 182.4) | G100: =[2]ALCOHOL!J166 -> 40.8 | H100: =[2]ALCOHOL!K166 -> (37.0 - | I100: =[2]ALCOHOL!L166 -> 44.4) | J100: =[2]ALCOHOL!D170 -> 50.1 | K100: =[2]ALCOHOL!E170 -> (48.5 - | L100: =[2]ALCOHOL!F170 -> 51.8) | M100: =[2]ALCOHOL!J170 -> 15.8 | N100: =[2]ALCOHOL!K170 -> (12.6 - | O100: =[2]ALCOHOL!L170 -> 19.0)
C101: 1995-1999
C102: 2000-2004 | D102: =[2]ALCOHOL!D167 -> 251.1 | E102: =[2]ALCOHOL!E167 -> (247.5 - | F102: =[2]ALCOHOL!F167 -> 255.1) | G102: =[2]ALCOHOL!J167 -> 63.7 | H102: =[2]ALCOHOL!K167 -> (59.7 - | I102: =[2]ALCOHOL!L167 -> 67.7) | J102: =[2]ALCOHOL!D171 -> 65.0 | K102: =[2]ALCOHOL!E171 -> (62.9 - | L102: =[2]ALCOHOL!F171 -> 66.9) | M102: =[2]ALCOHOL!J171 -> 21.6 | N102: =[2]ALCOHOL!K171 -> (18.9 - | O102: =[2]ALCOHOL!L171 -> 24.4)
C103: 2005-2009
B104: Czech Republic | C104: 1980-1984 | D104: =[2]ALCOHOLcomp!D37 -> 0.4 | E104: =[2]ALCOHOLcomp!E37 -> (0.3 - | F104: =[2]ALCOHOLcomp!F37 -> 0.6) | G104: =[2]ALCOHOLcomp!J37 -> 0.4 | H104: =[2]ALCOHOLcomp!K37 -> (0.0 | I104: =[2]ALCOHOLcomp!L37 -> 1.0) | J104: =[2]ALCOHOLcomp!D39 -> 0.1 | K104: =[2]ALCOHOLcomp!E39 -> (0.0 - | L104: =[2]ALCOHOLcomp!F39 -> 0.2) | M104: =[2]ALCOHOLcomp!J39 -> 0.0 | N104: =[2]ALCOHOLcomp!K39 -> (0.0 | O104: =[2]ALCOHOLcomp!L39 -> 0.0)
C105: 1985-1989
C106: 1990-1994
C107: 1995-1999
C108: 2000-2004 | D108: =[2]ALCOHOLcomp!D38 -> 4.9 | E108: =[2]ALCOHOLcomp!E38 -> (4.5 - | F108: =[2]ALCOHOLcomp!F38 -> 5.4) | G108: =[2]ALCOHOLcomp!J38 -> 1.1 | H108: =[2]ALCOHOLcomp!K38 -> (0.8 - | I108: =[2]ALCOHOLcomp!L38 -> 1.6) | J108: =[2]ALCOHOLcomp!D40 -> 1.4 | K108: =[2]ALCOHOLcomp!E40 -> (1.1 - | L108: =[2]ALCOHOLcomp!F40 -> 1.6) | M108: =[2]ALCOHOLcomp!J40 -> 0.3 | N108: =[2]ALCOHOLcomp!K40 -> (0.1 - | O108: =[2]ALCOHOLcomp!L40 -> 0.7)
C109: 2005-2009
B110: Poland | C110: 1980-1984
C111: 1985-1989
C112: 1990-1994 | D112: =[2]ALCOHOLcomp!D260 -> 25.0 | E112: =[2]ALCOHOLcomp!E260 -> (24.2 - | F112: =[2]ALCOHOLcomp!F260 -> 25.9) | G112: =[2]ALCOHOLcomp!J260 -> 2.2 | H112: =[2]ALCOHOLcomp!K260 -> (1.6 - | I112: =[2]ALCOHOLcomp!L260 -> 2.9) | J112: =[2]ALCOHOLcomp!D262 -> 2.9 | K112: =[2]ALCOHOLcomp!E262 -> (2.6 - | L112: =[2]ALCOHOLcomp!F262 -> 3.2) | M112: =[2]ALCOHOLcomp!J262 -> 0.4 | N112: =[2]ALCOHOLcomp!K262 -> (0.1 - | O112: =[2]ALCOHOLcomp!L262 -> 0.8)
C113: 1995-1999
C114: 2000-2004 | D114: =[2]ALCOHOLcomp!D261 -> 16.5 | E114: =[2]ALCOHOLcomp!E261 -> (15.8 - | F114: =[2]ALCOHOLcomp!F261 -> 17.2) | G114: =[2]ALCOHOLcomp!J261 -> 1.9 | H114: =[2]ALCOHOLcomp!K261 -> (1.4 - | I114: =[2]ALCOHOLcomp!L261 -> 2.5) | J114: =[2]ALCOHOLcomp!D263 -> 2.2 | K114: =[2]ALCOHOLcomp!E263 -> (2.0 - | L114: =[2]ALCOHOLcomp!F263 -> 2.6) | M114: =[2]ALCOHOLcomp!J263 -> 0.2 | N114: =[2]ALCOHOLcomp!K263 -> (0.1 - | O114: =[2]ALCOHOLcomp!L263 -> 0.4)
C115: 2005-2009
B116: Lithuania | C116: 1980-1984
C117: 1985-1989 | D117: =[2]ALCOHOLcomp!D224 -> 23.8 | E117: =[2]ALCOHOLcomp!E224 -> (21.0 - | F117: =[2]ALCOHOLcomp!F224 -> 26.6) | G117: =[2]ALCOHOLcomp!J224 -> 3.6 | H117: =[2]ALCOHOLcomp!K224 -> (1.2 - | I117: =[2]ALCOHOLcomp!L224 -> 6.4) | J117: =[2]ALCOHOLcomp!D227 -> 7.0 | K117: =[2]ALCOHOLcomp!E227 -> (5.3 - | L117: =[2]ALCOHOLcomp!F227 -> 8.7) | M117: =[2]ALCOHOLcomp!J227 -> 1.8 | N117: =[2]ALCOHOLcomp!K227 -> (0.3 - | O117: =[2]ALCOHOLcomp!L227 -> 3.5)
C118: 1990-1994
C119: 1995-1999
C120: 2000-2004 | D120: =[2]ALCOHOLcomp!D225 -> 112.5 | E120: =[2]ALCOHOLcomp!E225 -> (103.4 - | F120: =[2]ALCOHOLcomp!F225 -> 122.5) | G120: =[2]ALCOHOLcomp!J225 -> 27.7 | H120: =[2]ALCOHOLcomp!K225 -> (21.7 - | I120: =[2]ALCOHOLcomp!L225 -> 33.4) | J120: =[2]ALCOHOLcomp!D228 -> 50.7 | K120: =[2]ALCOHOLcomp!E228 -> (43.4 - | L120: =[2]ALCOHOLcomp!F228 -> 59.5) | M120: =[2]ALCOHOLcomp!J228 -> 9.7 | N120: =[2]ALCOHOLcomp!K228 -> (7.4 - | O120: =[2]ALCOHOLcomp!L228 -> 11.9)
C121: 2005-2009 | D121: =[2]ALCOHOLcomp!D226 -> 162.5 | E121: =[2]ALCOHOLcomp!E226 -> (148.6 - | F121: =[2]ALCOHOLcomp!F226 -> 175.6) | G121: =[2]ALCOHOLcomp!J226 -> 43.2 | H121: =[2]ALCOHOLcomp!K226 -> (37.0 - | I121: =[2]ALCOHOLcomp!L226 -> 49.2) | J121: =[2]ALCOHOLcomp!D229 -> 66.4 | K121: =[2]ALCOHOLcomp!E229 -> (55.3 - | L121: =[2]ALCOHOLcomp!F229 -> 78.0) | M121: =[2]ALCOHOLcomp!J229 -> 11.9 | N121: =[2]ALCOHOLcomp!K229 -> (9.3 - | O121: =[2]ALCOHOLcomp!L229 -> 14.6)
B122: Estonia | C122: 1980-1984
C123: 1985-1989 | D123: =[2]ALCOHOLcomp!D107 -> 48.6 | E123: =[2]ALCOHOLcomp!E107 -> (43.9 - | F123: =[2]ALCOHOLcomp!F107 -> 54.0) | G123: =[2]ALCOHOLcomp!J107 -> 15.5 | H123: =[2]ALCOHOLcomp!K107 -> (10.8 - | I123: =[2]ALCOHOLcomp!L107 -> 20.7) | J123: =[2]ALCOHOLcomp!D109 -> 12.5 | K123: =[2]ALCOHOLcomp!E109 -> (9.8 - | L123: =[2]ALCOHOLcomp!F109 -> 15.4) | M123: =[2]ALCOHOLcomp!J109 -> 1.2 | N123: =[2]ALCOHOLcomp!K109 -> (0.0 | O123: =[2]ALCOHOLcomp!L109 -> 2.7)
C124: 1990-1994
C125: 1995-1999
C126: 2000-2004 | D126: =[2]ALCOHOLcomp!D108 -> 125.4 | E126: =[2]ALCOHOLcomp!E108 -> (113.4 - | F126: =[2]ALCOHOLcomp!F108 -> 137.2) | G126: =[2]ALCOHOLcomp!J108 -> 31.3 | H126: =[2]ALCOHOLcomp!K108 -> (24.4 - | I126: =[2]ALCOHOLcomp!L108 -> 38.5) | J126: =[2]ALCOHOLcomp!D110 -> 59.8 | K126: =[2]ALCOHOLcomp!E110 -> (49.2 - | L126: =[2]ALCOHOLcomp!F110 -> 71.5) | M126: =[2]ALCOHOLcomp!J110 -> 6.7 | N126: =[2]ALCOHOLcomp!K110 -> (4.3 - | O126: =[2]ALCOHOLcomp!L110 -> 9.3)
C127: 2005-2009
B129: * different codes of alcohol-related causes; or some specific alcohol-related causes are missing
B130: # age range 40–79 years
B131: NA = not available; regression gives 'infinite' value
B133: In the Czech Republic, only mortality due to alcohol poisoning was included in this trend table, because this is the only cause of death comparable between multiple time points. Note that the number of observations in the first period is very small and it shouldn't be included
B134: In Estonia, only mortality due to liver cirrhosis and alcohol poisoning was included in this trend table, because these are the only causes of death comparable between multiple time points.
B135: In Poland, only mortality due to alcohol poisoning was included in this trend table, because this is the only cause of death comparable between multiple time points. Note that the number of observations in the first period is very small and it shouldn't be included
B136: In Lithuania, only mortality due to liver cirrhosis and alcohol poisoning was included in this trend table, because these are the only causes of death comparable between multiple time points.
B137: In Belgium, only mortality due to alcohol psychosis, dependency and abuse, alcoholic cadiomyopathy, and alcohol poisoning was included in this trend table, because these are the only causes of death comparable between multiple time points.

Sheet Figure 3
A2: Figure 3. Change in alcohol affordability vs. changes in absolute inequalities in alcohol-related mortality between the early 90s and late 2000s, men
B5: Country (period) | D5: Alcohol affordability | E5: SII change
B6: Finland | C6: 1990-1994 vs 2005-2009 | D6: 155 | E6: =('[4]Abs_rel diff'!$BJ$124-'[4]Abs_rel diff'!$BJ$121)/'[4]Abs_rel diff'!$BJ$121 -> +69.0%
B7: Sweden | C7: 1990-1994 vs 2005-2009 | D7: 120 | E7: =('[4]Abs_rel diff'!$BJ$340-'[4]Abs_rel diff'!$BJ$337)/'[4]Abs_rel diff'!$BJ$337 -> -13.7%
B8: France | C8: 1990-1994 vs 2005-2009 | D8: 116 | E8: =('[4]Abs_rel diff'!$BJ$147-'[4]Abs_rel diff'!$BJ$144)/'[4]Abs_rel diff'!$BJ$144 -> -28.2%
B9: Spain (B) | C9: 1990-1994 vs 2005-2009 | D9: 130 | E9: =('[4]Abs_rel diff'!$BJ$303-'[4]Abs_rel diff'!$BJ$300)/'[4]Abs_rel diff'!$BJ$300 -> -13.3%
B10: Italy (T) | C10: 1990-1994 vs 2005-2009 | D10: 98 | E10: =('[4]Abs_rel diff'!$BJ$185-'[4]Abs_rel diff'!$BJ$182)/'[4]Abs_rel diff'!$BJ$182 -> -36.2%
B11: Lithuania | C11: 1985-1989 vs 2005-2009 | D11: 265 | E11: =('[4]Abs_rel diff'!$BM$225-'[4]Abs_rel diff'!$BM$223)/'[4]Abs_rel diff'!$BM$223 -> +412.8%
A30: Figure 3b. Change in alcohol affordability vs. changes in absolute inequalities in alcohol-related mortality between the early 90s and late 2000s, women
B33: Country (period) | D33: Alcohol affordability | E33: SII change
B34: Finland | C34: 1990-1994 vs 2005-2009 | D34: 155 | E34: 148.3080301
B35: Sweden | C35: 1990-1994 vs 2005-2009 | D35: 120 | E35: 8.991874397
B36: France | C36: 1990-1994 vs 2005-2009 | D36: 116 | E36: 69.65661334 | I36: Slope Index of Inequality
B37: Spain (B) | C37: 1990-1994 vs 2005-2009 | D37: 130 | E37: 27.12833545 | I37: (95% CI)
B38: Italy (T) | C38: 1990-1994 vs 2005-2009 | D38: 98 | E38: -33.68455074 | I38: 1980-4 | K38: 1985-9 | M38: 1990-4 | O38: 1995-9 | Q38: 2000-4 | S38: 2005-9
B39: Lithuania | C39: 1985-1989 vs 2005-2009 | D39: 265 | E39: 494.1598605 | G39: North | H39: Finland | I39: ='[4]Abs_rel diff'!$BJ$127 -> 4.3 | K39: ='[4]Abs_rel diff'!$BJ$128 -> 10.4 | M39: ='[4]Abs_rel diff'!$BJ$129 -> 14.8 | O39: ='[4]Abs_rel diff'!$BJ$130 -> 20.4 | Q39: ='[4]Abs_rel diff'!$BJ$131 -> 29.0 | S39: ='[4]Abs_rel diff'!$BJ$132 -> 36.9 | U39: =100*(S39-M39)/M39 -> 148.3 | V39: 148.3080301
H40: Sweden | M40: ='[4]Abs_rel diff'!$BJ$356 -> 7.3 | O40: ='[4]Abs_rel diff'!$BJ$357 -> 4.8 | Q40: ='[4]Abs_rel diff'!$BJ$358 -> 4.9 | S40: ='[4]Abs_rel diff'!$BJ$359 -> 7.9 | U40: =100*(S40-M40)/M40 -> 9.0 | V40: 8.991874397
H41: France | I41: =('[4]Abs_rel diff'!$BJ$149+'[4]Abs_rel diff'!$BJ$150)/2 -> 28.7 | K41: =('[4]Abs_rel diff'!$BJ$150+'[4]Abs_rel diff'!$BJ$151)/2 -> 30.7 | M41: ='[4]Abs_rel diff'!$BJ$152 -> 10.6 | O41: ='[4]Abs_rel diff'!$BJ$153 -> 22.1 | Q41: ='[4]Abs_rel diff'!$BJ$154 -> 19.1 | S41: ='[4]Abs_rel diff'!$BJ$155 -> 18.0 | U41: =100*(S41-M41)/M41 -> 69.7 | V41: 69.65661334
G42: South | H42: Spain (Barcelona) | M42: ='[4]Abs_rel diff'!$BJ$304 -> 2.7 | O42: ='[4]Abs_rel diff'!$BJ$305 -> 4.5 | Q42: ='[4]Abs_rel diff'!$BJ$306 -> 3.4 | S42: ='[4]Abs_rel diff'!$BJ$307 -> 3.4 | U42: 27.1 | V42: 27.12833545
H43: Italy (Turin) | I43: ='[4]Abs_rel diff'!$BJ$188 -> 1.4 | K43: ='[4]Abs_rel diff'!$BJ$189 -> -1.2 | M43: ='[4]Abs_rel diff'!$BJ$190 -> 1.5 | O43: ='[4]Abs_rel diff'!$BJ$191 -> 3.4 | Q43: ='[4]Abs_rel diff'!$BJ$192 -> 2.5 | S43: ='[4]Abs_rel diff'!$BJ$193 -> 1.0 | U43: -33.7 | V43: -33.68455074
H44: Lithuania | K44: ='[4]Abs_rel diff'!$BM$226 -> 9.0 | Q44: ='[4]Abs_rel diff'!$BM$227 -> 40.4 | S44: ='[4]Abs_rel diff'!$BM$228 -> 53.3 | U44: =100*(S44-K44)/K44 -> 494.2 | V44: 494.1598605

Sheet Table A1
B2: Datasources: selected quantitative characteristics (most recent time-period)
C4: Men (Education, 35-79 years)
B5: Country | C5: Total person-years | D5: Missing education (%) | E5: Low educated (%) | F5: Mid educated (%) | G5: High educated (%) | H5: Deaths from alcohol-related causes
A6: North | B6: Finland | C6: =[6]Sheet3!$S$8 -> 6557045 | D6: 0.0% | E6: 33.9% | F6: 38.1% | G6: 27.9% | H6: 7001
B7: Sweden | C7: =[6]Sheet3!$S$18 -> 9079496 | D7: 1.1% | E7: 28.5% | F7: 45.3% | G7: 26.2% | H7: 2436
B8: Norway | C8: =[6]Sheet3!$S$12 -> 2469730 | D8: 2.1% | E8: 25.0% | F8: 49.4% | G8: 25.6% | H8: 699
B9: Denmark | C9: =[6]Sheet3!$S$6 -> 6495868 | D9: 0.0% | E9: 36.5% | F9: 41.8% | G9: 21.7% | H9: 4851
A10: West | B10: Scotland (UK) | C10: 289330 | D10: 0.0% | E10: 56.5% | F10: 21.2% | G10: 22.2% | H10: 129
B11: England & Wales (UK) | C11: 495284 | D11: 11.1% | E11: 53.5% | F11: 23.5% | G11: 23.0% | H11: 93
B12: Belgium | C12: 5250670 | D12: 2.4% | E12: 52.0% | F12: 23.8% | G12: 24.3% | H12: 1452
B13: France | C13: 461084 | D13: 0.0% | E13: 35.0% | F13: 46.6% | G13: 18.3% | H13: 186
B14: Switzerland | C14: 4144956 | D14: 4.2% | E14: 13.7% | F14: 53.6% | G14: 32.7% | H14: 1131
B15: Austria | C15: 2037796 | D15: 0.0% | E15: 21.7% | F15: 68.7% | G15: 9.6% | H15: 403
A16: South | B16: Barcelona (Spain) | C16: 1655103 | D16: 0.0% | E16: 48.4% | F16: 26.5% | G16: 25.2% | H16: 128
B17: Basque Country (Spain) | C17: 2842171 | D17: 0.0% | E17: 59.1% | F17: 22.8% | G17: 18.1% | H17: 229
B18: Madrid (Spain) | C18: 2105043 | D18: 1.7% | E18: 57.1% | F18: 21.4% | G18: 21.6% | H18: 105
B19: Turin (Italy) | C19: 847800 | D19: 0.0% | E19: 54.5% | F19: 30.3% | G19: 15.2% | H19: 38
A20: East | B20: Slovenia | C20: 2238797 | D20: 0.0% | E20: 28.5% | F20: 55.8% | G20: 15.7% | H20: 2820
B21: Hungary | C21: 9546032 | D21: 0.0% | E21: 65.2% | F21: 20.5% | G21: 14.3% | H21: 18978
B22: Czech Republic | C22: 14643606 | D22: 0.0% | E22: 62.7% | F22: 23.8% | G22: 13.5% | H22: 4982
B23: Poland | C23: 21370641 | D23: 2.3% | E23: 59.5% | F23: 29.1% | G23: 11.4% | H23: 7917
B24: Lithuania | C24: 2590081 | D24: 0.8% | E24: 17.5% | F24: 65.1% | G24: 17.5% | H24: 2759
B25: Estonia | C25: 1518780 | D25: 2.4% | E25: 32.4% | F25: 50.3% | G25: 17.3% | H25: 2139
C28: Men (occupation; 35-64 years)
C29: Total person-years | D29: Missing occupation (%) | E29: Manual occupation (%) | F29: Non-manual occupation (%) | G29: Farmers and self-employed (%) | H29: Deaths from alcohol-related causes
A30: North | B30: Finland | C30: 5108543 | D30: 3% | E30: 46% | F30: 39% | G30: 15% | H30: 5764
B31: Sweden | C31: 7865436 | D31: 15% | E31: 44% | F31: 47% | G31: 9% | H31: 2020
B32: Denmark | C32: 5337839 | D32: 16% | E32: 55% | F32: 31% | G32: 14% | H32: 4020
A33: West | B33: England & Wales | C33: 379135 | D33: 4% | E33: 38% | F33: 47% | G33: 15% | H33: 75
B34: France | C34: 376841 | D34: 6% | E34: 33% | F34: 48% | G34: 13% | H34: 151
B35: Switzerland | C35: 3190994 | D35: 21% | E35: 14% | F35: 67% | G35: 18% | H35: 641
B36: Austria | C36: 1645944 | D36: 19% | E36: 37% | F36: 48% | G36: 14% | H36: 300
A37: South | B37: Basque Country | C37: 2186155 | D37: 3% | E37: 60% | F37: 38% | G37: 3% | H37: 166
B38: Madrid | C38: 1679356 | D38: 19% | E38: 38% | F38: 61% | G38: 1% | H38: 76
B39: Turin | C39: 580480 | D39: 8% | E39: 38% | F39: 45% | G39: 17% | H39: 22
A40: East | B40: Lithuania | C40: 2332126 | D40: 36% | E40: 48% | F40: 29% | G40: 23% | H40: 2538
B41: Estonia | C41: 1224675 | D41: 35% | E41: 56% | F41: 40% | G41: 4% | H41: 1160
C44: Women (Education; 35-79 years)
B45: Country | C45: Total person-years | D45: Missing education (%) | E45: Low educated (%) | F45: Mid educated (%) | G45: High educated (%) | H45: Deaths from alcohol-related causes
A46: North | B46: Finland | C46: 6890309 | D46: 0.0% | E46: 33.2% | F46: 35.4% | G46: 31.4% | H46: 1950
B47: Sweden | C47: 9159387 | D47: 1.1% | E47: 26.5% | F47: 45.0% | G47: 28.5% | H47: 710
B48: Norway | C48: 2507265 | D48: 1.4% | E48: 30.2% | F48: 46.0% | G48: 23.8% | H48: 253
B49: Denmark | C49: 6751911 | D49: 0.0% | E49: 45.4% | F49: 32.0% | G49: 22.6% | H49: 1728
A50: West | B50: Scotland (UK) | C50: 318447 | D50: 0.0% | E50: 61.4% | F50: 17.4% | G50: 21.2% | H50: 53
B51: England & Wales (UK) | C51: 529241 | D51: 5.9% | E51: 55.5% | F51: 24.3% | G51: 20.2% | H51: 55
B52: Belgium | C52: 5560886 | D52: 1.7% | E52: 55.8% | F52: 22.2% | G52: 21.9% | H52: 644
B53: France | C53: ='[7]France ASMR'!$C$1842 -> 510063 | D53: 0.0% | E53: 45.5% | F53: 36.9% | G53: 17.6% | H53: 58
B54: Switzerland | C54: 4588930 | D54: 5.5% | E54: 29.4% | F54: 57.7% | G54: 12.9% | H54: 519
B55: Austria | C55: 2210423 | D55: 0.0% | E55: 42.8% | F55: 49.9% | G55: 7.3% | H55: 102
A56: South | B56: Barcelona (Spain) | C56: 1882551 | D56: 0.0% | E56: 55.4% | F56: 21.5% | G56: 23.1% | H56: 44
B57: Basque Country (Spain) | C57: 3020582 | D57: 0.0% | E57: 68.7% | F57: 15.4% | G57: 15.9% | H57: 54
B58: Madrid (Spain) | C58: 2401405 | D58: 1.7% | E58: 66.6% | F58: 17.3% | G58: 16.1% | H58: 21
B59: Turin (Italy) | C59: 974983 | D59: 0.0% | E59: 61.1% | F59: 26.1% | G59: 12.8% | H59: 9
A60: East | B60: Slovenia | C60: 2523941 | D60: 0.0% | E60: 43.6% | F60: 42.1% | G60: 14.2% | H60: 913
B61: Hungary | C61: 11485316 | D61: 0.0% | E61: 63.6% | F61: 25.6% | G61: 10.8% | H61: 5892
B62: Czech Republic | C62: 16340922 | D62: 0.0% | E62: 64.5% | F62: 27.8% | G62: 7.6% | H62: 1461
B63: Poland | C63: 22533243 | D63: 2.0% | E63: 46.7% | F63: 40.8% | G63: 12.5% | H63: 1038
B64: Lithuania | C64: 3066025 | D64: 0.5% | E64: 13.4% | F64: 65.4% | G64: 21.3% | H64: 1078
B65: Estonia | C65: 1997440 | D65: 2.2% | E65: 29.3% | F65: 53.0% | G65: 17.7% | H65: 774

Sheet Table A2
A1: Web appendix table A2. ICD-code numbers
B3: Revisions of International Classification of Diseases
A4: Cause of death | B4: ICD-8 | C4: ICD-9 | D4: ICD-10
A5: Alcoholic psychosis, dependence and abuse | B5: 291, 303 | C5: 291, 303, 305.0 | D5: F10
A6: Alcoholic cardiomyopathy | B6: 425 | C6: 425.5 | D6: I42.6
A7: Alcoholic cirrhosis of liver | B7: 571.0 | C7: 571.0–571.3 | D7: K70
A8: Accidental poisoning by alcohol | B8: E860 | C8: E860 | D8: X45

Sheet Table A3
A1: Web appendix table A2. Occupational class inequalities in mortality from alcohol-related causes, latest observed period, by country and sex (Rate Ratio and Rate Difference, with 95% Confidence Intervals)
C3: Men
A4: Country | B4: Period | C4: RR | D4: 95% CI | F4: RD | G4: 95% CI | I4: % of RD in total mortality
A5: Finland | B5: 2006–2010 | C5: ='[8]Abs_rel diff'!BE71 -> 2.5 | D5: ='[8]Abs_rel diff'!BF71 -> (2.4 - | E5: ='[8]Abs_rel diff'!BG71 -> 2.7) | F5: ='[8]Abs_rel diff'!J71 -> 87.9 | G5: ='[8]Abs_rel diff'!K71 -> (82.4 - | H5: ='[8]Abs_rel diff'!L71 -> 94.1) | I5: ='[8]Abs_rel diff'!$J$71/'[8]Abs_rel diff'!$Y$71 -> 23.7%
A6: Sweden | B6: 1995-1999 | C6: ='[8]Abs_rel diff'!BE165 -> 3.0 | D6: ='[8]Abs_rel diff'!BF165 -> (2.6 - | E6: ='[8]Abs_rel diff'!BG165 -> 3.4) | F6: ='[8]Abs_rel diff'!J165 -> 17.7 | G6: ='[8]Abs_rel diff'!K165 -> (15.6 - | H6: ='[8]Abs_rel diff'!L165 -> 19.7) | I6: ='[8]Abs_rel diff'!$G$165/'[8]Abs_rel diff'!$Y$165 -> 7.5%
A7: Denmark | B7: 2001–2005 | C7: ='[8]Abs_rel diff'!BE21 -> 2.0 | D7: ='[8]Abs_rel diff'!BF21 -> (1.8 - | E7: ='[8]Abs_rel diff'!BG21 -> 2.4) | F7: ='[8]Abs_rel diff'!J21 -> 19.0 | G7: ='[8]Abs_rel diff'!K21 -> (15.6 - | H7: ='[8]Abs_rel diff'!L21 -> 22.5) | I7: ='[8]Abs_rel diff'!$J$21/'[8]Abs_rel diff'!$Y$21 -> 12.2%
A8: England & Wales | B8: 2006–2009 | C8: ='[8]Abs_rel diff'!BE39 -> 2.4 | D8: ='[8]Abs_rel diff'!BF39 -> (1.5 - | E8: ='[8]Abs_rel diff'!BG39 -> 4.5) | F8: ='[8]Abs_rel diff'!J39 -> 16.3 | G8: ='[8]Abs_rel diff'!K39 -> (6.6 - | H8: ='[8]Abs_rel diff'!L39 -> 26.9) | I8: ='[8]Abs_rel diff'!$J$39/'[8]Abs_rel diff'!$Y$39 -> 8.8%
A9: France | B9: 2004–2007 | C9: ='[8]Abs_rel diff'!BE94 -> 2.3 | D9: ='[8]Abs_rel diff'!BF94 -> (1.6 - | E9: ='[8]Abs_rel diff'!BG94 -> 3.4) | F9: ='[8]Abs_rel diff'!J94 -> 32.6 | G9: ='[8]Abs_rel diff'!K94 -> (17.6 - | H9: ='[8]Abs_rel diff'!L94 -> 48.8) | I9: ='[8]Abs_rel diff'!$J$94/'[8]Abs_rel diff'!$Y$94 -> 13.2%
A10: Switzerland | B10: 2006–2008 | C10: ='[8]Abs_rel diff'!BE178 -> 2.7 | D10: ='[8]Abs_rel diff'!BF178 -> (2.0 - | E10: ='[8]Abs_rel diff'!BG178 -> 3.6) | F10: ='[8]Abs_rel diff'!J178 -> 13.7 | G10: ='[8]Abs_rel diff'!K178 -> (9.0 - | H10: ='[8]Abs_rel diff'!L178 -> 18.4) | I10: ='[8]Abs_rel diff'!$J$178/'[8]Abs_rel diff'!$Y$178 -> 7.2%
A11: Austria | B11: 2001–2002 | C11: ='[8]Abs_rel diff'!BE8 -> 3.1 | D11: ='[8]Abs_rel diff'!BF8 -> (2.1 - | E11: ='[8]Abs_rel diff'!BG8 -> 5.1) | F11: ='[8]Abs_rel diff'!J8 -> 14.0 | G11: ='[8]Abs_rel diff'!K8 -> (8.1 - | H11: ='[8]Abs_rel diff'!L8 -> 20.9) | I11: ='[8]Abs_rel diff'!$J$8/'[8]Abs_rel diff'!$Y$8 -> 11.2%
A12: Basque Country | B12: 2001-2006 | C12: ='[8]Abs_rel diff'!BE144 -> 1.8 | D12: ='[8]Abs_rel diff'!BF144 -> (1.3 - | E12: ='[8]Abs_rel diff'!BG144 -> 2.9) | F12: ='[8]Abs_rel diff'!J144 -> 4.1 | G12: ='[8]Abs_rel diff'!K144 -> (1.7 - | H12: ='[8]Abs_rel diff'!L144 -> 6.6) | I12: ='[8]Abs_rel diff'!$J$144/'[8]Abs_rel diff'!$Y$144 -> 3.3%
A13: Madrid | B13: 2001–2003 | C13: ='[8]Abs_rel diff'!BE154 -> 0.9 | D13: ='[8]Abs_rel diff'!BF154 -> (0.4 - | E13: ='[8]Abs_rel diff'!BG154 -> 1.9) | F13: ='[8]Abs_rel diff'!J154 -> -0.1 | G13: ='[8]Abs_rel diff'!K154 -> (-2.0 - | H13: ='[8]Abs_rel diff'!L154 -> 1.7) | I13: ='[8]Abs_rel diff'!$J$154/'[8]Abs_rel diff'!$Y$154 -> -0.2%
A14: Turin | B14: 2006–2010 | C14: ='[8]Abs_rel diff'!BE117 -> 3.2 | D14: ='[8]Abs_rel diff'!BF117 -> (1.0 - | E14: ='[8]Abs_rel diff'!BG117 -> 16.7) | F14: ='[8]Abs_rel diff'!J117 -> 3.2 | G14: ='[8]Abs_rel diff'!K117 -> (-0.0 - | H14: ='[8]Abs_rel diff'!L117 -> 6.9) | I14: ='[8]Abs_rel diff'!$J$117/'[8]Abs_rel diff'!$Y$117 -> 2.4%
A15: Lithuania | B15: 2006–2009 | C15: ='[8]Abs_rel diff'!BE134 -> 2.2 | D15: ='[8]Abs_rel diff'!BF134 -> (1.9 - | E15: ='[8]Abs_rel diff'!BG134 -> 2.8) | F15: ='[8]Abs_rel diff'!J134 -> 33.8 | G15: ='[8]Abs_rel diff'!K134 -> (26.5 - | H15: ='[8]Abs_rel diff'!L134 -> 41.5) | I15: ='[8]Abs_rel diff'!$J$134/'[8]Abs_rel diff'!$Y$134 -> 7.7%
A16: Estonia | B16: 1998–2002 | C16: ='[8]Abs_rel diff'!BE55 -> 1.8 | D16: ='[8]Abs_rel diff'!BF55 -> (1.3 - | E16: ='[8]Abs_rel diff'!BG55 -> 2.6) | F16: ='[8]Abs_rel diff'!J55 -> 14.1 | G16: ='[8]Abs_rel diff'!K55 -> (7.0 - | H16: ='[8]Abs_rel diff'!L55 -> 21.6) | I16: ='[8]Abs_rel diff'!$J$55/'[8]Abs_rel diff'!$Y$55 -> 6.2%

Sheet Table A4
A1: Web appendix table A5. Trends in relative and absolute occupational class inequalities in mortality from alcohol-related causes, by country and sex (with 95% Confidence Intervals)
A2: a. Men
C4: Rate ratio | R4: Rate difference
C5: % CI | R5: % CI
C6: 1980-4 | E6: 1985-9 | G6: 1990-4 | I6: 1995-9 | K6: 2000-4 | M6: 2005-9 | R6: 1980-4 | T6: 1985-9 | V6: 1990-4 | X6: 1995-9 | Z6: 2000-4 | AB6: 2005-9
A7: North | B7: Finland | C7: ='[8]Abs_rel diff'!$BE$66 -> 2.0 | E7: ='[8]Abs_rel diff'!$BE$67 -> 1.9 | G7: ='[8]Abs_rel diff'!$BE$68 -> 2.2 | I7: ='[8]Abs_rel diff'!$BE$69 -> 2.5 | K7: ='[8]Abs_rel diff'!$BE$70 -> 2.3 | M7: ='[8]Abs_rel diff'!$BE$71 -> 2.5 | P7: North | Q7: Finland | R7: ='[8]Abs_rel diff'!$J$66 -> 32.7 | T7: ='[8]Abs_rel diff'!$J$67 -> 41.9 | V7: ='[8]Abs_rel diff'!$J$68 -> 50.0 | X7: ='[8]Abs_rel diff'!$J$69 -> 70.4 | Z7: ='[8]Abs_rel diff'!$J$70 -> 67.6 | AB7: ='[8]Abs_rel diff'!$J$71 -> 87.9
C8: ='[8]Abs_rel diff'!$BF$66 -> 1.8 | D8: ='[8]Abs_rel diff'!$BG$66 -> 2.2 | E8: ='[8]Abs_rel diff'!$BF$67 -> 1.7 | F8: ='[8]Abs_rel diff'!$BG$67 -> 2.1 | G8: ='[8]Abs_rel diff'!$BF$68 -> 2.0 | H8: ='[8]Abs_rel diff'!$BG$68 -> 2.4 | I8: ='[8]Abs_rel diff'!$BF$69 -> 2.3 | J8: ='[8]Abs_rel diff'!$BG$69 -> 2.7 | K8: ='[8]Abs_rel diff'!$BF$70 -> 2.1 | L8: ='[8]Abs_rel diff'!$BG$70 -> 2.5 | M8: ='[8]Abs_rel diff'!$BF$71 -> 2.4 | N8: ='[8]Abs_rel diff'!$BG$71 -> 2.7 | R8: ='[8]Abs_rel diff'!$K$66 -> 28.0 | S8: ='[8]Abs_rel diff'!$L$66 -> 37.6 | T8: ='[8]Abs_rel diff'!$K$67 -> 36.2 | U8: ='[8]Abs_rel diff'!$L$67 -> 47.6 | V8: ='[8]Abs_rel diff'!$K$68 -> 45.1 | W8: ='[8]Abs_rel diff'!$L$68 -> 55.1 | X8: ='[8]Abs_rel diff'!$K$69 -> 64.1 | Y8: ='[8]Abs_rel diff'!$L$69 -> 76.1 | Z8: ='[8]Abs_rel diff'!$K$70 -> 62.2 | AA8: ='[8]Abs_rel diff'!$L$70 -> 72.8 | AB8: ='[8]Abs_rel diff'!$K$71 -> 82.4 | AC8: ='[8]Abs_rel diff'!$L$71 -> 94.1
B9: Sweden | G9: ='[8]Abs_rel diff'!$BE$164 -> 2.7 | I9: ='[8]Abs_rel diff'!$BE$165 -> 3.0 | Q9: Sweden | V9: ='[8]Abs_rel diff'!$J$164 -> 13.6 | X9: ='[8]Abs_rel diff'!$J$165 -> 17.7
G10: ='[8]Abs_rel diff'!$BF$164 -> 2.3 | H10: ='[8]Abs_rel diff'!$BG$164 -> 3.3 | I10: ='[8]Abs_rel diff'!$BF$165 -> 2.6 | J10: ='[8]Abs_rel diff'!$BG$165 -> 3.4 | V10: ='[8]Abs_rel diff'!$K$164 -> 11.3 | W10: ='[8]Abs_rel diff'!$L$164 -> 16.0 | X10: ='[8]Abs_rel diff'!$K$165 -> 15.6 | Y10: ='[8]Abs_rel diff'!$L$165 -> 19.7
B11: Denmark | G11: ='[8]Abs_rel diff'!$BE$19 -> 1.6 | I11: ='[8]Abs_rel diff'!$BE$20 -> 2.0 | K11: ='[8]Abs_rel diff'!$BE$21 -> 2.0 | Q11: Denmark | V11: ='[8]Abs_rel diff'!$J$19 -> 14.1 | X11: ='[8]Abs_rel diff'!$J$20 -> 18.8 | Z11: ='[8]Abs_rel diff'!$J$21 -> 19.0
G12: ='[8]Abs_rel diff'!$BF$19 -> 1.4 | H12: ='[8]Abs_rel diff'!$BG$19 -> 1.9 | I12: ='[8]Abs_rel diff'!$BF$20 -> 1.7 | J12: ='[8]Abs_rel diff'!$BG$20 -> 2.3 | K12: ='[8]Abs_rel diff'!$BF$21 -> 1.8 | L12: ='[8]Abs_rel diff'!$BG$21 -> 2.4 | V12: ='[8]Abs_rel diff'!$K$19 -> 10.4 | W12: ='[8]Abs_rel diff'!$L$19 -> 17.7 | X12: ='[8]Abs_rel diff'!$K$20 -> 14.9 | Y12: ='[8]Abs_rel diff'!$L$20 -> 22.7 | Z12: ='[8]Abs_rel diff'!$K$21 -> 15.6 | AA12: ='[8]Abs_rel diff'!$L$21 -> 22.5
A13: West | B13: England & Wales | C13: ='[8]Abs_rel diff'!$BE$34 -> 1.4 | E13: ='[8]Abs_rel diff'!$BE$35 -> 1.0 | G13: ='[8]Abs_rel diff'!$BE$36 -> 1.0 | I13: ='[8]Abs_rel diff'!$BE$37 -> 1.7 | K13: ='[8]Abs_rel diff'!$BE$38 -> 2.0 | M13: ='[8]Abs_rel diff'!$BE$39 -> 2.4 | P13: West | Q13: England & Wales | R13: ='[8]Abs_rel diff'!$J$34 -> 1.6 | T13: ='[8]Abs_rel diff'!$J$35 -> 0.3 | V13: ='[8]Abs_rel diff'!$J$36 -> 0.1 | X13: ='[8]Abs_rel diff'!$J$37 -> 8.7 | Z13: ='[8]Abs_rel diff'!$J$38 -> 12.3 | AB13: ='[8]Abs_rel diff'!$J$39 -> 16.3
C14: ='[8]Abs_rel diff'!$BF$34 -> 0.6 | D14: ='[8]Abs_rel diff'!$BG$34 -> 4.8 | E14: ='[8]Abs_rel diff'!$BF$35 -> 0.5 | F14: ='[8]Abs_rel diff'!$BG$35 -> 2.6 | G14: ='[8]Abs_rel diff'!$BF$36 -> 0.5 | H14: ='[8]Abs_rel diff'!$BG$36 -> 2.0 | I14: ='[8]Abs_rel diff'!$BF$37 -> 1.1 | J14: ='[8]Abs_rel diff'!$BG$37 -> 3.0 | K14: ='[8]Abs_rel diff'!$BF$38 -> 1.3 | L14: ='[8]Abs_rel diff'!$BG$38 -> 3.2 | M14: ='[8]Abs_rel diff'!$BF$39 -> 1.5 | N14: ='[8]Abs_rel diff'!$BG$39 -> 4.5 | R14: ='[8]Abs_rel diff'!$K$34 -> -2.5 | S14: ='[8]Abs_rel diff'!$L$34 -> 5.7 | T14: ='[8]Abs_rel diff'!$K$35 -> -4.4 | U14: ='[8]Abs_rel diff'!$L$35 -> 5.3 | V14: ='[8]Abs_rel diff'!$K$36 -> -5.5 | W14: ='[8]Abs_rel diff'!$L$36 -> 5.4 | X14: ='[8]Abs_rel diff'!$K$37 -> 1.6 | Y14: ='[8]Abs_rel diff'!$L$37 -> 16.2 | Z14: ='[8]Abs_rel diff'!$K$38 -> 4.1 | AA14: ='[8]Abs_rel diff'!$L$38 -> 20.9 | AB14: ='[8]Abs_rel diff'!$K$39 -> 6.6 | AC14: ='[8]Abs_rel diff'!$L$39 -> 26.9
B15: France | C15: =('[8]Abs_rel diff'!$BE$88+'[8]Abs_rel diff'!$BE$89)/2 -> 2.5 | E15: =('[8]Abs_rel diff'!$BE$89+'[8]Abs_rel diff'!$BE$90)/2 -> 3.4 | G15: ='[8]Abs_rel diff'!$BE$91 -> 3.9 | I15: ='[8]Abs_rel diff'!$BE$92 -> 3.6 | K15: ='[8]Abs_rel diff'!$BE$93 -> 2.8 | M15: ='[8]Abs_rel diff'!$BE$94 -> 2.3 | Q15: France | R15: =('[8]Abs_rel diff'!$J$88+'[8]Abs_rel diff'!$J$89)/2 -> 45.3 | T15: =('[8]Abs_rel diff'!$J$89+'[8]Abs_rel diff'!$J$90)/2 -> 57.4 | V15: ='[8]Abs_rel diff'!$J$91 -> 46.9 | X15: ='[8]Abs_rel diff'!$J$92 -> 43.9 | Z15: ='[8]Abs_rel diff'!$J$93 -> 36.5 | AB15: ='[8]Abs_rel diff'!$J$94 -> 32.6
C16: =('[8]Abs_rel diff'!$BF$88+'[8]Abs_rel diff'!$BF$89)/2 -> 1.6 | D16: =('[8]Abs_rel diff'!$BG$88+'[8]Abs_rel diff'!$BG$89)/2 -> 4.6 | E16: =('[8]Abs_rel diff'!$BF$89+'[8]Abs_rel diff'!$BF$90)/2 -> 2.3 | F16: =('[8]Abs_rel diff'!$BG$89+'[8]Abs_rel diff'!$BG$90)/2 -> 5.9 | G16: ='[8]Abs_rel diff'!$BF$91 -> 2.6 | H16: ='[8]Abs_rel diff'!$BG$91 -> 5.8 | I16: ='[8]Abs_rel diff'!$BF$92 -> 2.3 | J16: ='[8]Abs_rel diff'!$BG$92 -> 5.9 | K16: ='[8]Abs_rel diff'!$BF$93 -> 2.0 | L16: ='[8]Abs_rel diff'!$BG$93 -> 4.0 | M16: ='[8]Abs_rel diff'!$BF$94 -> 1.6 | N16: ='[8]Abs_rel diff'!$BG$94 -> 3.4 | R16: =('[8]Abs_rel diff'!$K$88+'[8]Abs_rel diff'!$K$89)/2 -> 22.3 | S16: =('[8]Abs_rel diff'!$L$88+'[8]Abs_rel diff'!$L$89)/2 -> 69.3 | T16: =('[8]Abs_rel diff'!$K$89+'[8]Abs_rel diff'!$K$90)/2 -> 37.3 | U16: =('[8]Abs_rel diff'!$L$89+'[8]Abs_rel diff'!$L$90)/2 -> 78.3 | V16: ='[8]Abs_rel diff'!$K$91 -> 31.4 | W16: ='[8]Abs_rel diff'!$L$91 -> 61.7 | X16: ='[8]Abs_rel diff'!$K$92 -> 27.7 | Y16: ='[8]Abs_rel diff'!$L$92 -> 60.1 | Z16: ='[8]Abs_rel diff'!$K$93 -> 23.1 | AA16: ='[8]Abs_rel diff'!$L$93 -> 52.0 | AB16: ='[8]Abs_rel diff'!$K$94 -> 17.6 | AC16: ='[8]Abs_rel diff'!$L$94 -> 48.8
B17: Switzerland | G17: ='[8]Abs_rel diff'!$BE$175 -> 2.6 | I17: ='[8]Abs_rel diff'!$BE$176 -> 2.5 | K17: ='[8]Abs_rel diff'!$BE$177 -> 3.0 | M17: ='[8]Abs_rel diff'!$BE$178 -> 2.7 | Q17: Switzerland | V17: ='[8]Abs_rel diff'!$J$175 -> 20.9 | X17: ='[8]Abs_rel diff'!$J$176 -> 27.1 | Z17: ='[8]Abs_rel diff'!$J$177 -> 13.8 | AB17: ='[8]Abs_rel diff'!$J$178 -> 13.7
G18: ='[8]Abs_rel diff'!$BF$175 -> 2.2 | H18: ='[8]Abs_rel diff'!$BG$175 -> 3.0 | I18: ='[8]Abs_rel diff'!$BF$176 -> 2.2 | J18: ='[8]Abs_rel diff'!$BG$176 -> 2.9 | K18: ='[8]Abs_rel diff'!$BF$177 -> 2.4 | L18: ='[8]Abs_rel diff'!$BG$177 -> 3.8 | M18: ='[8]Abs_rel diff'!$BF$178 -> 2.0 | N18: ='[8]Abs_rel diff'!$BG$178 -> 3.6 | V18: ='[8]Abs_rel diff'!$K$175 -> 16.6 | W18: ='[8]Abs_rel diff'!$L$175 -> 25.2 | X18: ='[8]Abs_rel diff'!$K$176 -> 22.1 | Y18: ='[8]Abs_rel diff'!$L$176 -> 32.2 | Z18: ='[8]Abs_rel diff'!$K$177 -> 10.0 | AA18: ='[8]Abs_rel diff'!$L$177 -> 17.7 | AB18: ='[8]Abs_rel diff'!$K$178 -> 9.0 | AC18: ='[8]Abs_rel diff'!$L$178 -> 18.4
B19: Austria | G19: ='[8]Abs_rel diff'!$BE$6 -> 3.6 | I19: ='[8]Abs_rel diff'!$BE$7 -> 2.8 | K19: ='[8]Abs_rel diff'!$BE$8 -> 3.1 | Q19: Austria | V19: ='[8]Abs_rel diff'!$J$6 -> 11.1 | X19: ='[8]Abs_rel diff'!$J$7 -> 14.7 | Z19: ='[8]Abs_rel diff'!$J$8 -> 14.0
G20: ='[8]Abs_rel diff'!$BF$6 -> 1.7 | H20: ='[8]Abs_rel diff'!$BG$6 -> 6.8 | I20: ='[8]Abs_rel diff'!$BF$7 -> 1.6 | J20: ='[8]Abs_rel diff'!$BG$7 -> 5.1 | K20: ='[8]Abs_rel diff'!$BF$8 -> 2.1 | L20: ='[8]Abs_rel diff'!$BG$8 -> 5.1 | V20: ='[8]Abs_rel diff'!$K$6 -> 4.1 | W20: ='[8]Abs_rel diff'!$L$6 -> 18.8 | X20: ='[8]Abs_rel diff'!$K$7 -> 6.0 | Y20: ='[8]Abs_rel diff'!$L$7 -> 23.6 | Z20: ='[8]Abs_rel diff'!$K$8 -> 8.1 | AA20: ='[8]Abs_rel diff'!$L$8 -> 20.9
A21: South | B21: Spain (Madrid) | I21: ='[8]Abs_rel diff'!$BE$153 -> 2.5 | K21: ='[8]Abs_rel diff'!$BE$154 -> 0.9 | P21: South | Q21: Spain (Madrid) | X21: ='[8]Abs_rel diff'!$J$153 -> 4.5 | Z21: ='[8]Abs_rel diff'!$J$154 -> -0.1
I22: ='[8]Abs_rel diff'!$BF$153 -> 1.6 | J22: ='[8]Abs_rel diff'!$BG$153 -> 4.3 | K22: ='[8]Abs_rel diff'!$BF$154 -> 0.4 | L22: ='[8]Abs_rel diff'!$BG$154 -> 1.9 | X22: ='[8]Abs_rel diff'!$K$153 -> 2.2 | Y22: ='[8]Abs_rel diff'!$L$153 -> 7.1 | Z22: ='[8]Abs_rel diff'!$K$154 -> -2.0 | AA22: ='[8]Abs_rel diff'!$L$154 -> 1.7
B23: Italy (Turin) | C23: ='[8]Abs_rel diff'!$BE$112 -> 3.4 | E23: ='[8]Abs_rel diff'!$BE$113 -> 1.6 | G23: ='[8]Abs_rel diff'!$BE$114 -> 2.9 | I23: ='[8]Abs_rel diff'!$BE$115 -> 3.0 | K23: ='[8]Abs_rel diff'!$BE$116 -> 1.9 | M23: ='[8]Abs_rel diff'!$BE$117 -> 3.2 | Q23: Italy (Turin) | R23: ='[8]Abs_rel diff'!$J$112 -> 4.1 | T23: ='[8]Abs_rel diff'!$J$113 -> 2.6 | V23: ='[8]Abs_rel diff'!$J$114 -> 3.5 | X23: ='[8]Abs_rel diff'!$J$115 -> 4.7 | Z23: ='[8]Abs_rel diff'!$J$116 -> 3.0 | AB23: ='[8]Abs_rel diff'!$J$117 -> 3.2
C24: ='[8]Abs_rel diff'!$BF$112 -> 1.4 | D24: ='[8]Abs_rel diff'!$BG$112 -> 23.9 | E24: ='[8]Abs_rel diff'!$BF$113 -> 0.8 | F24: ='[8]Abs_rel diff'!$BG$113 -> 4.0 | G24: ='[8]Abs_rel diff'!$BF$114 -> 1.3 | H24: ='[8]Abs_rel diff'!$BG$114 -> 11.6 | I24: ='[8]Abs_rel diff'!$BF$115 -> 1.2 | J24: ='[8]Abs_rel diff'!$BG$115 -> 10.0 | K24: ='[8]Abs_rel diff'!$BF$116 -> 0.9 | L24: ='[8]Abs_rel diff'!$BG$116 -> 4.5 | M24: ='[8]Abs_rel diff'!$BF$117 -> 1.0 | N24: ='[8]Abs_rel diff'!$BG$117 -> 16.7 | R24: ='[8]Abs_rel diff'!$K$112 -> 1.2 | S24: ='[8]Abs_rel diff'!$L$112 -> 7.2 | T24: ='[8]Abs_rel diff'!$K$113 -> -1.0 | U24: ='[8]Abs_rel diff'!$L$113 -> 6.4 | V24: ='[8]Abs_rel diff'!$K$114 -> 0.7 | W24: ='[8]Abs_rel diff'!$L$114 -> 6.4 | X24: ='[8]Abs_rel diff'!$K$115 -> 0.8 | Y24: ='[8]Abs_rel diff'!$L$115 -> 8.2 | Z24: ='[8]Abs_rel diff'!$K$116 -> -0.5 | AA24: ='[8]Abs_rel diff'!$L$116 -> 6.3 | AB24: ='[8]Abs_rel diff'!$K$117 -> -0.0 | AC24: ='[8]Abs_rel diff'!$L$117 -> 6.9
A25: East | B25: Lithuania | K25: ='[8]Abs_rel diff'!$BE$133 -> 1.9 | M25: ='[8]Abs_rel diff'!$BE$134 -> 2.2 | P25: East | Q25: Lithuania | Z25: ='[8]Abs_rel diff'!$J$133 -> 16.2 | AB25: ='[8]Abs_rel diff'!$J$134 -> 33.8
K26: ='[8]Abs_rel diff'!$BF$133 -> 1.5 | L26: ='[8]Abs_rel diff'!$BG$133 -> 2.5 | M26: ='[8]Abs_rel diff'!$BF$134 -> 1.9 | N26: ='[8]Abs_rel diff'!$BG$134 -> 2.8 | Z26: ='[8]Abs_rel diff'!$K$133 -> 10.6 | AA26: ='[8]Abs_rel diff'!$L$133 -> 21.8 | AB26: ='[8]Abs_rel diff'!$K$134 -> 26.5 | AC26: ='[8]Abs_rel diff'!$L$134 -> 41.5

Sheet Figure A1
A1: Web appendix figure A3. Trends in mortality from alcohol-related causes among manual and non-manual men, ca. 1980-2010, by country
B3: EDUCATION
D4: Men
D5: non-manual | G5: manual
B6: Country | C6: Period | D6: ASMR | E6: 95%-CI | G6: ASMR | H6: 95%-CI
A7: NORTH | B7: Finland | C7: 1980-1984 | D7: =[8]Alcohol!D67 -> 34.1 | E7: =[8]Alcohol!E67 -> (30.7 - | F7: =[8]Alcohol!F67 -> 37.7) | G7: =[8]Alcohol!G67 -> 66.9 | H7: =[8]Alcohol!H67 -> (63.8 - | I7: =[8]Alcohol!I67 -> 70.5)
C8: 1985-1989 | D8: =[8]Alcohol!D68 -> 45.6 | E8: =[8]Alcohol!E68 -> (41.8 - | F8: =[8]Alcohol!F68 -> 49.6) | G8: =[8]Alcohol!G68 -> 87.5 | H8: =[8]Alcohol!H68 -> (83.1 - | I8: =[8]Alcohol!I68 -> 91.6)
C9: 1990-1994 | D9: =[8]Alcohol!D69 -> 43.5 | E9: =[8]Alcohol!E69 -> (40.2 - | F9: =[8]Alcohol!F69 -> 46.7) | G9: =[8]Alcohol!G69 -> 93.5 | H9: =[8]Alcohol!H69 -> (89.5 - | I9: =[8]Alcohol!I69 -> 97.7)
C10: 1995-1999 | D10: =[8]Alcohol!D70 -> 47.0 | E10: =[8]Alcohol!E70 -> (44.0 - | F10: =[8]Alcohol!F70 -> 50.6) | G10: =[8]Alcohol!G70 -> 117.4 | H10: =[8]Alcohol!H70 -> (112.7 - | I10: =[8]Alcohol!I70 -> 121.9)
C11: 2000-2004 | D11: =[8]Alcohol!D71 -> 51.9 | E11: =[8]Alcohol!E71 -> (48.7 - | F11: =[8]Alcohol!F71 -> 55.2) | G11: =[8]Alcohol!G71 -> 119.4 | H11: =[8]Alcohol!H71 -> (115.1 - | I11: =[8]Alcohol!I71 -> 123.5)
C12: 2005-2009 | D12: =[8]Alcohol!D72 -> 56.9 | E12: =[8]Alcohol!E72 -> (53.6 - | F12: =[8]Alcohol!F72 -> 60.1) | G12: =[8]Alcohol!G72 -> 144.8 | H12: =[8]Alcohol!H72 -> (140.3 - | I12: =[8]Alcohol!I72 -> 149.7)
B13: Sweden | C13: 1980-1984
C14: 1985-1989
C15: 1990-1994 | D15: =[8]Alcohol!D165 -> 7.9 | E15: =[8]Alcohol!E165 -> (6.7 - | F15: =[8]Alcohol!F165 -> 9.2) | G15: =[8]Alcohol!G165 -> 21.5 | H15: =[8]Alcohol!H165 -> (19.5 - | I15: =[8]Alcohol!I165 -> 23.6)
C16: 1995-1999 | D16: =[8]Alcohol!D166 -> 8.9 | E16: =[8]Alcohol!E166 -> (8.0 - | F16: =[8]Alcohol!F166 -> 9.9) | G16: =[8]Alcohol!G166 -> 26.6 | H16: =[8]Alcohol!H166 -> (24.8 - | I16: =[8]Alcohol!I166 -> 28.3)
C17: 2000-2004
C18: 2005-2009
B19: Denmark | C19: 1980-1984
C20: 1985-1989
C21: 1990-1994 | D21: =[8]Alcohol!D20 -> 22.7 | E21: =[8]Alcohol!E20 -> (20.2 - | F21: =[8]Alcohol!F20 -> 25.5) | G21: =[8]Alcohol!G20 -> 36.8 | H21: =[8]Alcohol!H20 -> (34.0 - | I21: =[8]Alcohol!I20 -> 39.4)
C22: 1995-1999 | D22: =[8]Alcohol!D21 -> 19.4 | E22: =[8]Alcohol!E21 -> (16.9 - | F22: =[8]Alcohol!F21 -> 21.8) | G22: =[8]Alcohol!G21 -> 38.2 | H22: =[8]Alcohol!H21 -> (35.3 - | I22: =[8]Alcohol!I21 -> 41.2)
C23: 2000-2004 | D23: =[8]Alcohol!D22 -> 18.3 | E23: =[8]Alcohol!E22 -> (15.8 - | F23: =[8]Alcohol!F22 -> 20.6) | G23: =[8]Alcohol!G22 -> 37.3 | H23: =[8]Alcohol!H22 -> (34.8 - | I23: =[8]Alcohol!I22 -> 39.7)
C24: 2005-2009
B25: England & Wales | C25: 1980-1984 | D25: =[8]Alcohol!D35 -> 3.9 | E25: =[8]Alcohol!E35 -> (1.1 - | F25: =[8]Alcohol!F35 -> 6.8) | G25: =[8]Alcohol!G35 -> 5.5 | H25: =[8]Alcohol!H35 -> (2.8 - | I25: =[8]Alcohol!I35 -> 8.5)
C26: 1985-1989 | D26: =[8]Alcohol!D36 -> 6.1 | E26: =[8]Alcohol!E36 -> (2.6 - | F26: =[8]Alcohol!F36 -> 9.7) | G26: =[8]Alcohol!G36 -> 6.4 | H26: =[8]Alcohol!H36 -> (3.4 - | I26: =[8]Alcohol!I36 -> 9.8)
C27: 1990-1994 | D27: =[8]Alcohol!D37 -> 8.6 | E27: =[8]Alcohol!E37 -> (5.1 - | F27: =[8]Alcohol!F37 -> 13.0) | G27: =[8]Alcohol!G37 -> 8.7 | H27: =[8]Alcohol!H37 -> (5.3 - | I27: =[8]Alcohol!I37 -> 12.4)
C28: 1995-1999 | D28: =[8]Alcohol!D38 -> 11.8 | E28: =[8]Alcohol!E38 -> (7.5 - | F28: =[8]Alcohol!F38 -> 16.2) | G28: =[8]Alcohol!G38 -> 20.4 | H28: =[8]Alcohol!H38 -> (14.8 - | I28: =[8]Alcohol!I38 -> 26.6)
C29: 2000-2004 | D29: =[8]Alcohol!D39 -> 12.9 | E29: =[8]Alcohol!E39 -> (8.4 - | F29: =[8]Alcohol!F39 -> 17.9) | G29: =[8]Alcohol!G39 -> 25.1 | H29: =[8]Alcohol!H39 -> (18.3 - | I29: =[8]Alcohol!I39 -> 32.6)
C30: 2005-2009 | D30: =[8]Alcohol!D40 -> 11.6 | E30: =[8]Alcohol!E40 -> (6.7 - | F30: =[8]Alcohol!F40 -> 17.1) | G30: =[8]Alcohol!G40 -> 27.9 | H30: =[8]Alcohol!H40 -> (19.6 - | I30: =[8]Alcohol!I40 -> 37.2)
B31: France | C31: 1980-1984 | D31: =([8]Alcohol!D89+[8]Alcohol!D90)/2 -> 30.8 | E31: =([8]Alcohol!E89+[8]Alcohol!E90)/2 -> (19.3 - | F31: =([8]Alcohol!F89+[8]Alcohol!F90)/2 -> 43.4) | G31: =([8]Alcohol!G89+[8]Alcohol!G90)/2 -> 76.2 | H31: =([8]Alcohol!H89+[8]Alcohol!H90)/2 -> (57.8 - | I31: =([8]Alcohol!I89+[8]Alcohol!I90)/2 -> 96.2)
C32: 1985-1989 | D32: =([8]Alcohol!D90+[8]Alcohol!D91)/2 -> 27.0 | E32: =([8]Alcohol!E90+[8]Alcohol!E91)/2 -> (18.4 - | F32: =([8]Alcohol!F90+[8]Alcohol!F91)/2 -> 36.6) | G32: =([8]Alcohol!G90+[8]Alcohol!G91)/2 -> 84.4 | H32: =([8]Alcohol!H90+[8]Alcohol!H91)/2 -> (67.0 - | I32: =([8]Alcohol!I90+[8]Alcohol!I91)/2 -> 102.5)
C33: 1990-1994 | D33: =[8]Alcohol!D92 -> 16.4 | E33: =[8]Alcohol!E92 -> (11.1 - | F33: =[8]Alcohol!F92 -> 22.6) | G33: =[8]Alcohol!G92 -> 63.3 | H33: =[8]Alcohol!H92 -> (49.8 - | I33: =[8]Alcohol!I92 -> 77.2)
C34: 1995-1999 | D34: =[8]Alcohol!D93 -> 16.7 | E34: =[8]Alcohol!E93 -> (10.6 - | F34: =[8]Alcohol!F93 -> 24.0) | G34: =[8]Alcohol!G93 -> 60.7 | H34: =[8]Alcohol!H93 -> (46.0 - | I34: =[8]Alcohol!I93 -> 75.6)
C35: 2000-2004 | D35: =[8]Alcohol!D94 -> 20.6 | E35: =[8]Alcohol!E94 -> (14.8 - | F35: =[8]Alcohol!F94 -> 27.0) | G35: =[8]Alcohol!G94 -> 57.1 | H35: =[8]Alcohol!H94 -> (45.0 - | I35: =[8]Alcohol!I94 -> 71.1)
C36: 2005-2009 | D36: =[8]Alcohol!D95 -> 25.2 | E36: =[8]Alcohol!E95 -> (18.7 - | F36: =[8]Alcohol!F95 -> 32.6) | G36: =[8]Alcohol!G95 -> 57.8 | H36: =[8]Alcohol!H95 -> (44.7 - | I36: =[8]Alcohol!I95 -> 72.6)
B37: Switzerland | C37: 1980-1984
C38: 1985-1989
C39: 1990-1994 | D39: =[8]Alcohol!D176 -> 13.1 | E39: =[8]Alcohol!E176 -> (11.8 - | F39: =[8]Alcohol!F176 -> 14.5) | G39: =[8]Alcohol!G176 -> 34.0 | H39: =[8]Alcohol!H176 -> (30.1 - | I39: =[8]Alcohol!I176 -> 37.8)
C40: 1995-1999 | D40: =[8]Alcohol!D177 -> 18.1 | E40: =[8]Alcohol!E177 -> (16.6 - | F40: =[8]Alcohol!F177 -> 19.6) | G40: =[8]Alcohol!G177 -> 45.2 | H40: =[8]Alcohol!H177 -> (40.6 - | I40: =[8]Alcohol!I177 -> 49.9)
C41: 2000-2004 | D41: =[8]Alcohol!D178 -> 6.8 | E41: =[8]Alcohol!E178 -> (5.8 - | F41: =[8]Alcohol!F178 -> 7.7) | G41: =[8]Alcohol!G178 -> 20.6 | H41: =[8]Alcohol!H178 -> (16.9 - | I41: =[8]Alcohol!I178 -> 24.1)
C42: 2005-2009 | D42: =[8]Alcohol!D179 -> 7.9 | E42: =[8]Alcohol!E179 -> (6.6 - | F42: =[8]Alcohol!F179 -> 9.3) | G42: =[8]Alcohol!G179 -> 21.6 | H42: =[8]Alcohol!H179 -> (17.3 - | I42: =[8]Alcohol!I179 -> 26.2)
B43: Austria | C43: 1980-1984 | D43: =[8]Alcohol!D7 -> 4.3 | E43: =[8]Alcohol!E7 -> (2.6 - | F43: =[8]Alcohol!F7 -> 6.5) | G43: =[8]Alcohol!G7 -> 15.4 | H43: =[8]Alcohol!H7 -> (8.8 - | I43: =[8]Alcohol!I7 -> 23.3)
C44: 1985-1989
C45: 1990-1994 | D45: =[8]Alcohol!D8 -> 8.3 | E45: =[8]Alcohol!E8 -> (4.8 - | F45: =[8]Alcohol!F8 -> 12.5) | G45: =[8]Alcohol!G8 -> 23.0 | H45: =[8]Alcohol!H8 -> (15.6 - | I45: =[8]Alcohol!I8 -> 31.6)
C46: 1995-1999
C47: 2000-2004 | D47: =[8]Alcohol!D9 -> 6.6 | E47: =[8]Alcohol!E9 -> (4.7 - | F47: =[8]Alcohol!F9 -> 8.5) | G47: =[8]Alcohol!G9 -> 20.6 | H47: =[8]Alcohol!H9 -> (15.3 - | I47: =[8]Alcohol!I9 -> 27.3)
C48: 2005-2009
B49: Madrid | C49: 1980-1984
C50: 1985-1989
C51: 1990-1994
C52: 1995-1999 | D52: =[8]Alcohol!D154 -> 3.0 | E52: =[8]Alcohol!E154 -> (1.8 - | F52: =[8]Alcohol!F154 -> 4.2) | G52: =[8]Alcohol!G154 -> 7.5 | H52: =[8]Alcohol!H154 -> (5.3 - | I52: =[8]Alcohol!I154 -> 9.9)
C53: 2000-2004 | D53: =[8]Alcohol!D155 -> 2.7 | E53: =[8]Alcohol!E155 -> (1.6 - | F53: =[8]Alcohol!F155 -> 3.9) | G53: =[8]Alcohol!G155 -> 2.5 | H53: =[8]Alcohol!H155 -> (1.2 - | I53: =[8]Alcohol!I155 -> 4.1)
C54: 2005-2009
B55: Italy, Turin | C55: 1980-1984 | D55: =[8]Alcohol!D113 -> 1.7 | E55: =[8]Alcohol!E113 -> (0.3 - | F55: =[8]Alcohol!F113 -> 3.7) | G55: =[8]Alcohol!G113 -> 5.8 | H55: =[8]Alcohol!H113 -> (3.5 - | I55: =[8]Alcohol!I113 -> 8.5)
C56: 1985-1989 | D56: =[8]Alcohol!D114 -> 4.1 | E56: =[8]Alcohol!E114 -> (1.8 - | F56: =[8]Alcohol!F114 -> 6.7) | G56: =[8]Alcohol!G114 -> 6.6 | H56: =[8]Alcohol!H114 -> (4.0 - | I56: =[8]Alcohol!I114 -> 9.4)
C57: 1990-1994 | D57: =[8]Alcohol!D115 -> 1.8 | E57: =[8]Alcohol!E115 -> (0.6 - | F57: =[8]Alcohol!F115 -> 3.3) | G57: =[8]Alcohol!G115 -> 5.3 | H57: =[8]Alcohol!H115 -> (3.1 - | I57: =[8]Alcohol!I115 -> 7.9)
C58: 1995-1999 | D58: =[8]Alcohol!D116 -> 2.3 | E58: =[8]Alcohol!E116 -> (0.7 - | F58: =[8]Alcohol!F116 -> 4.3) | G58: =[8]Alcohol!G116 -> 7.0 | H58: =[8]Alcohol!H116 -> (3.9 - | I58: =[8]Alcohol!I116 -> 10.4)
C59: 2000-2004 | D59: =[8]Alcohol!D117 -> 3.3 | E59: =[8]Alcohol!E117 -> (1.5 - | F59: =[8]Alcohol!F117 -> 5.4) | G59: =[8]Alcohol!G117 -> 6.3 | H59: =[8]Alcohol!H117 -> (3.7 - | I59: =[8]Alcohol!I117 -> 9.2)
C60: 2005-2009 | D60: =[8]Alcohol!D118 -> 1.4 | E60: =[8]Alcohol!E118 -> (0.3 - | F60: =[8]Alcohol!F118 -> 3.0) | G60: =[8]Alcohol!G118 -> 4.6 | H60: =[8]Alcohol!H118 -> (1.7 - | I60: =[8]Alcohol!I118 -> 8.1)
B61: Lithuania | C61: 1980-1984
C62: 1985-1989
C63: 1990-1994
C64: 1995-1999
C65: 2000-2004 | D65: =[8]Alcohol!D134 -> 17.3 | E65: =[8]Alcohol!E134 -> (13.7 - | F65: =[8]Alcohol!F134 -> 21.4) | G65: =[8]Alcohol!G134 -> 33.5 | H65: =[8]Alcohol!H134 -> (29.8 - | I65: =[8]Alcohol!I134 -> 37.5)
C66: 2005-2009 | D66: =[8]Alcohol!D135 -> 27.5 | E66: =[8]Alcohol!E135 -> (22.6 - | F66: =[8]Alcohol!F135 -> 32.1) | G66: =[8]Alcohol!G135 -> 61.3 | H66: =[8]Alcohol!H135 -> (55.1 - | I66: =[8]Alcohol!I135 -> 66.7)
B68: * different codes of alcohol-related causes; or some specific alcohol-related causes are missing
B69: # age range 40–79 years
B70: NA = not available; regression gives 'infinite' value

Sheet Sheet1

Sheet Sheet2
